Service Area,Service Division,Expense Type,Expense Code,Detailed Expense Type,Payment Date,Transaction Number,Amount Exc VAT,Supplier Name
Regeneration and Local Services,Environmental Services,Supplies and Services,304357,Equipment and Materials,03/02/2020,3698117-DCC150919QUERY,762.50,GAP GROUP LTD.
Regeneration and Local Services,Corporate Property and Land,Third Party Payments,430100,Rendered by Private Contractors,03/02/2020,3698141-SI-138,940.00,JOHN WRAGG JOINERY & BUILDING SERVICES.
Regeneration and Local Services,Business Durham CL0850,Premises,135005,Water Services,03/02/2020,3698273-210359890016591487,"2,209.11",WAVE (AWBN).
Regeneration and Local Services,Business Durham CL0850,Premises,135005,Water Services,03/02/2020,3698273-303696120016592865,870.85,WAVE (AWBN).
Regeneration and Local Services,Business Durham CL0850,Premises,135005,Water Services,03/02/2020,3698273-305905970016592640,691.77,WAVE (AWBN).
Regeneration and Local Services,Business Durham CL0850,Premises,135005,Water Services,03/02/2020,3698273-315957610016592949,"1,398.38",WAVE (AWBN).
Regeneration and Local Services,Transport and Contracted Services,Third Party Payments,440999,Other third party payments E440,03/02/2020,3698176-DI20333199,713.00,NORTHERN POWERGRID (NORTHEAST) LTD.
Regeneration and Local Services,Transport and Contracted Services,Third Party Payments,430106,Rendered by Private Contractors,03/02/2020,3698121-72444,643.50,GO GATESHEAD LTD.
Regeneration and Local Services,Transport and Contracted Services,Supplies and Services,384199,Miscellaneous Expenses,03/02/2020,3698280-64435781,"6,999.86",WSP UK LTD.
Regeneration and Local Services,Development and Housing,Cap Exp on Grants & Other Financial Assistance (REFCUS),918501,Exp assets not owned by authority,03/02/2020,3698182-RED-01-2020-186,"3,995.00",ON TIME MAINTENANCE LTD.
Adult and Health Services,Head of Adults,Third Party Payments,472101,Purchase of Care,03/02/2020,3698219-CAS-01-2020-191,"6,235.84",SECOND TO NONE CARE LTD.
Adult and Health Services,Head of Adults,Supplies and Services,338366,Services,03/02/2020,3698063-64670,"1,017.35",CARE ABILITY HEALTHCARE LTD.
Adult and Health Services,Commissioning inc Supporting People,Third Party Payments,470111,Purchase of Care,03/02/2020,3698149-LCD-FTI006622,"4,403.33",LEONARD CHESHIRE DISABILITY.
Adult and Health Services,Head of Adults,Third Party Payments,478151,Purchase of Care,03/02/2020,3698056-CB15,"4,068.86",BONDCARE WILLINGTON LTD.
Adult and Health Services,Commissioning inc Supporting People,Third Party Payments,479111,Purchase of Care,03/02/2020,3698083-315,"4,100.00",DALE CARE LTD.
Adult and Health Services,Commissioning inc Supporting People,Third Party Payments,479111,Purchase of Care,03/02/2020,3698143-DCC98123,"12,300.00",KELLY PARK LTD..
Adult and Health Services,Commissioning inc Supporting People,Third Party Payments,479111,Purchase of Care,03/02/2020,3698143-DCC98124,"7,564.50",KELLY PARK LTD..
Adult and Health Services,Public Health CC0450,Third Party Payments,460803,Contract Payments,03/02/2020,3698131-672/20/1801,"374,752.10",HUMANKIND CHARITY.
Resources BK0010,Legal & Democratic Services,Supplies and Services,338042,Services,03/02/2020,3698088-354089/INVSEB1X208,"1,100.00",DERE STREET BARRISTERS.
Resources BK0010,Legal & Democratic Services,Supplies and Services,338043,Services,03/02/2020,3698097-157-0021328,"1,778.20",DWF LLP.
Resources BK0010,Legal & Democratic Services,Supplies and Services,338043,Services,03/02/2020,3698097-157-0030087,"2,591.30",DWF LLP.
Resources BK0010,Legal & Democratic Services,Supplies and Services,338043,Services,03/02/2020,3698097-157-0034847,"1,531.02",DWF LLP.
Children and Young Peoples Services,Head of Education and Skills,Supplies and Services,384199,Miscellaneous Expenses,03/02/2020,3698148-8081,940.00,LEE`S COACHES LTD.
Children and Young Peoples Services,Head of Education and Skills,Supplies and Services,384199,Miscellaneous Expenses,03/02/2020,3698195-19/20-05,500.00,PGI SMITH SOLUTIONS LTD.
Dedicated Schools Grant BG0015,DSG High Needs Block,Central Support and Other Recharges,615092,Support Services,03/02/2020,3698234-CAS-01-2020-193,"1,800.00",STANLEY LEARNING PARTNERSHIP.
Children and Young Peoples Services,Head of Education and Skills,Transport,230008,Contract Hire,03/02/2020,3698036-01/20A,"1,040.00",ADVANCE TRAVEL.
Children and Young Peoples Services,Head of Education and Skills,Transport,235005,Public Transport,03/02/2020,3698121-72493,"5,040.00",GO GATESHEAD LTD.
Children and Young Peoples Services,Head of Education and Skills,Supplies and Services,338094,Services,03/02/2020,3698094-YEI-EVALUATION-EVENT,"1,000.00",DURHAM MARRIOTT ROYAL COUNTY HOTEL.
Dedicated Schools Grant BG0015,DSG High Needs Block,Central Support and Other Recharges,615208,Support Services,03/02/2020,3698100-RES-01-2020-101,"3,313.24",EDEN LEARNING TRUST T/A FERRYHILL BUSINESS & ENTERPRISE COLLEGE.
Children and Young Peoples Services,Head of Childrens Social Care,Third Party Payments,486046,Service level agreements E486,03/02/2020,3698167-47614,"8,360.75",NATIONAL YOUTH ADVOCACY SERVICE.
Children and Young Peoples Services,Head of Childrens Social Care,Third Party Payments,486046,Service level agreements E486,03/02/2020,3698167-47710,"4,383.12",NATIONAL YOUTH ADVOCACY SERVICE.
Children and Young Peoples Services,Head of Early Help Inclusion & Vulnerable Children.,Third Party Payments,486046,Service level agreements E486,03/02/2020,3698167-47697,"1,422.30",NATIONAL YOUTH ADVOCACY SERVICE.
Regeneration and Local Services,Environmental Services,Supplies and Services,304221,Equipment and Materials,04/02/2020,3699172-914708023,775.00,NORTHUMBRIAN WATER LTD.
Regeneration and Local Services,Environmental Services,Transport,230005,Contract Hire,04/02/2020,3699004-I2034976,752.68,ACL HIRE LTD.
Regeneration and Local Services,Environmental Services,Transport,210057,Repair and Maintenance of Vehicles,04/02/2020,3699069-96383898,"1,357.95",DENNIS EAGLE LTD T/A TERBERG MATEC (UK) LTD.
Regeneration and Local Services,Environmental Services,Transport,210057,Repair and Maintenance of Vehicles,04/02/2020,3699069-96384441,"1,048.00",DENNIS EAGLE LTD T/A TERBERG MATEC (UK) LTD.
Regeneration and Local Services,Environmental Services,Transport,230710,Contract Hire,04/02/2020,3699120-00079134,719.13,JCB FINANCE (LEASING) LTD.*
Regeneration and Local Services,Environmental Services,Transport,230005,Contract Hire,04/02/2020,3699248-20831,780.00,TRASH UK LTD.
Regeneration and Local Services,Technical Services CM0300,Premises,120009,Energy Costs,04/02/2020,3699081-000007066438,"227,474.50",EDF ENERGY CUSTOMERS PLC T/A EDF ENERGY.
Regeneration and Local Services,Culture Sport and Tourism,Supplies and Services,324117,Provisions E324,04/02/2020,3699031-10464063,517.89,BIDFOOD.
Regeneration and Local Services,Culture Sport and Tourism,Third Party Payments,430131,Rendered by Private Contractors,04/02/2020,3699232-TT/20203,710.00,TERESA DONNELLAN T/A T TRAINING.
Regeneration and Local Services,Technical Services CM0300,Supplies and Services,304221,Equipment and Materials,04/02/2020,3699105-960674532,863.37,HCL SAFETY LTD.
Regeneration and Local Services,Technical Services CM0300,Third Party Payments,430100,Rendered by Private Contractors,04/02/2020,3699134-931299,"29,705.00",LIGHTING & ILLUMINATION TECHNOLOGY EXPERIENCE LTD (LITE).
Regeneration and Local Services,Technical Services CM0300,Supplies and Services,304221,Equipment and Materials,04/02/2020,3699227-126971,845.68,STONEGRAVE AGGREGATES LTD.
Regeneration and Local Services,Development and Housing,Supplies and Services,338045,Services,04/02/2020,3699262-3435348,"2,296.00",WOMBLE BOND DICKINSON (UK) LLP.
Regeneration and Local Services,Business Durham CL0850,Supplies and Services,304259,Equipment and Materials,04/02/2020,3699164-2020001676,"1,106.67",NEOPOST LTD.
Regeneration and Local Services,Culture Sport and Tourism,Supplies and Services,384199,Miscellaneous Expenses,04/02/2020,3699261-002019110,500.00,WOLSINGHAM & WEAR VALLEY AGRICULTURAL SOCIETY.
Regeneration and Local Services,Development and Housing,Supplies and Services,338029,Services,04/02/2020,3699174-HOUSING-2020-C0-137,"2,000.00",OCEAN MEDIA GROUP LTD.
Regeneration and Local Services,Development and Housing,Supplies and Services,384999,Miscellaneous Expenses,04/02/2020,3699039-13568,518.00,BROWN & ILLINGWORTH LTD.
Regeneration and Local Services,Transport and Contracted Services,Third Party Payments,440999,Other third party payments E440,04/02/2020,3699169-DI20333202,713.00,NORTHERN POWERGRID (NORTHEAST) LTD.
Regeneration and Local Services,Transport and Contracted Services,Third Party Payments,430100,Rendered by Private Contractors,04/02/2020,3699183-10347,"1,666.50",PATROL (PARKING & TRAFFIC REGULATIONS OUTSIDE LONDON).
Regeneration and Local Services,Development and Housing,Cap Exp on Grants & Other Financial Assistance (REFCUS),918004,Contributions to other bodies 918004,04/02/2020,3699032-RED-02-2020-001,"1,152.00",BISHOP AUCKLAND TOWN COUNCIL.
Adult and Health Services,Commissioning inc Supporting People,Third Party Payments,479111,Purchase of Care,04/02/2020,3699019-INV-9738,"5,987.50",APM CLEANING LTD.
Adult and Health Services,Commissioning inc Supporting People,Third Party Payments,479101,Purchase of Care,04/02/2020,3699078-396,532.78,DURHAM COUNTY CARERS SUPPORT.
Adult and Health Services,Commissioning inc Supporting People,Supplies and Services,384700,Miscellaneous Expenses,04/02/2020,3699259-40,"4,950.00",WADDINGTON STREET CENTRE LTD.
Adult and Health Services,Head of Adults,Third Party Payments,470101,Purchase of Care,04/02/2020,3699187-41865,871.32,PERCY HEDLEY FOUNDATION.
Adult and Health Services,Head of Adults,Third Party Payments,470101,Purchase of Care,04/02/2020,3699187-41974,830.80,PERCY HEDLEY FOUNDATION.
Adult and Health Services,Head of Adults,Third Party Payments,470101,Purchase of Care,04/02/2020,3699187-42277,"1,239.63",PERCY HEDLEY FOUNDATION.
Adult and Health Services,Head of Adults,Third Party Payments,470101,Purchase of Care,04/02/2020,3699187-42979,689.10,PERCY HEDLEY FOUNDATION.
Adult and Health Services,Head of Adults,Third Party Payments,478151,Purchase of Care,04/02/2020,3699025-D720002703,"4,122.72",AUTISM CARE UK (4) LTD.
Adult and Health Services,Commissioning inc Supporting People,Third Party Payments,479111,Purchase of Care,04/02/2020,3699063-310,"2,521.50",DALE CARE LTD.
Adult and Health Services,Commissioning inc Supporting People,Third Party Payments,479111,Purchase of Care,04/02/2020,3699063-311,"2,521.50",DALE CARE LTD.
Adult and Health Services,Commissioning inc Supporting People,Third Party Payments,479111,Purchase of Care,04/02/2020,3699063-312,"2,521.50",DALE CARE LTD.
Adult and Health Services,Commissioning inc Supporting People,Third Party Payments,479111,Purchase of Care,04/02/2020,3699063-313,"2,521.50",DALE CARE LTD.
Adult and Health Services,Commissioning inc Supporting People,Third Party Payments,479111,Purchase of Care,04/02/2020,3699063-316,"4,100.00",DALE CARE LTD.
Adult and Health Services,Commissioning inc Supporting People,Third Party Payments,479111,Purchase of Care,04/02/2020,3699063-318,"4,100.00",DALE CARE LTD.
Adult and Health Services,Commissioning inc Supporting People,Third Party Payments,479111,Purchase of Care,04/02/2020,3699063-319,"4,100.00",DALE CARE LTD.
Regeneration and Local Services,Culture Sport and Tourism,Supplies and Services,312013,Newspapers books and periodicals E312,04/02/2020,3699253-I643562,"1,870.56",ULVERSCROFT LARGE PRINT BOOKS LTD.
Regeneration and Local Services,Culture Sport and Tourism,Supplies and Services,338047,Services,04/02/2020,3699068-0015,"1,508.00",DEERNESS GYMNASTICS ACADEMY.
Adult and Health Services,Public Health CC0450,Third Party Payments,460803,Contract Payments,04/02/2020,3699109-681/20/1801,"374,752.10",HUMANKIND CHARITY.
Resources - C A C,Centrally Administered costs 069006,Supplies and Services,384899,Miscellaneous Expenses,04/02/2020,3699237-0119,"1,000.00",THE PEOPLE`S POWERHOUSE.
Children and Young Peoples Services,Head of Education and Skills,Transfer Payments,510026,School Children,04/02/2020,3699196-CAS-01-2020-201,"7,249.87",RAINBOW NURSERY LTD (MIDDLESTONE MOOR).
Children and Young Peoples Services,Head of Education and Skills,Transfer Payments,510027,School Children,04/02/2020,3699251-0000000055,"2,572.69",TUDHOE COLLIERY ACADEMY.
Children and Young Peoples Services,Head of Education and Skills,Construction work A908,908105,Construction work,04/02/2020,3699192-900868040.,"43,432.50",PORTAKABIN LTD.
Children and Young Peoples Services,Head of Education and Skills,Transport,230008,Contract Hire,04/02/2020,3699053-INV-036,"1,600.00",CLARE LYNSEY STEWART T/A K&C TAXIS.
Children and Young Peoples Services,Head of Education and Skills,Transport,230008,Contract Hire,04/02/2020,3699142-KW1010,950.00,MARK O`NEILL T/A KWIK CABS.
Children and Young Peoples Services,Head of Education and Skills,Transport,230008,Contract Hire,04/02/2020,3699144-INV186,"1,440.00",MICHAEL COBB T/A HAIL TAXIS.
Dedicated Schools Grant BG0015,DSG High Needs Block,Central Support and Other Recharges,689988,Unclassified E690,04/02/2020,3699181-CAS-01-2020-200,"2,780.38",PARK VIEW ACADEMY.
Children and Young Peoples Services,Head of Childrens Social Care,Third Party Payments,440038,Other third party payments E440,04/02/2020,3699263-0155,"14,468.00",WORLD ALTERNATIVE EDUCATION LTD.
Children and Young Peoples Services,Head of Childrens Social Care,Transport,230005,Contract Hire,04/02/2020,3699061-109973,796.80,CROFT BUSINESS SERVICES (UK) LTD T/A CROFT TAXIS.
Children and Young Peoples Services,Head of Childrens Social Care,Supplies and Services,338043,Services,04/02/2020,3699240-10005,"1,093.03",TMJ LEGAL SERVICES LLP.
Children and Young Peoples Services,Head of Childrens Social Care,Transport,230005,Contract Hire,04/02/2020,3699061-109977,536.52,CROFT BUSINESS SERVICES (UK) LTD T/A CROFT TAXIS.
Children and Young Peoples Services,Head of Childrens Social Care,Transport,230005,Contract Hire,04/02/2020,3699061-109978,"1,187.53",CROFT BUSINESS SERVICES (UK) LTD T/A CROFT TAXIS.
Children and Young Peoples Services,Head of Childrens Social Care,Transport,230005,Contract Hire,04/02/2020,3699061-109975,502.24,CROFT BUSINESS SERVICES (UK) LTD T/A CROFT TAXIS.
Non-Service Specific,Non Service Specific-Financing,Long Term Debtors,924001,Car loans,04/02/2020,3699023-116723,639.00,ARRIVA DURHAM COUNTY LTD.
Regeneration and Local Services,Environmental Services,Supplies and Services,304357,Equipment and Materials,05/02/2020,3699394-DCC080919QUERY,762.50,GAP GROUP LTD.
Regeneration and Local Services,Environmental Services,Premises,108099,Service Repairs and Maintenance,05/02/2020,3699331-CSS3534,"2,750.00",CLEARSKIES SOFTWARE.
Regeneration and Local Services,Environmental Services,Third Party Payments,430100,Rendered by Private Contractors,05/02/2020,3699428-2735,"4,341.00",IAN C LIDDLE.
Regeneration and Local Services,Environmental Services,Supplies and Services,304221,Equipment and Materials,05/02/2020,3699574-RSIN0319035A,597.00,RIGBY TAYLOR LTD.
Regeneration and Local Services,Environmental Services,Supplies and Services,338078,Services,05/02/2020,3699607-15374,"6,506.50",STEADFAST SECURITY SOLUTIONS LTD.
Regeneration and Local Services,Environmental Services,Supplies and Services,338078,Services,05/02/2020,3699607-15370,"3,008.00",STEADFAST SECURITY SOLUTIONS LTD.
Regeneration and Local Services,Environmental Services,Transport,210057,Repair and Maintenance of Vehicles,05/02/2020,3699298-35176728,885.12,BELL TRUCK SALES LTD T/A BELL TRUCK & VAN.
Regeneration and Local Services,Environmental Services,Transport,210057,Repair and Maintenance of Vehicles,05/02/2020,3699358-96383673,503.01,DENNIS EAGLE LTD T/A TERBERG MATEC (UK) LTD.
Regeneration and Local Services,Environmental Services,Transport,230005,Contract Hire,05/02/2020,3699406-R0017886,"4,485.00",GO PLANT FLEET SERVICES LTD.
Regeneration and Local Services,Environmental Services,Third Party Payments,430100,Rendered by Private Contractors,05/02/2020,3699315-22181,650.00,C & P WINDSCREENS LTD.
Regeneration and Local Services,Environmental Services,Third Party Payments,430100,Rendered by Private Contractors,05/02/2020,3699358-96383768,847.83,DENNIS EAGLE LTD T/A TERBERG MATEC (UK) LTD.
Regeneration and Local Services,Community Protection,Supplies and Services,338027,Services,05/02/2020,3699413-0000013598,"8,086.25",GROUNDWORK NORTH EAST.
Regeneration and Local Services,Environmental Services,Transport,215005,Running Costs of Vehicles,05/02/2020,3699528-532261,"18,001.20",OIL NRG LTD.
Regeneration and Local Services,Technical Services CM0300,Third Party Payments,430127,Rendered by Private Contractors,05/02/2020,3699428-2728,"1,417.50",IAN C LIDDLE.
Regeneration and Local Services,Technical Services CM0300,Third Party Payments,430127,Rendered by Private Contractors,05/02/2020,3699428-2729,"1,542.50",IAN C LIDDLE.
Regeneration and Local Services,Technical Services CM0300,Third Party Payments,430127,Rendered by Private Contractors,05/02/2020,3699432-5305812,"1,610.00",JA GILSON (AGRICULTURAL CONTRACTORS) LTD.
Regeneration and Local Services,Environmental Services,Third Party Payments,430100,Rendered by Private Contractors,05/02/2020,3699313-82589261,939.79,BRISTOL STREET MOTORS.
Regeneration and Local Services,Environmental Services,Transport,210057,Repair and Maintenance of Vehicles,05/02/2020,3699318-238678,510.89,CARRS BILLINGTON AGRICULTURE.
Regeneration and Local Services,Environmental Services,Transport,210057,Repair and Maintenance of Vehicles,05/02/2020,3699326-705868,559.73,CHATFIELDS T/A EVANS HALSHAW.
Regeneration and Local Services,Environmental Services,Transport,230005,Contract Hire,05/02/2020,3699406-R0017885,"1,620.00",GO PLANT FLEET SERVICES LTD.
Regeneration and Local Services,Environmental Services,Transport,215005,Running Costs of Vehicles,05/02/2020,3699528-532890,"16,002.40",OIL NRG LTD.
Regeneration and Local Services,Environmental Services,Transport,210057,Repair and Maintenance of Vehicles,05/02/2020,3699647-16463,773.14,VERSALIFT DISTRIBUTORS (UK) LTD.
Regeneration and Local Services,Environmental Services,Supplies and Services,338078,Services,05/02/2020,3699607-15376,"6,085.00",STEADFAST SECURITY SOLUTIONS LTD.
Regeneration and Local Services,Corporate Property and Land,Supplies and Services,338066,Services,05/02/2020,3699303-SIN012784,"136,441.34",BLOOM PROCUREMENT SERVICES LTD (FORMERLY NEPRO LTD).
Regeneration and Local Services,Corporate Property and Land,Supplies and Services,384159,Miscellaneous Expenses,05/02/2020,3699607-15373,"4,443.12",STEADFAST SECURITY SOLUTIONS LTD.
Regeneration and Local Services,Environmental Services,Supplies and Services,338078,Services,05/02/2020,3699607-15375,"8,415.11",STEADFAST SECURITY SOLUTIONS LTD.
Regeneration and Local Services,Environmental Services,Transport,215005,Running Costs of Vehicles,05/02/2020,3699528-532894,"4,037.60",OIL NRG LTD.
Regeneration and Local Services,Technical Services CM0300,Supplies and Services,304221,Equipment and Materials,05/02/2020,3699379-2001\026,"1,443.45",EPPLETON QUARRY PRODUCTS LTD.
Regeneration and Local Services,Technical Services CM0300,Supplies and Services,304221,Equipment and Materials,05/02/2020,3699379-2001\078,"3,661.60",EPPLETON QUARRY PRODUCTS LTD.
Regeneration and Local Services,Technical Services CM0300,Third Party Payments,430100,Rendered by Private Contractors,05/02/2020,3699561-163192,"7,547.95",PREMIER TRAFFIC MANAGEMENT LTD.
Regeneration and Local Services,Technical Services CM0300,Third Party Payments,430100,Rendered by Private Contractors,05/02/2020,3699607-15455,"1,092.00",STEADFAST SECURITY SOLUTIONS LTD.
Regeneration and Local Services,Technical Services CM0300,Supplies and Services,304221,Equipment and Materials,05/02/2020,3699613-127023,"1,009.44",STONEGRAVE AGGREGATES LTD.
Regeneration and Local Services,Corporate Property and Land,Construction work A908,908105,Construction work,05/02/2020,3699456-10003885,"863,940.78",KIER PROPERTY DEVELOPMENTS LTD.
Regeneration and Local Services,Transport and Contracted Services,Third Party Payments,430106,Rendered by Private Contractors,05/02/2020,3699565-2099,"4,255.08",R COOPER T/A DC TAXIS.
Regeneration and Local Services,Corporate Property and Land,Supplies and Services,338066,Services,05/02/2020,3699278-APP0000000473,"27,477.50",ALIGN PROPERTY PARTNERS LTD.
Regeneration and Local Services,Development and Housing,Cap Exp on Grants & Other Financial Assistance (REFCUS),918004,Contributions to other bodies 918004,05/02/2020,3699403-RED-02-2020-004,"5,000.00",GLOSSOP MOUNT LTD.
Adult and Health Services,Head of Adults,Transport,230005,Contract Hire,05/02/2020,3699445-08-EAS192,990.00,JOHN CRAKE & SONS MINI BUSES LTD.
Adult and Health Services,Head of Adults,Transport,230005,Contract Hire,05/02/2020,3699504-202004,602.16,MR JR FORT T/A JRF TAXIS.
Adult and Health Services,Head of Adults,Transport,230005,Contract Hire,05/02/2020,3699537-91,960.00,PAUL B TAXIS.
Adult and Health Services,Head of Adults,Transport,230005,Contract Hire,05/02/2020,3699268-12014,700.26,24/7 TAXI SERVICES LTD.
Adult and Health Services,Head of Adults,Transport,230005,Contract Hire,05/02/2020,3699418-05/01,828.00,HARDIP SINGH MAHIL T/A AMBER CARS.
Adult and Health Services,Head of Adults,Transport,230005,Contract Hire,05/02/2020,3699445-09-DM112,990.00,JOHN CRAKE & SONS MINI BUSES LTD.
Adult and Health Services,Head of Adults,Transport,230005,Contract Hire,05/02/2020,3699445-11-SED126,"1,760.00",JOHN CRAKE & SONS MINI BUSES LTD.
Adult and Health Services,Head of Adults,Transport,230005,Contract Hire,05/02/2020,3699459-005-SLD017,"2,380.00",KULDEEP MAHIL T/A KOLARS CAB.
Adult and Health Services,Head of Adults,Transport,230005,Contract Hire,05/02/2020,3699500-EDB/1/01-20,956.20,MR CT WALKER T/A CW TAXIS.
Adult and Health Services,Head of Adults,Transport,230005,Contract Hire,05/02/2020,3699501-0120,"1,026.00",MR D DONNELLY.
Adult and Health Services,Head of Adults,Transport,230005,Contract Hire,05/02/2020,3699547-911,"1,695.80",PETER`S PRIVATE HIRE/PETER BEST.
Adult and Health Services,Head of Adults,Transport,230005,Contract Hire,05/02/2020,3699290-04081,632.76,ATLAS TAXIS CONSETT.
Adult and Health Services,Head of Adults,Transport,230005,Contract Hire,05/02/2020,3699353-FOO5,708.00,DAVID BRIDDICK T/A COUNDONS TAXIS.
Adult and Health Services,Head of Adults,Transport,230005,Contract Hire,05/02/2020,3699427-IR2001002,"1,900.00",I & R EXECUTIVE TRAVEL.
Adult and Health Services,Head of Adults,Transport,230005,Contract Hire,05/02/2020,3699446-17-JAN2020,520.00,JOHN GARLAND.
Adult and Health Services,Head of Adults,Transport,230005,Contract Hire,05/02/2020,3699465-1810,"1,592.36",LD TAXIS.
Adult and Health Services,Head of Adults,Transport,230005,Contract Hire,05/02/2020,3699518-252,"2,500.00",NEVILLE FORBES T/A FORBES TAXIS.
Adult and Health Services,Head of Adults,Transport,230005,Contract Hire,05/02/2020,3699548-DM204/1,"1,320.00",PETER`S TAXIS.
Adult and Health Services,Head of Adults,Transport,230005,Contract Hire,05/02/2020,3699594-2021,"1,804.00",SIMONS TAXIS.
Adult and Health Services,Head of Adults,Transport,230005,Contract Hire,05/02/2020,3699611-035,720.00,STEVEN HENDERSON T/A HENDYS TAXIS.
Regeneration and Local Services,Culture Sport and Tourism,Supplies and Services,384199,Miscellaneous Expenses,05/02/2020,3699607-15371,"1,570.80",STEADFAST SECURITY SOLUTIONS LTD.
Regeneration and Local Services,Culture Sport and Tourism,Supplies and Services,338047,Services,05/02/2020,3699553-INV09094,833.33,PICTUREHOUSE CINEMAS LTD.
Regeneration and Local Services,Culture Sport and Tourism,Supplies and Services,384199,Miscellaneous Expenses,05/02/2020,3699343-CWD-JANUARY20-01,"1,562.50",CRAIG WILLIAM DAVIDSON (THEATRE CONTRACTOR).
Regeneration and Local Services,Culture Sport and Tourism,Supplies and Services,384199,Miscellaneous Expenses,05/02/2020,3699356-20-002,"4,025.00",DCLX LTD (LIGHTING CONSULTANT).
Resources BK0010,Digital and Customer Services,Supplies and Services,342051,Computers and Communications,05/02/2020,3699530-1742704,"8,836.87",ORACLE CORPORATION UK LTD.
Resources BK0010,Legal & Democratic Services,Supplies and Services,338042,Services,05/02/2020,3699639-263968/INVGM210,650.00,TRINITY CHAMBERS.
Children and Young Peoples Services,Head of Early Help Inclusion & Vulnerable Children.,Transport,230007,Contract Hire,05/02/2020,3699447-185,"1,121.00",JOHN ROBSON T/A ACE TAXIS.
Children and Young Peoples Services,Head of Education and Skills,Transport,230034,Contract Hire,05/02/2020,3699548-3422/1,"1,000.00",PETER`S TAXIS.
Children and Young Peoples Services,Head of Education and Skills,Transport,230007,Contract Hire,05/02/2020,3699482-INV01/2026,532.00,MARK & JOHN CHISHOLM T/A (CHEVRON).
Children and Young Peoples Services,Head of Education and Skills,Transport,230007,Contract Hire,05/02/2020,3699606-55132,903.64,STANLEY TRAVEL (NORTH EAST) LTD.
Children and Young Peoples Services,Head of Education and Skills,Transport,230007,Contract Hire,05/02/2020,3699290-04082,608.00,ATLAS TAXIS CONSETT.
Children and Young Peoples Services,Head of Education and Skills,Transport,230007,Contract Hire,05/02/2020,3699290-04074,646.00,ATLAS TAXIS CONSETT.
Children and Young Peoples Services,Head of Education and Skills,Transport,230007,Contract Hire,05/02/2020,3699332-1162,"1,066.20",CLIVE HUBERY.
Children and Young Peoples Services,Head of Education and Skills,Transport,230007,Contract Hire,05/02/2020,3699522-6413,"2,161.06",NORTH EAST COACHWAYS LTD.
Children and Young Peoples Services,Head of Education and Skills,Transport,230007,Contract Hire,05/02/2020,3699540-1076/3037,"1,900.00",PBS TRAVEL LTD.
Children and Young Peoples Services,Head of Education and Skills,Transport,230007,Contract Hire,05/02/2020,3699540-1076/3065,"1,881.00",PBS TRAVEL LTD.
Children and Young Peoples Services,Head of Education and Skills,Transport,230007,Contract Hire,05/02/2020,3699569-77C-JANUARY,"1,557.80",RAYNERS COACHES.
Children and Young Peoples Services,Head of Education and Skills,Transport,230012,Contract Hire,05/02/2020,3699494-KDC-0112020,"2,599.77",MJ TIMNEY T/A KDC & C&M TAXIS.
Children and Young Peoples Services,Head of Education and Skills,Transport,230012,Contract Hire,05/02/2020,3699500-CHPK01-19JAN,"1,685.30",MR CT WALKER T/A CW TAXIS.
Children and Young Peoples Services,Head of Education and Skills,Transport,230007,Contract Hire,05/02/2020,3699547-908,"2,141.49",PETER`S PRIVATE HIRE/PETER BEST.
Children and Young Peoples Services,Head of Education and Skills,Transport,230012,Contract Hire,05/02/2020,3699268-12021,"2,603.00",24/7 TAXI SERVICES LTD.
Children and Young Peoples Services,Head of Education and Skills,Transport,230034,Contract Hire,05/02/2020,3699547-919,"1,368.00",PETER`S PRIVATE HIRE/PETER BEST.
Children and Young Peoples Services,Head of Education and Skills,Transport,230007,Contract Hire,05/02/2020,3699453-1051,"2,040.00",K & R TAXIS (STANLEY).
Children and Young Peoples Services,Head of Education and Skills,Transport,230012,Contract Hire,05/02/2020,3699557-1339,"1,420.00",PODA TAXIS LTD.
Children and Young Peoples Services,Head of Education and Skills,Transport,230008,Contract Hire,05/02/2020,3699545-647,"1,330.00",PETERLEE EXECUTIVE CARS.
Children and Young Peoples Services,Head of Education and Skills,Transport,230008,Contract Hire,05/02/2020,3699632-0002141,"2,280.00",TONY RIDLEY T/A COLORS TAXIS LTD.
Children and Young Peoples Services,Head of Education and Skills,Transport,230007,Contract Hire,05/02/2020,3699353-H005,638.40,DAVID BRIDDICK T/A COUNDONS TAXIS.
Children and Young Peoples Services,Head of Education and Skills,Transport,230034,Contract Hire,05/02/2020,3699268-12003,"1,900.00",24/7 TAXI SERVICES LTD.
Children and Young Peoples Services,Head of Education and Skills,Transport,230007,Contract Hire,05/02/2020,3699268-12004,"1,023.00",24/7 TAXI SERVICES LTD.
Children and Young Peoples Services,Head of Education and Skills,Transport,230007,Contract Hire,05/02/2020,3699302-047,"2,400.00",BL CARS.
Children and Young Peoples Services,Head of Education and Skills,Transport,230034,Contract Hire,05/02/2020,3699545-648,"1,000.00",PETERLEE EXECUTIVE CARS.
Children and Young Peoples Services,Head of Education and Skills,Transport,230007,Contract Hire,05/02/2020,3699544-19,"1,100.00",PETER NAYLOR.
Children and Young Peoples Services,Head of Education and Skills,Transport,230007,Contract Hire,05/02/2020,3699544-17,"1,640.08",PETER NAYLOR.
Children and Young Peoples Services,Head of Education and Skills,Transport,230003,Contract Hire,05/02/2020,3699606-55135,"5,960.00",STANLEY TRAVEL (NORTH EAST) LTD.
Children and Young Peoples Services,Head of Education and Skills,Transport,230007,Contract Hire,05/02/2020,3699395-22080/4034,"2,642.40",GARNETTS LTD (COACHES).
Children and Young Peoples Services,Head of Education and Skills,Transport,230007,Contract Hire,05/02/2020,3699395-22080/4035,"2,435.60",GARNETTS LTD (COACHES).
Children and Young Peoples Services,Head of Education and Skills,Transport,230007,Contract Hire,05/02/2020,3699395-22080/4036,"2,642.40",GARNETTS LTD (COACHES).
Children and Young Peoples Services,Head of Education and Skills,Transport,230007,Contract Hire,05/02/2020,3699395-22080/4037,"4,871.60",GARNETTS LTD (COACHES).
Children and Young Peoples Services,Head of Education and Skills,Transport,230007,Contract Hire,05/02/2020,3699395-22080/4038,"2,435.60",GARNETTS LTD (COACHES).
Children and Young Peoples Services,Head of Education and Skills,Transport,230007,Contract Hire,05/02/2020,3699300-4-4408,"1,180.00",BENNETTS TAXIS.
Children and Young Peoples Services,Head of Education and Skills,Transport,230007,Contract Hire,05/02/2020,3699366-29185,"2,064.20",DURHAM CITY COACHES.
Children and Young Peoples Services,Head of Education and Skills,Transport,230003,Contract Hire,05/02/2020,3699395-22083/3302,"3,401.00",GARNETTS LTD (COACHES).
Children and Young Peoples Services,Head of Education and Skills,Transport,230034,Contract Hire,05/02/2020,3699548-3423/1,"1,100.00",PETER`S TAXIS.
Children and Young Peoples Services,Head of Education and Skills,Transport,230035,Contract Hire,05/02/2020,3699272-A14SW,824.36,AABAT TAXIS.
Children and Young Peoples Services,Head of Education and Skills,Transport,230007,Contract Hire,05/02/2020,3699395-22086,"2,980.00",GARNETTS LTD (COACHES).
Children and Young Peoples Services,Head of Education and Skills,Transport,230007,Contract Hire,05/02/2020,3699395-22081,"2,720.00",GARNETTS LTD (COACHES).
Children and Young Peoples Services,Head of Education and Skills,Transport,230003,Contract Hire,05/02/2020,3699395-22081/3020,"2,880.00",GARNETTS LTD (COACHES).
Children and Young Peoples Services,Head of Education and Skills,Transport,230003,Contract Hire,05/02/2020,3699395-22081/3024,"2,380.00",GARNETTS LTD (COACHES).
Children and Young Peoples Services,Head of Education and Skills,Transport,230003,Contract Hire,05/02/2020,3699395-22081/3027,"2,540.00",GARNETTS LTD (COACHES).
Children and Young Peoples Services,Head of Education and Skills,Transport,230003,Contract Hire,05/02/2020,3699395-22081/3028,"2,780.00",GARNETTS LTD (COACHES).
Children and Young Peoples Services,Head of Education and Skills,Transport,230007,Contract Hire,05/02/2020,3699395-22081/3029,"2,860.00",GARNETTS LTD (COACHES).
Children and Young Peoples Services,Head of Education and Skills,Transport,230007,Contract Hire,05/02/2020,3699540-1076/3058,"1,700.00",PBS TRAVEL LTD.
Children and Young Peoples Services,Head of Education and Skills,Transport,230007,Contract Hire,05/02/2020,3699438-2969,"1,623.20",JEFF ANDERSON COACHES LTD.
Children and Young Peoples Services,Head of Education and Skills,Transport,230035,Contract Hire,05/02/2020,3699276-INV-000026,840.00,AJT CARS (TAXIS).
Children and Young Peoples Services,Head of Education and Skills,Transport,230007,Contract Hire,05/02/2020,3699395-22079,"2,471.80",GARNETTS LTD (COACHES).
Children and Young Peoples Services,Head of Education and Skills,Transport,230007,Contract Hire,05/02/2020,3699395-22085,"6,023.00",GARNETTS LTD (COACHES).
Children and Young Peoples Services,Head of Education and Skills,Transport,230007,Contract Hire,05/02/2020,3699405-72446,"7,882.34",GO GATESHEAD LTD.
Children and Young Peoples Services,Head of Education and Skills,Transport,230034,Contract Hire,05/02/2020,3699407-62,"1,586.00",GP TAXIS.
Children and Young Peoples Services,Head of Education and Skills,Transport,230007,Contract Hire,05/02/2020,3699569-25C-4005,"4,286.00",RAYNERS COACHES.
Children and Young Peoples Services,Head of Education and Skills,Transport,230007,Contract Hire,05/02/2020,3699569-78E,"2,461.40",RAYNERS COACHES.
Children and Young Peoples Services,Head of Education and Skills,Transport,230007,Contract Hire,05/02/2020,3699292-310120,"1,188.00",AVALON TAXIS.
Children and Young Peoples Services,Head of Education and Skills,Transport,230007,Contract Hire,05/02/2020,3699395-22087/4227,"3,580.00",GARNETTS LTD (COACHES).
Children and Young Peoples Services,Head of Education and Skills,Transport,230007,Contract Hire,05/02/2020,3699395-22087/4404,"14,320.00",GARNETTS LTD (COACHES).
Children and Young Peoples Services,Head of Education and Skills,Transport,230007,Contract Hire,05/02/2020,3699500-DJS01-20,"1,480.20",MR CT WALKER T/A CW TAXIS.
Children and Young Peoples Services,Head of Education and Skills,Transport,230034,Contract Hire,05/02/2020,3699611-034,"1,400.00",STEVEN HENDERSON T/A HENDYS TAXIS.
Children and Young Peoples Services,Head of Education and Skills,Transport,230007,Contract Hire,05/02/2020,3699482-INV01/2013,"1,480.00",MARK & JOHN CHISHOLM T/A (CHEVRON).
Children and Young Peoples Services,Head of Education and Skills,Transport,230007,Contract Hire,05/02/2020,3699482-INV01/2023,"1,406.00",MARK & JOHN CHISHOLM T/A (CHEVRON).
Children and Young Peoples Services,Head of Education and Skills,Transport,230007,Contract Hire,05/02/2020,3699395-22077,"4,980.00",GARNETTS LTD (COACHES).
Children and Young Peoples Services,Head of Education and Skills,Transport,230009,Contract Hire,05/02/2020,3699292-31120,"2,280.00",AVALON TAXIS.
Children and Young Peoples Services,Head of Education and Skills,Transport,230007,Contract Hire,05/02/2020,3699366-29186,"2,691.35",DURHAM CITY COACHES.
Children and Young Peoples Services,Head of Education and Skills,Transport,230007,Contract Hire,05/02/2020,3699366-29187,"2,816.94",DURHAM CITY COACHES.
Children and Young Peoples Services,Head of Education and Skills,Transport,230007,Contract Hire,05/02/2020,3699522-6411,"2,375.00",NORTH EAST COACHWAYS LTD.
Children and Young Peoples Services,Head of Education and Skills,Transport,230007,Contract Hire,05/02/2020,3699547-915,"1,613.48",PETER`S PRIVATE HIRE/PETER BEST.
Children and Young Peoples Services,Head of Education and Skills,Transport,230007,Contract Hire,05/02/2020,3699577-1393,"2,771.72",ROBERTS TOURS.
Children and Young Peoples Services,Head of Education and Skills,Transport,230007,Contract Hire,05/02/2020,3699577-1394,"2,922.77",ROBERTS TOURS.
Children and Young Peoples Services,Head of Education and Skills,Transport,230007,Contract Hire,05/02/2020,3699577-1395,"2,312.87",ROBERTS TOURS.
Children and Young Peoples Services,Head of Education and Skills,Transport,230003,Contract Hire,05/02/2020,3699366-29183,"2,755.00",DURHAM CITY COACHES.
Children and Young Peoples Services,Head of Education and Skills,Transport,230003,Contract Hire,05/02/2020,3699395-22083/3301,"3,401.00",GARNETTS LTD (COACHES).
Children and Young Peoples Services,Head of Education and Skills,Transport,230003,Contract Hire,05/02/2020,3699395-22083/3303,"3,401.00",GARNETTS LTD (COACHES).
Children and Young Peoples Services,Head of Education and Skills,Transport,230003,Contract Hire,05/02/2020,3699522-6412,"3,420.00",NORTH EAST COACHWAYS LTD.
Children and Young Peoples Services,Head of Education and Skills,Transport,230034,Contract Hire,05/02/2020,3699268-12005,"1,600.00",24/7 TAXI SERVICES LTD.
Children and Young Peoples Services,Head of Education and Skills,Transport,230007,Contract Hire,05/02/2020,3699395-22078,"4,900.00",GARNETTS LTD (COACHES).
Children and Young Peoples Services,Head of Education and Skills,Transport,230007,Contract Hire,05/02/2020,3699522-6409,"3,682.20",NORTH EAST COACHWAYS LTD.
Children and Young Peoples Services,Head of Education and Skills,Transport,230007,Contract Hire,05/02/2020,3699522-6414,"2,200.00",NORTH EAST COACHWAYS LTD.
Children and Young Peoples Services,Head of Education and Skills,Transport,230034,Contract Hire,05/02/2020,3699545-645,"1,987.20",PETERLEE EXECUTIVE CARS.
Children and Young Peoples Services,Head of Education and Skills,Transport,230003,Contract Hire,05/02/2020,3699297-STJOHNS8030120,"2,660.00",BELL BROTHERS TRAVEL.
Children and Young Peoples Services,Head of Education and Skills,Transport,230003,Contract Hire,05/02/2020,3699395-22084,"6,042.00",GARNETTS LTD (COACHES).
Children and Young Peoples Services,Head of Education and Skills,Transport,230003,Contract Hire,05/02/2020,3699395-22084/3004,"3,116.00",GARNETTS LTD (COACHES).
Children and Young Peoples Services,Head of Education and Skills,Transport,230003,Contract Hire,05/02/2020,3699395-22084/3005,"5,662.00",GARNETTS LTD (COACHES).
Children and Young Peoples Services,Head of Education and Skills,Transport,230003,Contract Hire,05/02/2020,3699395-22084/3008,"3,211.00",GARNETTS LTD (COACHES).
Children and Young Peoples Services,Head of Education and Skills,Transport,230003,Contract Hire,05/02/2020,3699395-22084/3203,"3,021.00",GARNETTS LTD (COACHES).
Children and Young Peoples Services,Head of Education and Skills,Transport,230003,Contract Hire,05/02/2020,3699395-22084/3262,"2,983.00",GARNETTS LTD (COACHES).
Children and Young Peoples Services,Head of Education and Skills,Transport,230003,Contract Hire,05/02/2020,3699395-22084/3333,"3,192.00",GARNETTS LTD (COACHES).
Children and Young Peoples Services,Head of Education and Skills,Transport,230034,Contract Hire,05/02/2020,3699268-12002,"1,768.14",24/7 TAXI SERVICES LTD.
Children and Young Peoples Services,Head of Education and Skills,Transport,230003,Contract Hire,05/02/2020,3699522-6410,"2,200.00",NORTH EAST COACHWAYS LTD.
Children and Young Peoples Services,Head of Education and Skills,Transport,230008,Contract Hire,05/02/2020,3699268-12007,"2,210.00",24/7 TAXI SERVICES LTD.
Children and Young Peoples Services,Head of Education and Skills,Transport,230008,Contract Hire,05/02/2020,3699268-12009,"2,613.96",24/7 TAXI SERVICES LTD.
Children and Young Peoples Services,Head of Education and Skills,Transport,230034,Contract Hire,05/02/2020,3699304-28764,625.65,BLUELINE TAXIS.
Children and Young Peoples Services,Head of Education and Skills,Transport,230008,Contract Hire,05/02/2020,3699346-109992,"3,610.00",CROFT BUSINESS SERVICES (UK) LTD T/A CROFT TAXIS.
Children and Young Peoples Services,Head of Education and Skills,Transport,230008,Contract Hire,05/02/2020,3699346-109994,"2,374.20",CROFT BUSINESS SERVICES (UK) LTD T/A CROFT TAXIS.
Children and Young Peoples Services,Head of Education and Skills,Transport,230008,Contract Hire,05/02/2020,3699346-109996,"3,171.10",CROFT BUSINESS SERVICES (UK) LTD T/A CROFT TAXIS.
Children and Young Peoples Services,Head of Education and Skills,Transport,230008,Contract Hire,05/02/2020,3699399-20,640.00,GERARD MCLOUGHLIN T/A GMAC TAXIS.
Children and Young Peoples Services,Head of Education and Skills,Transport,230008,Contract Hire,05/02/2020,3699446-21JAN,"2,720.00",JOHN GARLAND.
Children and Young Peoples Services,Head of Education and Skills,Transport,230008,Contract Hire,05/02/2020,3699465-1809,"2,135.60",LD TAXIS.
Children and Young Peoples Services,Head of Education and Skills,Transport,230008,Contract Hire,05/02/2020,3699465-1811,"1,800.00",LD TAXIS.
Children and Young Peoples Services,Head of Education and Skills,Transport,230006,Contract Hire,05/02/2020,3699465-1812,600.00,LD TAXIS.
Children and Young Peoples Services,Head of Education and Skills,Transport,230008,Contract Hire,05/02/2020,3699476-37,"2,218.44",M&C`S CABS LTD.
Children and Young Peoples Services,Head of Education and Skills,Transport,230007,Contract Hire,05/02/2020,3699507-012020/RS,"1,425.60",MR RICHARD STANDLEY T/A RS TAXI SERVICES.
Children and Young Peoples Services,Head of Education and Skills,Transport,230008,Contract Hire,05/02/2020,3699516-60,"1,909.60",NEIL PASSMOOR T/A NEIL`S TAXI.
Children and Young Peoples Services,Head of Education and Skills,Transport,230034,Contract Hire,05/02/2020,3699544-18,"1,482.00",PETER NAYLOR.
Children and Young Peoples Services,Head of Education and Skills,Transport,230006,Contract Hire,05/02/2020,3699547-916,"1,501.00",PETER`S PRIVATE HIRE/PETER BEST.
Children and Young Peoples Services,Head of Education and Skills,Transport,230008,Contract Hire,05/02/2020,3699549-54,"1,740.46",PHILLIP BOYD T/A FILS TAXIS.
Children and Young Peoples Services,Head of Education and Skills,Transport,230006,Contract Hire,05/02/2020,3699610-2004,"2,250.00",STEPHEN REED T/A STEVE`S TAXIS.
Children and Young Peoples Services,Head of Education and Skills,Transport,230034,Contract Hire,05/02/2020,3699612-SI-308,"1,700.00",STEVEN PRATT T/A PTL TAXIS DURHAM.
Children and Young Peoples Services,Head of Education and Skills,Transport,230034,Contract Hire,05/02/2020,3699268-12001,"2,280.00",24/7 TAXI SERVICES LTD.
Children and Young Peoples Services,Head of Education and Skills,Transport,230007,Contract Hire,05/02/2020,3699290-04076,745.75,ATLAS TAXIS CONSETT.
Children and Young Peoples Services,Head of Education and Skills,Transport,230007,Contract Hire,05/02/2020,3699544-20,"1,056.40",PETER NAYLOR.
Children and Young Peoples Services,Head of Education and Skills,Transport,230034,Contract Hire,05/02/2020,3699396-GS005-31/1/20,"1,330.00",GARY JACKSON PRIVATE HIRE.
Children and Young Peoples Services,Head of Education and Skills,Transport,230007,Contract Hire,05/02/2020,3699396-ST005,586.25,GARY JACKSON PRIVATE HIRE.
Children and Young Peoples Services,Head of Education and Skills,Transport,230003,Contract Hire,05/02/2020,3699606-55136,"3,192.00",STANLEY TRAVEL (NORTH EAST) LTD.
Children and Young Peoples Services,Head of Education and Skills,Transport,230003,Contract Hire,05/02/2020,3699606-55137,"1,672.00",STANLEY TRAVEL (NORTH EAST) LTD.
Children and Young Peoples Services,Head of Education and Skills,Transport,230003,Contract Hire,05/02/2020,3699606-55138,"3,515.00",STANLEY TRAVEL (NORTH EAST) LTD.
Children and Young Peoples Services,Head of Education and Skills,Transport,230003,Contract Hire,05/02/2020,3699606-55139,"3,515.00",STANLEY TRAVEL (NORTH EAST) LTD.
Children and Young Peoples Services,Head of Education and Skills,Transport,230003,Contract Hire,05/02/2020,3699606-55140,"2,850.00",STANLEY TRAVEL (NORTH EAST) LTD.
Children and Young Peoples Services,Head of Education and Skills,Transport,230008,Contract Hire,05/02/2020,3699346-110002,"2,823.80",CROFT BUSINESS SERVICES (UK) LTD T/A CROFT TAXIS.
Children and Young Peoples Services,Head of Education and Skills,Transport,230008,Contract Hire,05/02/2020,3699346-110004,"2,942.72",CROFT BUSINESS SERVICES (UK) LTD T/A CROFT TAXIS.
Children and Young Peoples Services,Head of Education and Skills,Transport,230008,Contract Hire,05/02/2020,3699346-110005,"2,995.76",CROFT BUSINESS SERVICES (UK) LTD T/A CROFT TAXIS.
Children and Young Peoples Services,Head of Education and Skills,Transport,230008,Contract Hire,05/02/2020,3699268-12011,"2,922.10",24/7 TAXI SERVICES LTD.
Children and Young Peoples Services,Head of Education and Skills,Transport,230008,Contract Hire,05/02/2020,3699506-25A-JANUARY,"1,515.83",MR RAYMOND RENWICK T/A RAY`S TAXIS & MINIBUSES.
Children and Young Peoples Services,Head of Education and Skills,Transport,230008,Contract Hire,05/02/2020,3699346-109999,"2,247.32",CROFT BUSINESS SERVICES (UK) LTD T/A CROFT TAXIS.
Children and Young Peoples Services,Head of Education and Skills,Transport,230008,Contract Hire,05/02/2020,3699346-110003,"2,445.49",CROFT BUSINESS SERVICES (UK) LTD T/A CROFT TAXIS.
Children and Young Peoples Services,Head of Education and Skills,Transport,230008,Contract Hire,05/02/2020,3699446-20-N323,"1,520.00",JOHN GARLAND.
Children and Young Peoples Services,Head of Education and Skills,Transport,230008,Contract Hire,05/02/2020,3699606-55134,"2,641.00",STANLEY TRAVEL (NORTH EAST) LTD.
Children and Young Peoples Services,Head of Education and Skills,Transport,230008,Contract Hire,05/02/2020,3699268-12012,"3,736.80",24/7 TAXI SERVICES LTD.
Children and Young Peoples Services,Head of Education and Skills,Transport,230008,Contract Hire,05/02/2020,3699268-12020,"3,000.00",24/7 TAXI SERVICES LTD.
Children and Young Peoples Services,Head of Education and Skills,Transport,230008,Contract Hire,05/02/2020,3699346-110000,"2,673.30",CROFT BUSINESS SERVICES (UK) LTD T/A CROFT TAXIS.
Children and Young Peoples Services,Head of Education and Skills,Transport,230008,Contract Hire,05/02/2020,3699482-INV01/2020,"2,800.00",MARK & JOHN CHISHOLM T/A (CHEVRON).
Children and Young Peoples Services,Head of Education and Skills,Transport,230008,Contract Hire,05/02/2020,3699579-5-JANUARY,"2,000.00",ROUTE 1.
Children and Young Peoples Services,Head of Education and Skills,Transport,230008,Contract Hire,05/02/2020,3699435-0741,"2,323.70",JACKSON`S TAXI.
Children and Young Peoples Services,Head of Education and Skills,Transport,230008,Contract Hire,05/02/2020,3699268-12013,"1,900.00",24/7 TAXI SERVICES LTD.
Children and Young Peoples Services,Head of Education and Skills,Transport,230008,Contract Hire,05/02/2020,3699427-IR2001003,"2,146.24",I & R EXECUTIVE TRAVEL.
Children and Young Peoples Services,Head of Education and Skills,Transport,230008,Contract Hire,05/02/2020,3699482-INV01/2010,"2,027.30",MARK & JOHN CHISHOLM T/A (CHEVRON).
Children and Young Peoples Services,Head of Education and Skills,Transport,230008,Contract Hire,05/02/2020,3699499-5JAN,"1,634.00",MR BW YOUNG T/A ESH TAXIS.
Children and Young Peoples Services,Head of Education and Skills,Transport,230008,Contract Hire,05/02/2020,3699547-0910,"1,835.78",PETER`S PRIVATE HIRE/PETER BEST.
Children and Young Peoples Services,Head of Education and Skills,Transport,230008,Contract Hire,05/02/2020,3699547-0914,707.18,PETER`S PRIVATE HIRE/PETER BEST.
Children and Young Peoples Services,Head of Education and Skills,Transport,230008,Contract Hire,05/02/2020,3699547-0920,"1,596.00",PETER`S PRIVATE HIRE/PETER BEST.
Children and Young Peoples Services,Head of Education and Skills,Transport,230008,Contract Hire,05/02/2020,3699547-909,"3,478.90",PETER`S PRIVATE HIRE/PETER BEST.
Children and Young Peoples Services,Head of Education and Skills,Transport,230008,Contract Hire,05/02/2020,3699482-INV01/2018,"2,090.00",MARK & JOHN CHISHOLM T/A (CHEVRON).
Children and Young Peoples Services,Head of Education and Skills,Transport,230007,Contract Hire,05/02/2020,3699548-N103/1,"2,090.00",PETER`S TAXIS.
Children and Young Peoples Services,Head of Education and Skills,Transport,230008,Contract Hire,05/02/2020,3699308-N036-JAN,"1,908.00",BOWES TRAVEL.
Children and Young Peoples Services,Head of Education and Skills,Transport,230008,Contract Hire,05/02/2020,3699316-BIL0183,"1,060.80",CA MUSGROVE.
Children and Young Peoples Services,Head of Education and Skills,Transport,230008,Contract Hire,05/02/2020,3699336-1562,"1,952.00",CONNORS MINI BUSES.*
Children and Young Peoples Services,Head of Education and Skills,Transport,230008,Contract Hire,05/02/2020,3699336-1563,"2,279.40",CONNORS MINI BUSES.*
Children and Young Peoples Services,Head of Education and Skills,Transport,230008,Contract Hire,05/02/2020,3699336-1564,"1,994.40",CONNORS MINI BUSES.*
Children and Young Peoples Services,Head of Education and Skills,Transport,230008,Contract Hire,05/02/2020,3699336-1565,"2,546.20",CONNORS MINI BUSES.*
Children and Young Peoples Services,Head of Education and Skills,Transport,230008,Contract Hire,05/02/2020,3699346-110001,"2,620.00",CROFT BUSINESS SERVICES (UK) LTD T/A CROFT TAXIS.
Children and Young Peoples Services,Head of Education and Skills,Transport,230016,Contract Hire,05/02/2020,3699427-IR2001001,"2,015.60",I & R EXECUTIVE TRAVEL.
Children and Young Peoples Services,Head of Education and Skills,Transport,230008,Contract Hire,05/02/2020,3699435-0742,"1,700.00",JACKSON`S TAXI.
Children and Young Peoples Services,Head of Education and Skills,Transport,230008,Contract Hire,05/02/2020,3699449-M00928,"1,586.00",JOVIAL PRIVATE HIRE.
Children and Young Peoples Services,Head of Education and Skills,Transport,230008,Contract Hire,05/02/2020,3699449-M01527,"1,251.80",JOVIAL PRIVATE HIRE.
Children and Young Peoples Services,Head of Education and Skills,Transport,230008,Contract Hire,05/02/2020,3699449-M01727,933.40,JOVIAL PRIVATE HIRE.
Children and Young Peoples Services,Head of Education and Skills,Transport,230008,Contract Hire,05/02/2020,3699453-1047,"2,460.00",K & R TAXIS (STANLEY).
Children and Young Peoples Services,Head of Education and Skills,Transport,230008,Contract Hire,05/02/2020,3699453-1048,"2,660.00",K & R TAXIS (STANLEY).
Children and Young Peoples Services,Head of Education and Skills,Transport,230008,Contract Hire,05/02/2020,3699453-1049,"3,186.00",K & R TAXIS (STANLEY).
Children and Young Peoples Services,Head of Education and Skills,Transport,230008,Contract Hire,05/02/2020,3699453-1050,"2,480.00",K & R TAXIS (STANLEY).
Children and Young Peoples Services,Head of Education and Skills,Transport,230008,Contract Hire,05/02/2020,3699453-1052,"2,120.00",K & R TAXIS (STANLEY).
Children and Young Peoples Services,Head of Education and Skills,Transport,230008,Contract Hire,05/02/2020,3699500-DT/4/01-20,"1,268.00",MR CT WALKER T/A CW TAXIS.
Children and Young Peoples Services,Head of Education and Skills,Transport,230006,Contract Hire,05/02/2020,3699500-DT2/01-20,918.80,MR CT WALKER T/A CW TAXIS.
Children and Young Peoples Services,Head of Education and Skills,Transport,230008,Contract Hire,05/02/2020,3699506-24B-JANUARY,"1,697.40",MR RAYMOND RENWICK T/A RAY`S TAXIS & MINIBUSES.
Children and Young Peoples Services,Head of Education and Skills,Transport,230008,Contract Hire,05/02/2020,3699557-1337,"2,848.20",PODA TAXIS LTD.
Children and Young Peoples Services,Head of Education and Skills,Transport,230008,Contract Hire,05/02/2020,3699557-1338,954.75,PODA TAXIS LTD.
Children and Young Peoples Services,Head of Education and Skills,Transport,230008,Contract Hire,05/02/2020,3699569-25C-JANUARY,"2,728.00",RAYNERS COACHES.
Children and Young Peoples Services,Head of Education and Skills,Transport,230008,Contract Hire,05/02/2020,3699632-0002142,"1,700.00",TONY RIDLEY T/A COLORS TAXIS LTD.
Children and Young Peoples Services,Head of Education and Skills,Transport,230008,Contract Hire,05/02/2020,3699395-22088,"3,515.00",GARNETTS LTD (COACHES).
Children and Young Peoples Services,Head of Education and Skills,Transport,230008,Contract Hire,05/02/2020,3699395-22088/S011,"3,021.00",GARNETTS LTD (COACHES).
Children and Young Peoples Services,Head of Education and Skills,Transport,230008,Contract Hire,05/02/2020,3699409-05-W082,"2,280.00",GRAHAM WILLIAMS T/A BUS 2 MINIBUS HIRE.
Children and Young Peoples Services,Head of Education and Skills,Transport,230008,Contract Hire,05/02/2020,3699438-2966,"1,729.57",JEFF ANDERSON COACHES LTD.
Children and Young Peoples Services,Head of Education and Skills,Transport,230008,Contract Hire,05/02/2020,3699438-2967,"1,631.91",JEFF ANDERSON COACHES LTD.
Children and Young Peoples Services,Head of Education and Skills,Transport,230006,Contract Hire,05/02/2020,3699482-INV12/1906,"1,469.20",MARK & JOHN CHISHOLM T/A (CHEVRON).
Children and Young Peoples Services,Head of Education and Skills,Transport,230008,Contract Hire,05/02/2020,3699482-INV12/1907,"1,800.00",MARK & JOHN CHISHOLM T/A (CHEVRON).
Children and Young Peoples Services,Head of Education and Skills,Transport,230008,Contract Hire,05/02/2020,3699498-05,"2,215.40",MR A MILLWARD T/A SWISS CABS PRIVATE HIRE.
Children and Young Peoples Services,Head of Education and Skills,Transport,230008,Contract Hire,05/02/2020,3699632-0002139,"3,919.70",TONY RIDLEY T/A COLORS TAXIS LTD.
Children and Young Peoples Services,Head of Education and Skills,Transport,230008,Contract Hire,05/02/2020,3699391-201,"1,428.80",FRANK ATKINSON T/A FJ MINIBUS TRAVEL.
Children and Young Peoples Services,Head of Education and Skills,Transport,230008,Contract Hire,05/02/2020,3699438-2968,"1,833.31",JEFF ANDERSON COACHES LTD.
Children and Young Peoples Services,Head of Education and Skills,Transport,230006,Contract Hire,05/02/2020,3699346-109991,"3,963.80",CROFT BUSINESS SERVICES (UK) LTD T/A CROFT TAXIS.
Children and Young Peoples Services,Head of Education and Skills,Transport,230008,Contract Hire,05/02/2020,3699496-0016,"2,334.00",MOLLY`S TAXIS LTD.
Children and Young Peoples Services,Head of Education and Skills,Transport,230006,Contract Hire,05/02/2020,3699446-24JAN,"1,000.00",JOHN GARLAND.
Children and Young Peoples Services,Head of Education and Skills,Transport,230008,Contract Hire,05/02/2020,3699479-59,"1,612.53",MALCOLM CARR T/A CARLY CABS.
Children and Young Peoples Services,Head of Education and Skills,Transport,230010,Contract Hire,05/02/2020,3699271-78,"3,100.00",A HJ JOBLING T/A CASTLE TAXIS.
Children and Young Peoples Services,Head of Education and Skills,Transport,230010,Contract Hire,05/02/2020,3699281-B032-JAN,585.00,ANDREW PYGALL T/A ARP TAXIS.
Children and Young Peoples Services,Head of Education and Skills,Transport,230010,Contract Hire,05/02/2020,3699346-109997,"3,388.84",CROFT BUSINESS SERVICES (UK) LTD T/A CROFT TAXIS.
Children and Young Peoples Services,Head of Education and Skills,Transport,230010,Contract Hire,05/02/2020,3699346-110006,"2,428.58",CROFT BUSINESS SERVICES (UK) LTD T/A CROFT TAXIS.
Children and Young Peoples Services,Head of Education and Skills,Transport,230010,Contract Hire,05/02/2020,3699446-22JAN,"2,375.00",JOHN GARLAND.
Children and Young Peoples Services,Head of Education and Skills,Transport,230010,Contract Hire,05/02/2020,3699482-INV01/2001,"2,891.00",MARK & JOHN CHISHOLM T/A (CHEVRON).
Children and Young Peoples Services,Head of Education and Skills,Transport,230010,Contract Hire,05/02/2020,3699482-INV01/2002,"2,280.00",MARK & JOHN CHISHOLM T/A (CHEVRON).
Children and Young Peoples Services,Head of Education and Skills,Transport,230010,Contract Hire,05/02/2020,3699482-INV01/2003,"1,710.00",MARK & JOHN CHISHOLM T/A (CHEVRON).
Children and Young Peoples Services,Head of Education and Skills,Transport,230010,Contract Hire,05/02/2020,3699482-INV01/2004,"2,520.00",MARK & JOHN CHISHOLM T/A (CHEVRON).
Children and Young Peoples Services,Head of Education and Skills,Transport,230010,Contract Hire,05/02/2020,3699482-INV01/2005,"1,710.00",MARK & JOHN CHISHOLM T/A (CHEVRON).
Children and Young Peoples Services,Head of Education and Skills,Transport,230010,Contract Hire,05/02/2020,3699505-02/JAN,853.20,MR MARK WILE T/A HARRY`S TAXIS.
Children and Young Peoples Services,Head of Education and Skills,Transport,230010,Contract Hire,05/02/2020,3699505-02/JAN/02,770.00,MR MARK WILE T/A HARRY`S TAXIS.
Children and Young Peoples Services,Head of Education and Skills,Transport,230010,Contract Hire,05/02/2020,3699611-33/1,"1,235.00",STEVEN HENDERSON T/A HENDYS TAXIS.
Children and Young Peoples Services,Head of Education and Skills,Transport,230010,Contract Hire,05/02/2020,3699629-BL015JANUARY,"1,000.00",THOMAS GLEN.
Children and Young Peoples Services,Head of Education and Skills,Supplies and Services,384984,Miscellaneous Expenses,05/02/2020,3699624-INV00063574,"47,858.75",THE KEY SUPPORT SERVICES LTD.
Children and Young Peoples Services,Head of Education and Skills,Transport,230006,Contract Hire,05/02/2020,3699270-0184,"1,260.48",A HENDERSON T/A CHUCKS TAXIS.
Children and Young Peoples Services,Head of Education and Skills,Transport,230006,Contract Hire,05/02/2020,3699282-5-F805,855.00,ANDREW ROBSON`S TAXI.
Children and Young Peoples Services,Head of Education and Skills,Transport,230006,Contract Hire,05/02/2020,3699282-5/FEB,"1,188.00",ANDREW ROBSON`S TAXI.
Children and Young Peoples Services,Head of Education and Skills,Transport,230006,Contract Hire,05/02/2020,3699290-04084,912.00,ATLAS TAXIS CONSETT.
Children and Young Peoples Services,Head of Education and Skills,Transport,230006,Contract Hire,05/02/2020,3699299-5-F792,753.00,BELMONT TAXIS.
Children and Young Peoples Services,Head of Education and Skills,Transport,230006,Contract Hire,05/02/2020,3699299-5-F792JAN,"1,235.00",BELMONT TAXIS.
Children and Young Peoples Services,Head of Education and Skills,Transport,230006,Contract Hire,05/02/2020,3699418-37,"1,380.00",HARDIP SINGH MAHIL T/A AMBER CARS.
Children and Young Peoples Services,Head of Education and Skills,Transport,230006,Contract Hire,05/02/2020,3699437-DCC0016,720.00,JANICE BRADSHAW T/A JAN PRIVATE HIRE.
Children and Young Peoples Services,Head of Education and Skills,Transport,230006,Contract Hire,05/02/2020,3699444-5,"1,352.90",JOHN BELL TAXI.
Children and Young Peoples Services,Head of Education and Skills,Transport,230006,Contract Hire,05/02/2020,3699547-917,810.00,PETER`S PRIVATE HIRE/PETER BEST.
Children and Young Peoples Services,Head of Education and Skills,Transport,230006,Contract Hire,05/02/2020,3699547-918,"1,680.00",PETER`S PRIVATE HIRE/PETER BEST.
Children and Young Peoples Services,Head of Education and Skills,Transport,230006,Contract Hire,05/02/2020,3699548-F711/1,"1,200.00",PETER`S TAXIS.
Children and Young Peoples Services,Head of Education and Skills,Transport,230006,Contract Hire,05/02/2020,3699548-F789/1,"2,115.00",PETER`S TAXIS.
Children and Young Peoples Services,Head of Education and Skills,Transport,230006,Contract Hire,05/02/2020,3699545-646,896.00,PETERLEE EXECUTIVE CARS.
Children and Young Peoples Services,Head of Education and Skills,Transport,230006,Contract Hire,05/02/2020,3699594-2023,"1,045.28",SIMONS TAXIS.
Children and Young Peoples Services,Head of Education and Skills,Transport,230006,Contract Hire,05/02/2020,3699612-SI-307,810.00,STEVEN PRATT T/A PTL TAXIS DURHAM.
Children and Young Peoples Services,Head of Education and Skills,Transport,230006,Contract Hire,05/02/2020,3699653-F702-JAN,"1,596.00",WAINE SANDERSON T/A 1A CAB.
Dedicated Schools Grant BG0015,DSG High Needs Block,Transport,230009,Contract Hire,05/02/2020,3699268-12018,832.00,24/7 TAXI SERVICES LTD.
Dedicated Schools Grant BG0015,DSG High Needs Block,Transport,230009,Contract Hire,05/02/2020,3699268-12019,"2,055.00",24/7 TAXI SERVICES LTD.
Children and Young Peoples Services,Head of Childrens Social Care,Employees,080025,Agency Staff,05/02/2020,3699398-2435791,"103,113.04",GEOMETRIC RESULTS INTERNATIONAL.
Children and Young Peoples Services,Head of Childrens Social Care,Supplies and Services,384199,Miscellaneous Expenses,05/02/2020,3699348-0327130,"17,555.10",CUMBRIA COUNTY COUNCIL..
Children and Young Peoples Services,Head of Childrens Social Care,Supplies and Services,384199,Miscellaneous Expenses,05/02/2020,3699348-0327131,"4,032.46",CUMBRIA COUNTY COUNCIL..
Children and Young Peoples Services,Head of Childrens Social Care,Supplies and Services,384199,Miscellaneous Expenses,05/02/2020,3699348-0327132,560.34,CUMBRIA COUNTY COUNCIL..
Children and Young Peoples Services,Head of Childrens Social Care,Supplies and Services,384199,Miscellaneous Expenses,05/02/2020,3699348-0329542,"2,453.65",CUMBRIA COUNTY COUNCIL..
Children and Young Peoples Services,Head of Early Help Inclusion & Vulnerable Children.,Supplies and Services,338078,Services,05/02/2020,3699607-15369,"17,091.59",STEADFAST SECURITY SOLUTIONS LTD.
Children and Young Peoples Services,Head of Early Help Inclusion & Vulnerable Children.,Supplies and Services,344137,Telephones,05/02/2020,3699643-117122,"4,800.00",UNIFY BUSINESS SOLUTIONS LTD.
Non-Service Specific,Insurances,Expenditure 8INSEX,810012,Insurance Expenditure,05/02/2020,3699529-172767/NE,"3,104.90",OPENREACH LLU.
Regeneration and Local Services,Environmental Services,Supplies and Services,304221,Equipment and Materials,06/02/2020,3699885-2069,"2,200.00",S & R LANDSCAPES.
Regeneration and Local Services,Environmental Services,Third Party Payments,430101,Rendered by Private Contractors,06/02/2020,3699732-IV1232784,"1,261.61",DIRECT TYRE MANAGEMENT LTD (DTM).
Regeneration and Local Services,Environmental Services,Third Party Payments,430101,Rendered by Private Contractors,06/02/2020,3699732-IVIV1229770,"3,531.88",DIRECT TYRE MANAGEMENT LTD (DTM).
Regeneration and Local Services,Environmental Services,Transport,215005,Running Costs of Vehicles,06/02/2020,3699844-534404,"35,336.47",OIL NRG LTD.
Regeneration and Local Services,Environmental Services,Transport,210057,Repair and Maintenance of Vehicles,06/02/2020,3699956-SI114956,521.00,ZOELLER WASTE SYSTEMS LTD.
Regeneration and Local Services,Environmental Services,Third Party Payments,430100,Rendered by Private Contractors,06/02/2020,3699729-369933,"1,387.06",DENNIS EAGLE LTD.
Regeneration and Local Services,Environmental Services,Transport,230005,Contract Hire,06/02/2020,3699749-8156278,517.50,ENTERPRISE FLEX-E-RENT T/A BURNT TREE GROUP LTD.
Regeneration and Local Services,Environmental Services,Stock A926,926004,Stock,06/02/2020,3699833-INVDUR00313848,554.28,NE TRUCK SPARES LTD (NETS).
Regeneration and Local Services,Environmental Services,Transport,230005,Contract Hire,06/02/2020,3699750-14087413,501.71,ENTERPRISE FLEX-E-RENT T/A BURNT TREE GROUP LTD.
Regeneration and Local Services,Technical Services CM0300,Third Party Payments,430127,Rendered by Private Contractors,06/02/2020,3699885-2051,"1,907.50",S & R LANDSCAPES.
Regeneration and Local Services,Technical Services CM0300,Third Party Payments,430127,Rendered by Private Contractors,06/02/2020,3699885-2052,"3,297.50",S & R LANDSCAPES.
Regeneration and Local Services,Technical Services CM0300,Third Party Payments,430127,Rendered by Private Contractors,06/02/2020,3699885-2053,"1,410.00",S & R LANDSCAPES.
Regeneration and Local Services,Technical Services CM0300,Third Party Payments,430127,Rendered by Private Contractors,06/02/2020,3699885-2054,"3,393.00",S & R LANDSCAPES.
Regeneration and Local Services,Environmental Services,Third Party Payments,430101,Rendered by Private Contractors,06/02/2020,3699732-IV1232786,"2,387.76",DIRECT TYRE MANAGEMENT LTD (DTM).
Regeneration and Local Services,Environmental Services,Third Party Payments,430100,Rendered by Private Contractors,06/02/2020,3699750-13000409489,"1,090.86",ENTERPRISE FLEX-E-RENT T/A BURNT TREE GROUP LTD.
Regeneration and Local Services,Environmental Services,Transport,230005,Contract Hire,06/02/2020,3699750-8156961,596.57,ENTERPRISE FLEX-E-RENT T/A BURNT TREE GROUP LTD.
Regeneration and Local Services,Environmental Services,Transport,215022,Running Costs of Vehicles,06/02/2020,3699844-532893,"1,106.05",OIL NRG LTD.
Regeneration and Local Services,Corporate Property and Land,Supplies and Services,304359,Equipment and Materials,06/02/2020,3699686-BMPR/375/SKIPS,743.05,BISHOP MIDDLEHAM PLANT & RECYCLING LTD.
Regeneration and Local Services,Corporate Property and Land,Premises,145009,Cleaning and Domestic Supplies,06/02/2020,3699682-648C86023,732.40,BIFFA WASTE SERVICES LTD.
Regeneration and Local Services,Environmental Services,Transport,210057,Repair and Maintenance of Vehicles,06/02/2020,3699854-9308,"1,331.20",PETERLEE GLASS CO LTD.
Regeneration and Local Services,Culture Sport and Tourism,Supplies and Services,384199,Miscellaneous Expenses,06/02/2020,3699779-1400A,625.00,HOLLY ARNOLD (AGENT FOR DAN DOHERTY).
Regeneration and Local Services,Culture Sport and Tourism,Supplies and Services,384700,Miscellaneous Expenses,06/02/2020,3699835-1288,"5,000.00",NEW WRITING NORTH LTD.
Regeneration and Local Services,Environmental Services,Transport,215022,Running Costs of Vehicles,06/02/2020,3699844-532895,"1,106.60",OIL NRG LTD.
Regeneration and Local Services,Culture Sport and Tourism,Supplies and Services,338047,Services,06/02/2020,3699941-22314330821-1,568.83,UNIVERSAL PICTURES INTERNATIONAL UK & EIRE LTD.
Regeneration and Local Services,Technical Services CM0300,Third Party Payments,430100,Rendered by Private Contractors,06/02/2020,3699866-163436,691.50,PREMIER TRAFFIC MANAGEMENT LTD.
Regeneration and Local Services,Technical Services CM0300,Third Party Payments,430100,Rendered by Private Contractors,06/02/2020,3699682-207R00345A,627.90,BIFFA WASTE SERVICES LTD.
Regeneration and Local Services,Technical Services CM0300,Third Party Payments,430100,Rendered by Private Contractors,06/02/2020,3699860-5815,"1,729.06",PINKNEY BUILDING CONTRACTORS LTD.
Regeneration and Local Services,Technical Services CM0300,Third Party Payments,430101,Rendered by Private Contractors,06/02/2020,3699860-5822,"4,416.10",PINKNEY BUILDING CONTRACTORS LTD.
Regeneration and Local Services,Technical Services CM0300,Third Party Payments,430100,Rendered by Private Contractors,06/02/2020,3699860-5823,"2,257.14",PINKNEY BUILDING CONTRACTORS LTD.
Regeneration and Local Services,Technical Services CM0300,Third Party Payments,430100,Rendered by Private Contractors,06/02/2020,3699860-5828,"4,331.17",PINKNEY BUILDING CONTRACTORS LTD.
Regeneration and Local Services,Technical Services CM0300,Third Party Payments,430101,Rendered by Private Contractors,06/02/2020,3699860-5829,"4,416.10",PINKNEY BUILDING CONTRACTORS LTD.
Regeneration and Local Services,Technical Services CM0300,Third Party Payments,430100,Rendered by Private Contractors,06/02/2020,3699860-5830,"2,257.14",PINKNEY BUILDING CONTRACTORS LTD.
Regeneration and Local Services,Technical Services CM0300,Third Party Payments,430100,Rendered by Private Contractors,06/02/2020,3699860-5835,"4,771.49",PINKNEY BUILDING CONTRACTORS LTD.
Regeneration and Local Services,Technical Services CM0300,Third Party Payments,430100,Rendered by Private Contractors,06/02/2020,3699860-5836,"2,257.14",PINKNEY BUILDING CONTRACTORS LTD.
Regeneration and Local Services,Technical Services CM0300,Third Party Payments,430100,Rendered by Private Contractors,06/02/2020,3699860-5837,"2,089.16",PINKNEY BUILDING CONTRACTORS LTD.
Regeneration and Local Services,Technical Services CM0300,Third Party Payments,430100,Rendered by Private Contractors,06/02/2020,3699866-163437,"3,640.50",PREMIER TRAFFIC MANAGEMENT LTD.
Regeneration and Local Services,Technical Services CM0300,Supplies and Services,304221,Equipment and Materials,06/02/2020,3699914-127060,"1,057.12",STONEGRAVE AGGREGATES LTD.
Regeneration and Local Services,Technical Services CM0300,Supplies and Services,352001,Conference Expenses,06/02/2020,3699711-INV-2020/39,"3,075.00",CIVIL ENGINEERING CONTRACTORS ASSOC (NE) LTD.
Regeneration and Local Services,Corporate Property and Land,Supplies and Services,304221,Equipment and Materials,06/02/2020,3699744-059-258073,777.65,EDMUNDSON ELECTRICAL LTD.
Regeneration and Local Services,Development and Housing,Supplies and Services,384437,Miscellaneous Expenses,06/02/2020,3699736-29067,800.00,DURHAM CITY COACHES.
Regeneration and Local Services,Development and Housing,Supplies and Services,384700,Miscellaneous Expenses,06/02/2020,3699946-RED-02-2020-021,750.00,VINOVIUM ASSOCIATES LTD.
Regeneration and Local Services,Transport and Contracted Services,Third Party Payments,430106,Rendered by Private Contractors,06/02/2020,3699889-3027,"124,437.13",SCARLET BAND BUS & COACH LTD.
Regeneration and Local Services,Development and Housing,Cap Exp on Grants & Other Financial Assistance (REFCUS),918501,Exp assets not owned by authority,06/02/2020,3699765-RED-02-2020-012,"5,970.40",GAPTEC UK LTD.
Adult and Health Services,Head of Adults,Supplies and Services,304516,Equipment and Materials,06/02/2020,3699683-INV-323,"1,013.00",BILL SCOTT TAXIS LTD.
Adult and Health Services,Head of Adults,Third Party Payments,478151,Purchase of Care,06/02/2020,3699863-13294,"4,161.00",POTENSIAL LTD.
Adult and Health Services,Commissioning inc Supporting People,Third Party Payments,479111,Purchase of Care,06/02/2020,3699830-INV-0506,"2,521.50",MY HOMECARE (DURHAM) LTD.
Regeneration and Local Services,Culture Sport and Tourism,Supplies and Services,340001,Postages E340,06/02/2020,3699834-NEI-HCL-02-2020-002,"1,000.00",NEOPOST LTD.
Regeneration and Local Services,Culture Sport and Tourism,Supplies and Services,304359,Equipment and Materials,06/02/2020,3699686-BMPR/370/SKIPS,614.05,BISHOP MIDDLEHAM PLANT & RECYCLING LTD.
Regeneration and Local Services,Culture Sport and Tourism,Supplies and Services,384302,Miscellaneous Expenses,06/02/2020,3699930-1808,500.00,THE WITHAM.
Transformation and Partnerships,Partnerships & Community Engagement Div.,Cap Exp on Grants & Other Financial Assistance (REFCUS),918004,Contributions to other bodies 918004,06/02/2020,3699822-VOUCHER19AB-TEES010,"5,387.00",MIDDLETON IN TEESDALE & NEWBIGGIN PARISH COUNCIL.
Transformation and Partnerships,Partnerships & Community Engagement Div.,Supplies and Services,384086,Miscellaneous Expenses,06/02/2020,3699892-VOUCHER19NB-EDUR017,"3,270.00",SEAHAM ST MARY THE VIRGIN CHURCH.
Transformation and Partnerships,Partnerships & Community Engagement Div.,Cap Exp on Grants & Other Financial Assistance (REFCUS),918004,Contributions to other bodies 918004,06/02/2020,3699898-VOUCHER19NB-DCTY038,"15,000.00",SHINCLIFFE PARISH COUNCIL.
Transformation and Partnerships,Partnerships & Community Engagement Div.,Cap Exp on Grants & Other Financial Assistance (REFCUS),918004,Contributions to other bodies 918004,06/02/2020,3699950-VOUCHER19NB-DCTY039,"1,972.00",WADDINGTON STREET CENTRE LTD.
Resources BK0010,Digital and Customer Services,Supplies and Services,304303,Equipment and Materials,06/02/2020,3699784-SI-010929,"3,402.00",INFORMATION & DATA NETWORK SUPPLIES LTD (IDN).
Resources BK0010,Legal & Democratic Services,Supplies and Services,384199,Miscellaneous Expenses,06/02/2020,3699841-23389415,"6,372.57",NORTH TYNESIDE COUNCIL.
Children and Young Peoples Services,Head of Education and Skills,Supplies and Services,384199,Miscellaneous Expenses,06/02/2020,3699809-8122,"1,617.00",LEE`S COACHES LTD.
Children and Young Peoples Services,Head of Education and Skills,Transport,230008,Contract Hire,06/02/2020,3699936-121,560.00,TRIDENT TAXIS.
Children and Young Peoples Services,Head of Education and Skills,Supplies and Services,384199,Miscellaneous Expenses,06/02/2020,3699932-RITHIR/00015149A,"2,329.22",THIRTEEN HOUSING GROUP LTD.
Children and Young Peoples Services,Head of Education and Skills,Supplies and Services,384199,Miscellaneous Expenses,06/02/2020,3699780-DW0020/1,811.85,HOME ON THE RANGE LTD.
Children and Young Peoples Services,Head of Education and Skills,Supplies and Services,384199,Miscellaneous Expenses,06/02/2020,3699882-DW0044/1,849.48,ROSEBERRY GRANGE GOLF CLUB.
Dedicated Schools Grant BG0015,DSG High Needs Block,Third Party Payments,410037,Rendered by Other Local Authorities,06/02/2020,3699704-CCSI613,"4,824.33",CATCOTE ACADEMY.
Dedicated Schools Grant BG0015,DSG High Needs Block,Third Party Payments,410037,Rendered by Other Local Authorities,06/02/2020,3699704-CCSI614,"2,724.33",CATCOTE ACADEMY.
Dedicated Schools Grant BG0015,DSG High Needs Block,Third Party Payments,410037,Rendered by Other Local Authorities,06/02/2020,3699704-CCSI615,"2,724.33",CATCOTE ACADEMY.
Children and Young Peoples Services,Head of Education and Skills,Supplies and Services,338035,Services,06/02/2020,3699709-805410747,528.00,CITY & GUILDS OF LONDON INSTITUTE.
Children and Young Peoples Services,Head of Childrens Social Care,Transport,230005,Contract Hire,06/02/2020,3699913-SI-311,560.00,STEVEN PRATT T/A PTL TAXIS DURHAM.
Children and Young Peoples Services,Head of Childrens Social Care,Transport,230005,Contract Hire,06/02/2020,3699913-SI-319,684.00,STEVEN PRATT T/A PTL TAXIS DURHAM.
Children and Young Peoples Services,Head of Childrens Social Care,Transport,230005,Contract Hire,06/02/2020,3699913-SI-338,760.00,STEVEN PRATT T/A PTL TAXIS DURHAM.
Children and Young Peoples Services,Head of Childrens Social Care,Transport,230005,Contract Hire,06/02/2020,3699913-SI-341,785.00,STEVEN PRATT T/A PTL TAXIS DURHAM.
Children and Young Peoples Services,Head of Childrens Social Care,Transport,230005,Contract Hire,06/02/2020,3699913-SI-343,560.00,STEVEN PRATT T/A PTL TAXIS DURHAM.
Children and Young Peoples Services,Head of Childrens Social Care,Transport,230005,Contract Hire,06/02/2020,3699913-SI-344,566.00,STEVEN PRATT T/A PTL TAXIS DURHAM.
Children and Young Peoples Services,Head of Childrens Social Care,Transport,230005,Contract Hire,06/02/2020,3699913-SI-346,515.00,STEVEN PRATT T/A PTL TAXIS DURHAM.
Children and Young Peoples Services,Head of Childrens Social Care,Transport,230005,Contract Hire,06/02/2020,3699899-75410,675.00,SHOTTON PRIVATE HIRE.
Children and Young Peoples Services,Head of Childrens Social Care,Transport,230005,Contract Hire,06/02/2020,3699913-SI-310,520.00,STEVEN PRATT T/A PTL TAXIS DURHAM.
Children and Young Peoples Services,Head of Childrens Social Care,Transport,230005,Contract Hire,06/02/2020,3699913-SI-339,520.00,STEVEN PRATT T/A PTL TAXIS DURHAM.
Children and Young Peoples Services,Head of Childrens Social Care,Transport,230005,Contract Hire,06/02/2020,3699913-SI-348,728.50,STEVEN PRATT T/A PTL TAXIS DURHAM.
Regeneration and Local Services,Environmental Services,Supplies and Services,304221,Equipment and Materials,07/02/2020,3700184-914699881,"1,195.54",NORTHUMBRIAN WATER LTD.
Regeneration and Local Services,Environmental Services,Transport,210057,Repair and Maintenance of Vehicles,07/02/2020,3699985-35176955,945.07,BELL TRUCK SALES LTD T/A BELL TRUCK & VAN.
Regeneration and Local Services,Environmental Services,Transport,210057,Repair and Maintenance of Vehicles,07/02/2020,3700009-398648,636.65,CHATFIELDS T/A EVANS HALSHAW.
Regeneration and Local Services,Environmental Services,Third Party Payments,430100,Rendered by Private Contractors,07/02/2020,3700039-96384767,"1,666.40",DENNIS EAGLE LTD T/A TERBERG MATEC (UK) LTD.
Regeneration and Local Services,Environmental Services,Third Party Payments,430101,Rendered by Private Contractors,07/02/2020,3700041-IV1236000,"1,882.67",DIRECT TYRE MANAGEMENT LTD (DTM).
Regeneration and Local Services,Environmental Services,Transport,210057,Repair and Maintenance of Vehicles,07/02/2020,3700182-1890422,"1,124.52",NORTH EAST TRUCK & VAN LTD.
Regeneration and Local Services,Environmental Services,Transport,210057,Repair and Maintenance of Vehicles,07/02/2020,3699985-15161145,508.80,BELL TRUCK SALES LTD T/A BELL TRUCK & VAN.
Regeneration and Local Services,Environmental Services,Third Party Payments,430100,Rendered by Private Contractors,07/02/2020,3700182-21844719,879.07,NORTH EAST TRUCK & VAN LTD.
Regeneration and Local Services,Culture Sport and Tourism,Premises,106080,Centrally Controlled Rep and Maint,07/02/2020,3700078-15100,500.00,FT LEISURE LTD.
Regeneration and Local Services,Culture Sport and Tourism,Premises,106080,Centrally Controlled Rep and Maint,07/02/2020,3700078-15103,500.00,FT LEISURE LTD.
Regeneration and Local Services,Culture Sport and Tourism,Premises,106080,Centrally Controlled Rep and Maint,07/02/2020,3700078-15113,500.00,FT LEISURE LTD.
Regeneration and Local Services,Culture Sport and Tourism,Premises,106082,Centrally Controlled Rep and Maint,07/02/2020,3700138-85297,"1,050.00",LEISURETEQ.
Regeneration and Local Services,Environmental Services,Transport,210057,Repair and Maintenance of Vehicles,07/02/2020,3700004-238701,"1,096.26",CARRS BILLINGTON AGRICULTURE.
Regeneration and Local Services,Environmental Services,Transport,210057,Repair and Maintenance of Vehicles,07/02/2020,3700040-DE11286108,"1,889.21",DENNIS EAGLE LTD.
Regeneration and Local Services,Environmental Services,Transport,210057,Repair and Maintenance of Vehicles,07/02/2020,3699985-35176191,528.55,BELL TRUCK SALES LTD T/A BELL TRUCK & VAN.
Regeneration and Local Services,Environmental Services,Third Party Payments,430100,Rendered by Private Contractors,07/02/2020,3700182-1419356,"1,661.47",NORTH EAST TRUCK & VAN LTD.
Regeneration and Local Services,Environmental Services,Third Party Payments,430100,Rendered by Private Contractors,07/02/2020,3700182-1419406,"1,542.95",NORTH EAST TRUCK & VAN LTD.
Regeneration and Local Services,Environmental Services,Transport,210057,Repair and Maintenance of Vehicles,07/02/2020,3700191-12418998,891.40,PARTSPLUS.
Regeneration and Local Services,Environmental Services,Transport,210057,Repair and Maintenance of Vehicles,07/02/2020,3700191-12445838,"1,040.03",PARTSPLUS.
Regeneration and Local Services,Environmental Services,Transport,210057,Repair and Maintenance of Vehicles,07/02/2020,3700191-12464638,562.46,PARTSPLUS.
Regeneration and Local Services,Environmental Services,Transport,210057,Repair and Maintenance of Vehicles,07/02/2020,3700191-12485596,730.10,PARTSPLUS.
Regeneration and Local Services,Environmental Services,Third Party Payments,430100,Rendered by Private Contractors,07/02/2020,3700258-7921,775.00,TEAM VALLEY TRANSMISSIONS LTD.
Regeneration and Local Services,Environmental Services,Supplies and Services,342215,Computers and Communications,07/02/2020,3700274-44494,"3,405.55",UK TELEMATICS LTD.
Regeneration and Local Services,Environmental Services,Third Party Payments,430100,Rendered by Private Contractors,07/02/2020,3700277-253400,529.80,VISHAY PM ONBOARD.
Regeneration and Local Services,Technical Services CM0300,Construction work A908,908105,Construction work,07/02/2020,3700116-23785,"2,629.67",JACK COUPE & SONS LTD T/A COUPE LINE.
Regeneration and Local Services,Environmental Services,Premises,106082,Centrally Controlled Rep and Maint,07/02/2020,3699971-332,983.68,AQUAJET DRAIN CLEANING LTD.
Regeneration and Local Services,Culture Sport and Tourism,Supplies and Services,338047,Services,07/02/2020,3700006-001-JAN2020,"11,459.95",CBS THEATRE GROUP.
Regeneration and Local Services,Corporate Property and Land,Premises,106082,Centrally Controlled Rep and Maint,07/02/2020,3700005-6684,517.40,CATHEDRAL LOCK & SAFE SERVICES LTD.
Regeneration and Local Services,Corporate Property and Land,Premises,108099,Service Repairs and Maintenance,07/02/2020,3700276-1255,"1,215.94",VENTILATION HYGIENE SPECIALISTS (VHS) LTD.
Regeneration and Local Services,Corporate Property and Land,Premises,108099,Service Repairs and Maintenance,07/02/2020,3700282-11970,676.50,WATERMAN ENVIRONMENTAL SERVICES.
Regeneration and Local Services,Corporate Property and Land,Premises,108099,Service Repairs and Maintenance,07/02/2020,3700111-CD200166036,605.00,INTEGRATED WATER SERVICES LTD.
Regeneration and Local Services,Corporate Property and Land,Premises,108099,Service Repairs and Maintenance,07/02/2020,3699965-42707688-61,"1,217.81",ADT FIRE & SECURITY PLC.
Regeneration and Local Services,Corporate Property and Land,Premises,108099,Service Repairs and Maintenance,07/02/2020,3700111-CD200166335,587.00,INTEGRATED WATER SERVICES LTD.
Regeneration and Local Services,Technical Services CM0300,Supplies and Services,304221,Equipment and Materials,07/02/2020,3699966-29356156,985.00,AGGREGATE INDUSTRIES UK LTD.
Regeneration and Local Services,Technical Services CM0300,Supplies and Services,304221,Equipment and Materials,07/02/2020,3699966-29356158,605.00,AGGREGATE INDUSTRIES UK LTD.
Regeneration and Local Services,Technical Services CM0300,Supplies and Services,304221,Equipment and Materials,07/02/2020,3699966-29361704,722.24,AGGREGATE INDUSTRIES UK LTD.
Regeneration and Local Services,Technical Services CM0300,Third Party Payments,430100,Rendered by Private Contractors,07/02/2020,3700061-SI-836,"2,250.00",ENVIROROD LTD.
Regeneration and Local Services,Technical Services CM0300,Supplies and Services,304221,Equipment and Materials,07/02/2020,3700062-2001\022,"1,823.76",EPPLETON QUARRY PRODUCTS LTD.
Regeneration and Local Services,Technical Services CM0300,Supplies and Services,304221,Equipment and Materials,07/02/2020,3700062-2001\023,"1,472.41",EPPLETON QUARRY PRODUCTS LTD.
Regeneration and Local Services,Technical Services CM0300,Supplies and Services,304221,Equipment and Materials,07/02/2020,3700062-2001\025,"1,004.67",EPPLETON QUARRY PRODUCTS LTD.
Regeneration and Local Services,Technical Services CM0300,Supplies and Services,304221,Equipment and Materials,07/02/2020,3700128-0113/00005022,"1,008.00",JT DOVE LTD.
Regeneration and Local Services,Technical Services CM0300,Supplies and Services,304221,Equipment and Materials,07/02/2020,3700248-127090,508.64,STONEGRAVE AGGREGATES LTD.
Regeneration and Local Services,Business Durham CL0850,Premises,106082,Centrally Controlled Rep and Maint,07/02/2020,3699965-42945858-61,678.96,ADT FIRE & SECURITY PLC.
Regeneration and Local Services,Business Durham CL0850,Premises,106082,Centrally Controlled Rep and Maint,07/02/2020,3699971-33614,"1,040.00",AQUAJET DRAIN CLEANING LTD.
Regeneration and Local Services,Business Durham CL0850,Supplies and Services,384199,Miscellaneous Expenses,07/02/2020,3699963-ACE/SALVUS2020001,833.40,ACE MOTORCYCLE TRAINING (NE) LTD.
Regeneration and Local Services,Transport and Contracted Services,Third Party Payments,430106,Rendered by Private Contractors,07/02/2020,3700070-PUBLICSERVICEDEC19/JAN20,"3,292.47",FERRYHILL VILLAGE TRAVEL.
Regeneration and Local Services,Transport and Contracted Services,Third Party Payments,430106,Rendered by Private Contractors,07/02/2020,3700086-72466,"88,788.02",GO GATESHEAD LTD.
Regeneration and Local Services,Transport and Contracted Services,Supplies and Services,338066,Services,07/02/2020,3699992-SIN012869,"50,257.75",BLOOM PROCUREMENT SERVICES LTD (FORMERLY NEPRO LTD).
Regeneration and Local Services,Corporate Property and Land,Supplies and Services,372009,Subscriptions E372,07/02/2020,3700215-02753022FTI,"1,065.00",RICS BOOKS.*
Regeneration and Local Services,Corporate Property and Land,Supplies and Services,338066,Services,07/02/2020,3700223-NEW12061,"1,216.00",SANDERSON WEATHERALL LLP.
Regeneration and Local Services,Corporate Property and Land,Supplies and Services,338066,Services,07/02/2020,3700223-NEW12818,"1,500.00",SANDERSON WEATHERALL LLP.
Adult and Health Services,Head of Adults,Supplies and Services,338365,Services,07/02/2020,3700101-1101014856,"1,289.55",HOME GROUP LTD.
Adult and Health Services,Commissioning inc Supporting People,Third Party Payments,470103,Purchase of Care,07/02/2020,3700253-HOLVOID120120,"1,692.60",TAMARIS HEALTHCARE (ENGLAND) LTD.
Adult and Health Services,Commissioning inc Supporting People,Third Party Payments,470111,Purchase of Care,07/02/2020,3700139-LCD-FTI006623,"4,403.33",LEONARD CHESHIRE DISABILITY.
Adult and Health Services,Head of Adults,Transport,230005,Contract Hire,07/02/2020,3700079-101548,900.00,G & P JOHNSON LTD T/A NIGHTINGALE COACHES.
Adult and Health Services,Head of Adults,Transport,230005,Contract Hire,07/02/2020,3700079-101549-DECEMBER,600.00,G & P JOHNSON LTD T/A NIGHTINGALE COACHES.
Adult and Health Services,Head of Adults,Transport,230005,Contract Hire,07/02/2020,3700265-918-20,"1,145.60",TONYS TAXIS (A BIRCH).
Children and Young Peoples Services,Childrens Services Operational Support,Supplies and Services,338066,Services,07/02/2020,3699992-SIN012876,"40,377.57",BLOOM PROCUREMENT SERVICES LTD (FORMERLY NEPRO LTD).
Adult and Health Services,Head of Adults,Supplies and Services,384616,Miscellaneous Expenses,07/02/2020,3699986-20/1920/MULB,533.28,BERNICIA GROUP LTD.
Adult and Health Services,Commissioning inc Supporting People,Third Party Payments,479111,Purchase of Care,07/02/2020,3700027-18/12/19-07/01/20,"7,564.50",CRESCENT HOMECARE LTD.
Adult and Health Services,Commissioning inc Supporting People,Third Party Payments,479111,Purchase of Care,07/02/2020,3700027-18/12/19-07/01/20INCENTIVE,"8,200.00",CRESCENT HOMECARE LTD.
Regeneration and Local Services,Culture Sport and Tourism,Supplies and Services,312013,Newspapers books and periodicals E312,07/02/2020,3699974-6243577,568.14,ASKEWS & HOLTS LIBRARY SERVICES LTD.
Regeneration and Local Services,Culture Sport and Tourism,Supplies and Services,324117,Provisions E324,07/02/2020,3700252-858,697.00,SY FOODS RETAIL LTD.
Regeneration and Local Services,Culture Sport and Tourism,Supplies and Services,338047,Services,07/02/2020,3700169-CBB-260120,"5,523.83",MRC ENTERPRISES LTD.
Regeneration and Local Services,Culture Sport and Tourism,Supplies and Services,338047,Services,07/02/2020,3700075-6205,805.00,FLYING BY FOY LTD.
Adult and Health Services,Public Health CC0450,Third Party Payments,460803,Contract Payments,07/02/2020,3700019-3980036878,"198,711.00",CO DURHAM & DARLINGTON NHS FOUNDATION TRUST.
Adult and Health Services,Public Health CC0450,Third Party Payments,460803,Contract Payments,07/02/2020,3700285-11-05/02/2020,"4,952.00",WENDY MINHINNETT T/A ROLLERCOASTER FAMILY SUPPORT.
Transformation and Partnerships,Partnerships & Community Engagement Div.,Supplies and Services,308011,Furniture,07/02/2020,3700023-CDFH8050,790.00,COUNTY DURHAM FURNITURE HELP SCHEME (CDFHS).
Resources BK0010,Finance & Transactional Services,Supplies and Services,384180,Miscellaneous Expenses,07/02/2020,3700143-0360634,"3,959.19",LOOMIS UK LTD.
Resources BK0010,Legal & Democratic Services,Supplies and Services,344014,Telephones,07/02/2020,3700280-NS51455,649.65,VODAFONE LTD.
Children and Young Peoples Services,Head of Early Help Inclusion & Vulnerable Children.,Transport,230007,Contract Hire,07/02/2020,3700133-010120,"1,683.72",KEVIN EDMUNDSON.
Dedicated Schools Grant BG0015,DSG High Needs Block,Supplies and Services,384199,Miscellaneous Expenses,07/02/2020,3700229-29,"3,720.00",SHARON HOWARD T/A SH COUNSELLING SERVICES.
Children and Young Peoples Services,Head of Education and Skills,Transfer Payments,510028,School Children,07/02/2020,3700090-CAS-02-2020-010,"20,000.00",HAPPYTIMES DAYCARE.
Children and Young Peoples Services,Head of Education and Skills,Supplies and Services,338044,Services,07/02/2020,3700105-CAS-02-2020-009,"1,875.00",HOUSE OF EDEN LTD.
Children and Young Peoples Services,Head of Education and Skills,Transport,230035,Contract Hire,07/02/2020,3700284-7307,960.00,WEARDALE PRIVATE HIRE.
Children and Young Peoples Services,Head of Education and Skills,Transport,230009,Contract Hire,07/02/2020,3699958-JANUARY03/7357,"1,000.00",A & P TAXIS.
Children and Young Peoples Services,Head of Education and Skills,Transport,230007,Contract Hire,07/02/2020,3700035-391,760.00,DA TRAVEL.
Children and Young Peoples Services,Head of Education and Skills,Transport,230007,Contract Hire,07/02/2020,3700020-C/11140,"3,420.00",COCHRANES T/A KELVIN TRAVEL.
Children and Young Peoples Services,Head of Education and Skills,Transport,230012,Contract Hire,07/02/2020,3699961-1/1/20,"1,410.94",ABA TAXIS.
Children and Young Peoples Services,Head of Education and Skills,Transport,230012,Contract Hire,07/02/2020,3699962-O447,"1,729.00",ABC & OUSTON CABS.
Children and Young Peoples Services,Head of Education and Skills,Transport,230012,Contract Hire,07/02/2020,3700142-4749,"1,425.00",LOCAL TRANSPORT LTD.
Children and Young Peoples Services,Head of Education and Skills,Transport,230012,Contract Hire,07/02/2020,3700115-5552,874.00,J YOUNG T/A VIP TAXIS.
Children and Young Peoples Services,Head of Education and Skills,Transport,230009,Contract Hire,07/02/2020,3700080-15JAN,"1,330.00",G ANGHEL T/A A TAXI.
Children and Young Peoples Services,Head of Education and Skills,Transport,230012,Contract Hire,07/02/2020,3699967-38895884,"2,133.80",ALAN SOUTHERN T/A ALANS TAXIS PELTON FELL.
Children and Young Peoples Services,Head of Education and Skills,Transport,230009,Contract Hire,07/02/2020,3700126-7231205,975.00,JOVIAL PRIVATE HIRE.
Children and Young Peoples Services,Head of Education and Skills,Transport,230034,Contract Hire,07/02/2020,3700122-19-1250,"1,600.00",JOHN GARLAND.
Children and Young Peoples Services,Head of Education and Skills,Transport,230007,Contract Hire,07/02/2020,3700059-5234/0120,"2,356.00",ELLIOTTS OF TRIMDON.
Children and Young Peoples Services,Head of Education and Skills,Transport,230007,Contract Hire,07/02/2020,3700036-EAEDCJAN2001,"1,600.00",DALELINK PRIVATE HIRE.
Children and Young Peoples Services,Head of Education and Skills,Transport,230007,Contract Hire,07/02/2020,3700161-091,"1,280.00",MR LJ TARRY T/A TARRY`S TAXI`S.
Children and Young Peoples Services,Head of Education and Skills,Transport,230009,Contract Hire,07/02/2020,3700193-7311,"2,200.00",PAUL WILSON.
Children and Young Peoples Services,Head of Education and Skills,Transport,230007,Contract Hire,07/02/2020,3700284-7306/1,858.20,WEARDALE PRIVATE HIRE.
Children and Young Peoples Services,Head of Education and Skills,Transport,230003,Contract Hire,07/02/2020,3700014-46977,"5,980.00",CHRISTOPHER JAMES GRIERSON T/A GRIERSONS COACHES.
Children and Young Peoples Services,Head of Education and Skills,Transport,230003,Contract Hire,07/02/2020,3700014-46978,"3,200.00",CHRISTOPHER JAMES GRIERSON T/A GRIERSONS COACHES.
Children and Young Peoples Services,Head of Education and Skills,Transport,230007,Contract Hire,07/02/2020,3700283-1199-20,"1,218.00",WAYNE`S TAXIS.
Children and Young Peoples Services,Head of Education and Skills,Transport,230012,Contract Hire,07/02/2020,3700168-TNB005,875.94,MR THOMAS G GRIFFITHS T/A TNL TAXIS.
Children and Young Peoples Services,Head of Education and Skills,Transport,230007,Contract Hire,07/02/2020,3700160-125,"1,159.00",MR JOHN ALLINSON T/A AALPHA TAXIS.
Children and Young Peoples Services,Head of Education and Skills,Transport,230007,Contract Hire,07/02/2020,3700168-WHB005,520.00,MR THOMAS G GRIFFITHS T/A TNL TAXIS.
Children and Young Peoples Services,Head of Education and Skills,Transport,230007,Contract Hire,07/02/2020,3700245-6491,"1,990.00",STEPHEN MAUDE LTD T/A MAUDES COACHES.
Children and Young Peoples Services,Head of Education and Skills,Transport,230035,Contract Hire,07/02/2020,3699977-5JAN,780.00,B&C YELLOWCAB TAXI`S.
Children and Young Peoples Services,Head of Education and Skills,Transport,230009,Contract Hire,07/02/2020,3699994-005-7360,760.00,BOWBURN TAXIS.
Children and Young Peoples Services,Head of Education and Skills,Transport,230007,Contract Hire,07/02/2020,3700059-4402/0120,659.30,ELLIOTTS OF TRIMDON.
Children and Young Peoples Services,Head of Education and Skills,Transport,230034,Contract Hire,07/02/2020,3700255-DCC/2020/006,"1,634.80",TAYLOR`S TAXIS.
Children and Young Peoples Services,Head of Education and Skills,Transport,230007,Contract Hire,07/02/2020,3700020-C/11137,"3,575.20",COCHRANES T/A KELVIN TRAVEL.
Children and Young Peoples Services,Head of Education and Skills,Transport,230007,Contract Hire,07/02/2020,3700059-5124/0120,860.70,ELLIOTTS OF TRIMDON.
Children and Young Peoples Services,Head of Education and Skills,Transport,230007,Contract Hire,07/02/2020,3700014-46979,"2,418.89",CHRISTOPHER JAMES GRIERSON T/A GRIERSONS COACHES.
Children and Young Peoples Services,Head of Education and Skills,Transport,230007,Contract Hire,07/02/2020,3700014-46980,"2,357.52",CHRISTOPHER JAMES GRIERSON T/A GRIERSONS COACHES.
Children and Young Peoples Services,Head of Education and Skills,Transport,230012,Contract Hire,07/02/2020,3700161-092,"1,468.43",MR LJ TARRY T/A TARRY`S TAXI`S.
Children and Young Peoples Services,Head of Education and Skills,Transport,230007,Contract Hire,07/02/2020,3700014-46981,"4,750.00",CHRISTOPHER JAMES GRIERSON T/A GRIERSONS COACHES.
Children and Young Peoples Services,Head of Education and Skills,Transport,230003,Contract Hire,07/02/2020,3700014-46982,"3,040.00",CHRISTOPHER JAMES GRIERSON T/A GRIERSONS COACHES.
Children and Young Peoples Services,Head of Education and Skills,Transport,230003,Contract Hire,07/02/2020,3700014-46983,"2,945.00",CHRISTOPHER JAMES GRIERSON T/A GRIERSONS COACHES.
Children and Young Peoples Services,Head of Education and Skills,Transport,230003,Contract Hire,07/02/2020,3700014-46984,"3,135.00",CHRISTOPHER JAMES GRIERSON T/A GRIERSONS COACHES.
Children and Young Peoples Services,Head of Education and Skills,Transport,230007,Contract Hire,07/02/2020,3700115-5134JAN,676.21,J YOUNG T/A VIP TAXIS.
Children and Young Peoples Services,Head of Education and Skills,Transport,230007,Contract Hire,07/02/2020,3700115-5547,564.49,J YOUNG T/A VIP TAXIS.
Children and Young Peoples Services,Head of Education and Skills,Transport,230004,Contract Hire,07/02/2020,3700284-7310,604.58,WEARDALE PRIVATE HIRE.
Children and Young Peoples Services,Head of Education and Skills,Transport,230035,Contract Hire,07/02/2020,3700158-KDK/JAN20,845.12,MR IAN KELSEY T/A KDK TAXIS.
Children and Young Peoples Services,Head of Education and Skills,Transport,230003,Contract Hire,07/02/2020,3700020-C/11138,"2,800.00",COCHRANES T/A KELVIN TRAVEL.
Children and Young Peoples Services,Head of Education and Skills,Transport,230003,Contract Hire,07/02/2020,3700020-C/11139,"2,970.00",COCHRANES T/A KELVIN TRAVEL.
Children and Young Peoples Services,Head of Education and Skills,Transport,230008,Contract Hire,07/02/2020,3700013-SS5JAN20,"2,350.26",CHIPPERS TAXIS.
Children and Young Peoples Services,Head of Education and Skills,Transport,230006,Contract Hire,07/02/2020,3700029-109995,"4,243.84",CROFT BUSINESS SERVICES (UK) LTD T/A CROFT TAXIS.
Children and Young Peoples Services,Head of Education and Skills,Transport,230008,Contract Hire,07/02/2020,3700080-16JAN,"1,520.00",G ANGHEL T/A A TAXI.
Children and Young Peoples Services,Head of Education and Skills,Transport,230008,Contract Hire,07/02/2020,3700115-5553,"1,140.00",J YOUNG T/A VIP TAXIS.
Children and Young Peoples Services,Head of Education and Skills,Transport,230008,Contract Hire,07/02/2020,3700115-5557,"1,160.00",J YOUNG T/A VIP TAXIS.
Children and Young Peoples Services,Head of Education and Skills,Transport,230008,Contract Hire,07/02/2020,3700123-186,"2,580.00",JOHN ROBSON T/A ACE TAXIS.
Children and Young Peoples Services,Head of Education and Skills,Transport,230008,Contract Hire,07/02/2020,3700151-14A-20,"1,360.00",MICHAEL A BODDY T/A MBS TAXIS.
Children and Young Peoples Services,Head of Education and Skills,Transport,230007,Contract Hire,07/02/2020,3700230-5275JAN,"2,090.00",SHAUN MILLS T/A ASM TRAVEL.
Children and Young Peoples Services,Head of Education and Skills,Transport,230034,Contract Hire,07/02/2020,3700163-1254/1,703.12,MR MARK WILE T/A HARRY`S TAXIS.
Children and Young Peoples Services,Head of Education and Skills,Transport,230008,Contract Hire,07/02/2020,3700059-M042/0120,"1,986.60",ELLIOTTS OF TRIMDON.
Children and Young Peoples Services,Head of Education and Skills,Transport,230008,Contract Hire,07/02/2020,3700284-7317,"3,577.92",WEARDALE PRIVATE HIRE.
Children and Young Peoples Services,Head of Education and Skills,Transport,230008,Contract Hire,07/02/2020,3699975-04JANUARY20,915.00,AUCKLAND TRAVEL.
Children and Young Peoples Services,Head of Education and Skills,Transport,230008,Contract Hire,07/02/2020,3699984-SMITH1JANUARY20,"2,364.80",BEELINE PRIVATE HIRE.
Children and Young Peoples Services,Head of Education and Skills,Transport,230008,Contract Hire,07/02/2020,3699983-907,"1,653.76",BEELINE MINI BUSES.
Children and Young Peoples Services,Head of Education and Skills,Transport,230008,Contract Hire,07/02/2020,3700038-3529,"2,479.31",DAVES MINIBUSES.
Children and Young Peoples Services,Head of Education and Skills,Transport,230008,Contract Hire,07/02/2020,3700038-3530,"1,862.00",DAVES MINIBUSES.
Children and Young Peoples Services,Head of Education and Skills,Transport,230008,Contract Hire,07/02/2020,3700067-N090/1,"2,090.00",FAIR FARE TRAVEL (TAXIS).
Children and Young Peoples Services,Head of Education and Skills,Transport,230008,Contract Hire,07/02/2020,3700167-3117,"4,163.41",MR S BOWERS T/A DH7 TAXIS.
Children and Young Peoples Services,Head of Education and Skills,Transport,230008,Contract Hire,07/02/2020,3700000-W11208,"1,800.00",C & R TAXIS.
Children and Young Peoples Services,Head of Education and Skills,Transport,230008,Contract Hire,07/02/2020,3700034-D1202001,"1,400.00",D&I TAXIS.
Children and Young Peoples Services,Head of Education and Skills,Transport,230008,Contract Hire,07/02/2020,3700155-201920192019/20195,"1,900.00",MR DOMINICK JONES T/A DJ PRIVATE HIRE.
Children and Young Peoples Services,Head of Education and Skills,Transport,230016,Contract Hire,07/02/2020,3700286-147,"1,571.68",WHITTONSTALL TAXIS SERVICE.
Children and Young Peoples Services,Head of Education and Skills,Transport,230008,Contract Hire,07/02/2020,3699968-M002/1,"1,878.72",ANDREW PYGALL T/A ARP TAXIS.
Children and Young Peoples Services,Head of Education and Skills,Transport,230008,Contract Hire,07/02/2020,3699997-BZ00333,"1,120.62",BREZ`S TAXIS.
Children and Young Peoples Services,Head of Education and Skills,Transport,230008,Contract Hire,07/02/2020,3699997-BZ00334,"1,090.98",BREZ`S TAXIS.
Children and Young Peoples Services,Head of Education and Skills,Transport,230008,Contract Hire,07/02/2020,3700051-311202001,"2,394.00",EAST DURHAM TAXIS.
Children and Young Peoples Services,Head of Education and Skills,Transport,230008,Contract Hire,07/02/2020,3700051-311202002,"3,609.05",EAST DURHAM TAXIS.
Children and Young Peoples Services,Head of Education and Skills,Transport,230008,Contract Hire,07/02/2020,3700059-E060/0120,"1,762.25",ELLIOTTS OF TRIMDON.
Children and Young Peoples Services,Head of Education and Skills,Transport,230008,Contract Hire,07/02/2020,3700142-4746JANUARY,"1,491.50",LOCAL TRANSPORT LTD.
Children and Young Peoples Services,Head of Education and Skills,Transport,230008,Contract Hire,07/02/2020,3700142-4747,"2,185.00",LOCAL TRANSPORT LTD.
Children and Young Peoples Services,Head of Education and Skills,Transport,230008,Contract Hire,07/02/2020,3700142-4748,"1,805.00",LOCAL TRANSPORT LTD.
Children and Young Peoples Services,Head of Education and Skills,Transport,230008,Contract Hire,07/02/2020,3699962-O446,"2,011.72",ABC & OUSTON CABS.
Children and Young Peoples Services,Head of Education and Skills,Transport,230008,Contract Hire,07/02/2020,3700000-S00605,"1,665.16",C & R TAXIS.
Children and Young Peoples Services,Head of Education and Skills,Transport,230008,Contract Hire,07/02/2020,3700013-CW5JAN20,"1,524.18",CHIPPERS TAXIS.
Children and Young Peoples Services,Head of Education and Skills,Transport,230008,Contract Hire,07/02/2020,3700059-E128/0120,"1,292.00",ELLIOTTS OF TRIMDON.
Children and Young Peoples Services,Head of Education and Skills,Transport,230008,Contract Hire,07/02/2020,3700115-5550,912.00,J YOUNG T/A VIP TAXIS.
Children and Young Peoples Services,Head of Education and Skills,Transport,230008,Contract Hire,07/02/2020,3700255-DCC/2020/002,"1,862.00",TAYLOR`S TAXIS.
Children and Young Peoples Services,Head of Education and Skills,Transport,230008,Contract Hire,07/02/2020,3699962-O448,"2,143.00",ABC & OUSTON CABS.
Children and Young Peoples Services,Head of Education and Skills,Transport,230016,Contract Hire,07/02/2020,3699984-SMITH2/JANUARY20,827.40,BEELINE PRIVATE HIRE.
Children and Young Peoples Services,Head of Education and Skills,Transport,230008,Contract Hire,07/02/2020,3700038-3528,"1,803.60",DAVES MINIBUSES.
Children and Young Peoples Services,Head of Education and Skills,Transport,230006,Contract Hire,07/02/2020,3700038-3531,"2,068.00",DAVES MINIBUSES.
Children and Young Peoples Services,Head of Education and Skills,Transport,230008,Contract Hire,07/02/2020,3700038-3532,"2,405.20",DAVES MINIBUSES.
Children and Young Peoples Services,Head of Education and Skills,Transport,230008,Contract Hire,07/02/2020,3700108-343,"3,480.00",I CLYDESDALE T/A BURNOPFIELD TAXIS.
Children and Young Peoples Services,Head of Education and Skills,Transport,230008,Contract Hire,07/02/2020,3700126-E00505,"2,029.60",JOVIAL PRIVATE HIRE.
Children and Young Peoples Services,Head of Education and Skills,Transport,230008,Contract Hire,07/02/2020,3700167-3116,"2,500.00",MR S BOWERS T/A DH7 TAXIS.
Children and Young Peoples Services,Head of Education and Skills,Transport,230008,Contract Hire,07/02/2020,3700000-W03005,"2,090.00",C & R TAXIS.
Children and Young Peoples Services,Head of Education and Skills,Transport,230008,Contract Hire,07/02/2020,3700221-W045/16,990.00,S & S TRAVEL LTD.
Children and Young Peoples Services,Head of Education and Skills,Transport,230008,Contract Hire,07/02/2020,3700284-7316,"2,356.00",WEARDALE PRIVATE HIRE.
Children and Young Peoples Services,Head of Education and Skills,Transport,230008,Contract Hire,07/02/2020,3699969-0086,"1,710.00",ANDREW SIMPSON T/A ANDY`S CABS.
Children and Young Peoples Services,Head of Education and Skills,Transport,230008,Contract Hire,07/02/2020,3700000-W04605,"2,280.00",C & R TAXIS.
Children and Young Peoples Services,Head of Education and Skills,Transport,230008,Contract Hire,07/02/2020,3700167-3115,"1,570.54",MR S BOWERS T/A DH7 TAXIS.
Children and Young Peoples Services,Head of Education and Skills,Transport,230006,Contract Hire,07/02/2020,3700108-346,"2,461.40",I CLYDESDALE T/A BURNOPFIELD TAXIS.
Children and Young Peoples Services,Head of Education and Skills,Transport,230008,Contract Hire,07/02/2020,3700108-342,"2,100.00",I CLYDESDALE T/A BURNOPFIELD TAXIS.
Children and Young Peoples Services,Head of Education and Skills,Transport,230010,Contract Hire,07/02/2020,3699998-5JAN,"1,287.60",BRIAN PURVIS T/A BJ`S TAXIS.
Children and Young Peoples Services,Head of Education and Skills,Transport,230010,Contract Hire,07/02/2020,3700108-339,"3,200.00",I CLYDESDALE T/A BURNOPFIELD TAXIS.
Children and Young Peoples Services,Head of Education and Skills,Transport,230010,Contract Hire,07/02/2020,3700115-5556,532.00,J YOUNG T/A VIP TAXIS.
Children and Young Peoples Services,Head of Education and Skills,Transport,230010,Contract Hire,07/02/2020,3700148-INV01/2014,"2,280.00",MARK & JOHN CHISHOLM T/A (CHEVRON).
Children and Young Peoples Services,Head of Education and Skills,Transport,230010,Contract Hire,07/02/2020,3700162-5/1,"2,143.39",MR M FARREY T/A TK TAXIS.
Children and Young Peoples Services,Head of Education and Skills,Transport,230010,Contract Hire,07/02/2020,3700264-BL026JANUARY,975.00,THOMAS GLEN.
Children and Young Peoples Services,Head of Education and Skills,Transport,230006,Contract Hire,07/02/2020,3699958-JANUARY01/F802,"2,070.00",A & P TAXIS.
Children and Young Peoples Services,Head of Education and Skills,Transport,230006,Contract Hire,07/02/2020,3699958-JANUARY02/F007,"1,620.00",A & P TAXIS.
Children and Young Peoples Services,Head of Education and Skills,Transport,230006,Contract Hire,07/02/2020,3699989-JAN2020-F780,"1,215.00",BL TAXIS.
Children and Young Peoples Services,Head of Education and Skills,Transport,230006,Contract Hire,07/02/2020,3700001-BIL0185,888.00,CA MUSGROVE.
Children and Young Peoples Services,Head of Education and Skills,Transport,230006,Contract Hire,07/02/2020,3700035-387,"1,450.00",DA TRAVEL.
Children and Young Peoples Services,Head of Education and Skills,Transport,230006,Contract Hire,07/02/2020,3700035-388,"1,080.00",DA TRAVEL.
Children and Young Peoples Services,Head of Education and Skills,Transport,230006,Contract Hire,07/02/2020,3700108-340,"1,190.00",I CLYDESDALE T/A BURNOPFIELD TAXIS.
Children and Young Peoples Services,Head of Education and Skills,Transport,230006,Contract Hire,07/02/2020,3700108-341,"1,194.00",I CLYDESDALE T/A BURNOPFIELD TAXIS.
Children and Young Peoples Services,Head of Education and Skills,Transport,230006,Contract Hire,07/02/2020,3700115-5549,861.92,J YOUNG T/A VIP TAXIS.
Children and Young Peoples Services,Head of Education and Skills,Transport,230007,Contract Hire,07/02/2020,3700115-5551,"1,333.00",J YOUNG T/A VIP TAXIS.
Children and Young Peoples Services,Head of Education and Skills,Transport,230006,Contract Hire,07/02/2020,3700115-F821/JAN,540.00,J YOUNG T/A VIP TAXIS.
Children and Young Peoples Services,Head of Education and Skills,Transport,230006,Contract Hire,07/02/2020,3700124-CORPTRAVJAN20,920.00,JOHN W CROOK T/A CORPORATE TRAVEL.
Children and Young Peoples Services,Head of Education and Skills,Transport,230006,Contract Hire,07/02/2020,3700160-126,"1,083.60",MR JOHN ALLINSON T/A AALPHA TAXIS.
Children and Young Peoples Services,Head of Education and Skills,Transport,230006,Contract Hire,07/02/2020,3700160-127,539.00,MR JOHN ALLINSON T/A AALPHA TAXIS.
Children and Young Peoples Services,Head of Education and Skills,Transport,230006,Contract Hire,07/02/2020,3700284-7311,900.00,WEARDALE PRIVATE HIRE.
Children and Young Peoples Services,Head of Childrens Social Care,Third Party Payments,425041,Rendered by Voluntary Organisations,07/02/2020,3700288-71263827002,"27,000.00",WIGAN COUNCIL.
Children and Young Peoples Services,Head of Childrens Social Care,Supplies and Services,338066,Services,07/02/2020,3699992-SIN012470,"106,730.96",BLOOM PROCUREMENT SERVICES LTD (FORMERLY NEPRO LTD).
Children and Young Peoples Services,Head of Early Help Inclusion & Vulnerable Children.,Premises,108251,Service Repairs and Maintenance,07/02/2020,3699965-41959440-61,630.20,ADT FIRE & SECURITY PLC.
Children and Young Peoples Services,Head of Early Help Inclusion & Vulnerable Children.,Premises,108251,Service Repairs and Maintenance,07/02/2020,3699965-41959441-61,630.20,ADT FIRE & SECURITY PLC.
Regeneration and Local Services,Environmental Services,Premises,108099,Service Repairs and Maintenance,10/02/2020,3700436-324,714.00,JN KEARTON.
Regeneration and Local Services,Culture Sport and Tourism,Supplies and Services,324117,Provisions E324,10/02/2020,3700319-10202145,840.28,BIDFOOD.
Regeneration and Local Services,Technical Services CM0300,Stock A926,926900,Stock in hand-Inventory system,10/02/2020,3700506-535903,508.47,OIL NRG LTD.
Regeneration and Local Services,Technical Services CM0300,Third Party Payments,430100,Rendered by Private Contractors,10/02/2020,165-CSUKOU/INV/82279CORRECTMATCHING,"13,747.71",BALFOUR BEATTY LIVING PLACES LTD.*
Regeneration and Local Services,Technical Services CM0300,Third Party Payments,430100,Rendered by Private Contractors,10/02/2020,3700503-DI20333791,"1,139.24",NORTHERN POWERGRID (NORTHEAST) LTD.
Regeneration and Local Services,Technical Services CM0300,Supplies and Services,304221,Equipment and Materials,10/02/2020,3700301-29369508,"1,185.84",AGGREGATE INDUSTRIES UK LTD.
Regeneration and Local Services,Technical Services CM0300,Supplies and Services,304221,Equipment and Materials,10/02/2020,3700301-29369509,569.74,AGGREGATE INDUSTRIES UK LTD.
Regeneration and Local Services,Technical Services CM0300,Supplies and Services,304221,Equipment and Materials,10/02/2020,3700301-29369510,682.40,AGGREGATE INDUSTRIES UK LTD.
Regeneration and Local Services,Technical Services CM0300,Supplies and Services,304221,Equipment and Materials,10/02/2020,3700301-29369511,864.02,AGGREGATE INDUSTRIES UK LTD.
Regeneration and Local Services,Technical Services CM0300,Supplies and Services,304221,Equipment and Materials,10/02/2020,3700301-29369512,710.04,AGGREGATE INDUSTRIES UK LTD.
Regeneration and Local Services,Technical Services CM0300,Supplies and Services,304221,Equipment and Materials,10/02/2020,3700388-2001\128,"2,215.46",EPPLETON QUARRY PRODUCTS LTD.
Regeneration and Local Services,Technical Services CM0300,Supplies and Services,304357,Equipment and Materials,10/02/2020,3700402-DCC260120,"20,458.67",GAP GROUP LTD.
Regeneration and Local Services,Technical Services CM0300,Supplies and Services,304221,Equipment and Materials,10/02/2020,3700440-0113/00009255,"1,078.82",JT DOVE LTD.
Regeneration and Local Services,Technical Services CM0300,Supplies and Services,304221,Equipment and Materials,10/02/2020,3700440-0113/00010075,811.47,JT DOVE LTD.
Regeneration and Local Services,Technical Services CM0300,Supplies and Services,304221,Equipment and Materials,10/02/2020,3700440-0113/00010076,"2,222.88",JT DOVE LTD.
Regeneration and Local Services,Technical Services CM0300,Supplies and Services,304221,Equipment and Materials,10/02/2020,3700578-9041352958,613.50,TARMAC TRADING LTD.
Regeneration and Local Services,Corporate Property and Land,Third Party Payments,430100,Rendered by Private Contractors,10/02/2020,3700441-AH-000070-9,880.00,JTL SCAFFOLDING LTD.
Regeneration and Local Services,Corporate Property and Land,Supplies and Services,304221,Equipment and Materials,10/02/2020,3700383-059-258268,"1,387.93",EDMUNDSON ELECTRICAL LTD.
Regeneration and Local Services,Development and Housing,Supplies and Services,336005,Advertising E336,10/02/2020,3700496-32233438,831.74,NEWSQUEST (YORKSHIRE & NORTH EAST) LTD.
Regeneration and Local Services,Transport and Contracted Services,Third Party Payments,430100,Rendered by Private Contractors,10/02/2020,3700504-00011218,"26,003.75",NSL LTD.
Regeneration and Local Services,Transport and Contracted Services,Third Party Payments,430100,Rendered by Private Contractors,10/02/2020,3700504-00011219,"1,580.54",NSL LTD.
Regeneration and Local Services,Transport and Contracted Services,Third Party Payments,430100,Rendered by Private Contractors,10/02/2020,3700504-00011318,"7,561.51",NSL LTD.
Regeneration and Local Services,Transport and Contracted Services,Third Party Payments,430100,Rendered by Private Contractors,10/02/2020,3700504-00011220,"51,882.37",NSL LTD.
Regeneration and Local Services,Transport and Contracted Services,Third Party Payments,430100,Rendered by Private Contractors,10/02/2020,3700504-00011223,"3,213.55",NSL LTD.
Regeneration and Local Services,Transport and Contracted Services,Third Party Payments,430100,Rendered by Private Contractors,10/02/2020,3700504-00011224,"4,707.75",NSL LTD.
Regeneration and Local Services,Transport and Contracted Services,Third Party Payments,430100,Rendered by Private Contractors,10/02/2020,3700504-00011319,"4,377.85",NSL LTD.
Regeneration and Local Services,Transport and Contracted Services,Third Party Payments,430100,Rendered by Private Contractors,10/02/2020,3700504-00011222,"17,261.43",NSL LTD.
Regeneration and Local Services,Transport and Contracted Services,Supplies and Services,336005,Advertising E336,10/02/2020,3700496-32233750,885.07,NEWSQUEST (YORKSHIRE & NORTH EAST) LTD.
Adult and Health Services,Head of Adults,Transport,230005,Contract Hire,10/02/2020,3700421-347,694.88,I CLYDESDALE T/A BURNOPFIELD TAXIS.
Adult and Health Services,Head of Adults,Transport,230005,Contract Hire,10/02/2020,3700382-311202006,"2,496.00",EAST DURHAM TAXIS.
Adult and Health Services,Head of Adults,Transport,230005,Contract Hire,10/02/2020,3700596-933,"1,176.00",TONYS TAXIS (A BIRCH).
Adult and Health Services,Head of Adults,Transport,230005,Contract Hire,10/02/2020,3700320-0259,600.00,BIRDS TAXIS LTD.
Adult and Health Services,Head of Adults,Transport,230005,Contract Hire,10/02/2020,3700320-0261,732.00,BIRDS TAXIS LTD.
Adult and Health Services,Head of Adults,Transport,230005,Contract Hire,10/02/2020,3700320-0263,760.00,BIRDS TAXIS LTD.
Adult and Health Services,Head of Adults,Transport,230005,Contract Hire,10/02/2020,3700349-WV104/012020,785.80,COLVIN`S CABS.
Adult and Health Services,Head of Adults,Transport,230005,Contract Hire,10/02/2020,3700417-17285,738.24,HODGSONS COACH OPERATORS LTD.
Adult and Health Services,Head of Adults,Transport,230005,Contract Hire,10/02/2020,3700468-KC1013,735.00,MARK O`NEILL T/A KWIK CABS.
Adult and Health Services,Head of Adults,Transport,230005,Contract Hire,10/02/2020,3700469-0031,"1,995.00",MARK WATSON T/A MARK`S TAXIS.
Adult and Health Services,Head of Adults,Transport,230005,Contract Hire,10/02/2020,3700493-JAN20202,700.00,ND TAXIS.
Adult and Health Services,Head of Adults,Transport,230005,Contract Hire,10/02/2020,3700516-EAS150JAN,"1,200.00",PAUL GREEN T/A GREEN TAXIS.
Adult and Health Services,Head of Adults,Transport,230005,Contract Hire,10/02/2020,3700320-0264,"2,156.00",BIRDS TAXIS LTD.
Adult and Health Services,Head of Adults,Transport,230005,Contract Hire,10/02/2020,3700417-17286,526.90,HODGSONS COACH OPERATORS LTD.
Adult and Health Services,Head of Adults,Transport,230005,Contract Hire,10/02/2020,3700456-PEACO005/1,"1,178.08",LETS TRAVEL.
Adult and Health Services,Head of Adults,Transport,230005,Contract Hire,10/02/2020,3700549-SED112/17,"2,039.84",S & S TRAVEL LTD.
Adult and Health Services,Head of Adults,Transport,230005,Contract Hire,10/02/2020,3700596-920,702.00,TONYS TAXIS (A BIRCH).
Adult and Health Services,Head of Adults,Transport,230005,Contract Hire,10/02/2020,3700596-921,"1,152.00",TONYS TAXIS (A BIRCH).
Adult and Health Services,Head of Adults,Transport,230005,Contract Hire,10/02/2020,3700596-924,774.00,TONYS TAXIS (A BIRCH).
Adult and Health Services,Head of Adults,Transport,230005,Contract Hire,10/02/2020,3700596-925,550.00,TONYS TAXIS (A BIRCH).
Regeneration and Local Services,Culture Sport and Tourism,Supplies and Services,384199,Miscellaneous Expenses,10/02/2020,3700378-SI-357,"1,800.00",DURHAM SCENIC WORKSHOPS LTD.
Transformation and Partnerships,Partnerships & Community Engagement Div.,Cap Exp on Grants & Other Financial Assistance (REFCUS),918004,Contributions to other bodies 918004,10/02/2020,3700497-VOUCHER19AB-GAMP013,"9,361.00",NEWTON AYCLIFFE WORKING MEN`S CLUB & INSTITUTE LTD.
Transformation and Partnerships,Partnerships & Community Engagement Div.,Cap Exp on Grants & Other Financial Assistance (REFCUS),918004,Contributions to other bodies 918004,10/02/2020,3700336-VOUCHER19NB-EDRC021,"2,485.84",CASSOP CUM QUARRINGTON PARISH COUNCIL.
Transformation and Partnerships,Partnerships & Community Engagement Div.,Supplies and Services,384086,Miscellaneous Expenses,10/02/2020,3700342-VOUCHERBAIA08-19,700.00,CHESTER LE STREET CENTRAL RESIDENTS ASSOCIATION.
Transformation and Partnerships,Partnerships & Community Engagement Div.,Supplies and Services,384086,Miscellaneous Expenses,10/02/2020,3700355-VOUCHERTAYP05-19,999.00,COUNTY DURHAM SOCIALIST CLOTHING BANK.
Transformation and Partnerships,Partnerships & Community Engagement Div.,Supplies and Services,384086,Miscellaneous Expenses,10/02/2020,3700370-VOUCHER19NB-DCTY041,"1,000.00",DERIC YOUTH BUS PROJECT.
Transformation and Partnerships,Partnerships & Community Engagement Div.,Cap Exp on Grants & Other Financial Assistance (REFCUS),918004,Contributions to other bodies 918004,10/02/2020,3700379-VOUCHER19NB-EDUR039,"1,329.10",EASINGTON COLLIERY PARISH COUNCIL.
Transformation and Partnerships,Partnerships & Community Engagement Div.,Cap Exp on Grants & Other Financial Assistance (REFCUS),918004,Contributions to other bodies 918004,10/02/2020,3700560-VOUCHER19NB-STAN018,"3,400.00",SOUTH MOOR GOLF CLUB.
Resources BK0010,Digital and Customer Services,Supplies and Services,342051,Computers and Communications,10/02/2020,3700499-911595,"2,050.00",NITRO SOFTWARE INC.
Resources BK0010,Digital and Customer Services,Premises,120009,Energy Costs,10/02/2020,3700572-2821025577,"8,842.95",SUNDERLAND CITY COUNCIL.
Resources BK0010,Legal & Democratic Services,Supplies and Services,338025,Services,10/02/2020,3700381-JULY2019,740.00,EAST DURHAM FUNERAL SERVICE LTD.
Resources BK0010,Legal & Democratic Services,Supplies and Services,338042,Services,10/02/2020,3700604-267939/INVJ0298,650.00,TRINITY CHAMBERS.
Children and Young Peoples Services,Head of Early Help Inclusion & Vulnerable Children.,Transport,230007,Contract Hire,10/02/2020,3700321-87G,"1,870.00",BOBS TAXIS.
Resources BK0010,Digital and Customer Services,Stock A926,926900,Stock in hand-Inventory system,10/02/2020,3700369-7402587685,"18,703.00",DELL COMPUTER CORPORATION LTD.
Children and Young Peoples Services,Head of Early Help Inclusion & Vulnerable Children.,Third Party Payments,486029,Service level agreements E486,10/02/2020,3700392-DEC19-0001,"19,042.50",FAMILY ACTION.
Children and Young Peoples Services,Head of Early Help Inclusion & Vulnerable Children.,Supplies and Services,340001,Postages E340,10/02/2020,3700494-CAS-02-2020-017,600.00,NEOPOST CREDIFON.
Children and Young Peoples Services,Head of Education and Skills,Transfer Payments,510028,School Children,10/02/2020,3700592-CAS-02-2020-015,900.00,TM NURSERY ENTERPRISES LTD T/A JACK IN THE BOX DAYCARE.
Children and Young Peoples Services,Head of Education and Skills,Transport,230034,Contract Hire,10/02/2020,3700555-75409,"2,400.00",SHOTTON PRIVATE HIRE.
Children and Young Peoples Services,Head of Education and Skills,Transport,230007,Contract Hire,10/02/2020,3700417-17280,"1,394.60",HODGSONS COACH OPERATORS LTD.
Children and Young Peoples Services,Head of Education and Skills,Transport,230007,Contract Hire,10/02/2020,3700417-17282,"1,431.08",HODGSONS COACH OPERATORS LTD.
Children and Young Peoples Services,Head of Education and Skills,Transport,230034,Contract Hire,10/02/2020,3700537-RDS055,"1,280.00",RDS TAXI.
Children and Young Peoples Services,Head of Education and Skills,Transport,230007,Contract Hire,10/02/2020,3700340-5/JAN,"1,426.60",CHAPMAN TRAVEL.
Children and Young Peoples Services,Head of Education and Skills,Transport,230007,Contract Hire,10/02/2020,3700417-17279,"1,755.20",HODGSONS COACH OPERATORS LTD.
Children and Young Peoples Services,Head of Education and Skills,Transport,230034,Contract Hire,10/02/2020,3700484-4355/12,566.25,MR JOHN ADAMS T/A JA TAXIS (DURHAM).
Children and Young Peoples Services,Head of Education and Skills,Transport,230034,Contract Hire,10/02/2020,3700432-1688,"1,191.60",JDS PRIVATE HIRE DURHAM.
Children and Young Peoples Services,Head of Education and Skills,Transport,230012,Contract Hire,10/02/2020,3700596-927,"1,044.62",TONYS TAXIS (A BIRCH).
Children and Young Peoples Services,Head of Education and Skills,Transport,230012,Contract Hire,10/02/2020,3700596-928,"1,923.56",TONYS TAXIS (A BIRCH).
Children and Young Peoples Services,Head of Education and Skills,Transport,230012,Contract Hire,10/02/2020,3700382-311202005,"2,128.00",EAST DURHAM TAXIS.
Children and Young Peoples Services,Head of Education and Skills,Transport,230034,Contract Hire,10/02/2020,3700596-934,"1,216.00",TONYS TAXIS (A BIRCH).
Children and Young Peoples Services,Head of Education and Skills,Transport,230034,Contract Hire,10/02/2020,3700454-282,"1,386.00",LEE`S TAXIS (SACRISTON).
Children and Young Peoples Services,Head of Education and Skills,Transport,230012,Contract Hire,10/02/2020,3700455-TA0120,"2,320.00",LEE`S TAXIS..
Children and Young Peoples Services,Head of Education and Skills,Transport,230008,Contract Hire,10/02/2020,3700432-1700,"1,539.00",JDS PRIVATE HIRE DURHAM.
Children and Young Peoples Services,Head of Education and Skills,Transport,230012,Contract Hire,10/02/2020,3700432-1696,"1,421.60",JDS PRIVATE HIRE DURHAM.
Children and Young Peoples Services,Head of Education and Skills,Transport,230007,Contract Hire,10/02/2020,3700517-1853,"2,400.00",PAUL WATSON TRAVEL.
Children and Young Peoples Services,Head of Education and Skills,Transport,230007,Contract Hire,10/02/2020,3700412-HT449,"2,800.00",HARRY`S TAXI`S.
Children and Young Peoples Services,Head of Education and Skills,Transport,230007,Contract Hire,10/02/2020,3700524-34164,836.00,PHOENIX TAXIS T/A PRATT`S TAXIS.
Children and Young Peoples Services,Head of Education and Skills,Transport,230007,Contract Hire,10/02/2020,3700473-0269,"1,426.20",MICKS TAXIS - MURTON.
Children and Young Peoples Services,Head of Education and Skills,Transport,230034,Contract Hire,10/02/2020,3700473-0268,"1,330.00",MICKS TAXIS - MURTON.
Children and Young Peoples Services,Head of Education and Skills,Transport,230034,Contract Hire,10/02/2020,3700473-0264,"1,548.00",MICKS TAXIS - MURTON.
Children and Young Peoples Services,Head of Education and Skills,Transport,230034,Contract Hire,10/02/2020,3700304-1244/1,"1,378.58",ANGIE`S TAXIS.
Children and Young Peoples Services,Head of Education and Skills,Transport,230034,Contract Hire,10/02/2020,3700304-1244/1/2,555.06,ANGIE`S TAXIS.
Children and Young Peoples Services,Head of Education and Skills,Transport,230034,Contract Hire,10/02/2020,3700304-1244/12,"1,378.58",ANGIE`S TAXIS.
Children and Young Peoples Services,Head of Education and Skills,Transport,230007,Contract Hire,10/02/2020,3700545-JANUARY20,"1,189.55",ROGERS TAXIS.
Children and Young Peoples Services,Head of Education and Skills,Transport,230035,Contract Hire,10/02/2020,3700432-1690,"1,200.00",JDS PRIVATE HIRE DURHAM.
Children and Young Peoples Services,Head of Education and Skills,Transport,230007,Contract Hire,10/02/2020,3700459-4218,"2,007.00",LINCAB TAXIS.
Children and Young Peoples Services,Head of Education and Skills,Transport,230035,Contract Hire,10/02/2020,3700364-BEC0120,935.72,D IRVING T/A BJ TAXIS.
Children and Young Peoples Services,Head of Education and Skills,Transport,230035,Contract Hire,10/02/2020,3700465-INV01/2009,"1,911.00",MARK & JOHN CHISHOLM T/A (CHEVRON).
Children and Young Peoples Services,Head of Education and Skills,Transport,230012,Contract Hire,10/02/2020,3700469-0029,"1,767.00",MARK WATSON T/A MARK`S TAXIS.
Children and Young Peoples Services,Head of Education and Skills,Transport,230007,Contract Hire,10/02/2020,3700615-2580,703.00,WATSON OF SPENNYMOOR.
Children and Young Peoples Services,Head of Education and Skills,Transport,230012,Contract Hire,10/02/2020,3700419-20,"1,368.00",HORNDALE TAXIS LTD.
Children and Young Peoples Services,Head of Education and Skills,Transport,230007,Contract Hire,10/02/2020,3700417-17283,978.40,HODGSONS COACH OPERATORS LTD.
Children and Young Peoples Services,Head of Education and Skills,Transport,230007,Contract Hire,10/02/2020,3700492-1/3093,"1,845.00",NC TAXI`S.
Children and Young Peoples Services,Head of Education and Skills,Transport,230003,Contract Hire,10/02/2020,3700517-1854,"2,671.40",PAUL WATSON TRAVEL.
Children and Young Peoples Services,Head of Education and Skills,Transport,230010,Contract Hire,10/02/2020,3700321-87H,"2,392.00",BOBS TAXIS.
Children and Young Peoples Services,Head of Education and Skills,Transport,230007,Contract Hire,10/02/2020,3700417-17272,"3,664.60",HODGSONS COACH OPERATORS LTD.
Children and Young Peoples Services,Head of Education and Skills,Transport,230007,Contract Hire,10/02/2020,3700417-17273,"2,430.00",HODGSONS COACH OPERATORS LTD.
Children and Young Peoples Services,Head of Education and Skills,Transport,230007,Contract Hire,10/02/2020,3700417-17275,"3,998.60",HODGSONS COACH OPERATORS LTD.
Children and Young Peoples Services,Head of Education and Skills,Transport,230007,Contract Hire,10/02/2020,3700417-17277,"1,874.60",HODGSONS COACH OPERATORS LTD.
Children and Young Peoples Services,Head of Education and Skills,Transport,230007,Contract Hire,10/02/2020,3700417-17278,"2,360.00",HODGSONS COACH OPERATORS LTD.
Children and Young Peoples Services,Head of Education and Skills,Transport,230007,Contract Hire,10/02/2020,3700417-17281,"1,755.80",HODGSONS COACH OPERATORS LTD.
Children and Young Peoples Services,Head of Education and Skills,Transport,230007,Contract Hire,10/02/2020,3700468-KC1006,"1,000.00",MARK O`NEILL T/A KWIK CABS.
Children and Young Peoples Services,Head of Education and Skills,Transport,230007,Contract Hire,10/02/2020,3700465-INV01/2012,"1,560.00",MARK & JOHN CHISHOLM T/A (CHEVRON).
Children and Young Peoples Services,Head of Education and Skills,Transport,230006,Contract Hire,10/02/2020,3700485-JK00066,"2,240.00",MR JOHN KNIGHTON T/A JK TAXIS.
Children and Young Peoples Services,Head of Education and Skills,Transport,230007,Contract Hire,10/02/2020,3700435-29278,"3,515.00",JIM HUGHES COACHES LTD.
Children and Young Peoples Services,Head of Education and Skills,Transport,230012,Contract Hire,10/02/2020,3700461-4750,"1,140.00",LOCAL TRANSPORT LTD.
Children and Young Peoples Services,Head of Education and Skills,Transport,230007,Contract Hire,10/02/2020,3700584-4055/B33,"3,420.00",TED WILFORD COACHES.
Children and Young Peoples Services,Head of Education and Skills,Transport,230007,Contract Hire,10/02/2020,3700584-4297/B05,"3,420.00",TED WILFORD COACHES.
Children and Young Peoples Services,Head of Education and Skills,Transport,230009,Contract Hire,10/02/2020,3700486-078,"1,200.00",MR NEIL LEONARD T/A LENNY`S TAXIS.
Children and Young Peoples Services,Head of Education and Skills,Transport,230007,Contract Hire,10/02/2020,3700432-1689,"1,273.00",JDS PRIVATE HIRE DURHAM.
Children and Young Peoples Services,Head of Education and Skills,Transport,230009,Contract Hire,10/02/2020,3700432-1691,811.80,JDS PRIVATE HIRE DURHAM.
Children and Young Peoples Services,Head of Education and Skills,Transport,230009,Contract Hire,10/02/2020,3700432-1692,"1,400.00",JDS PRIVATE HIRE DURHAM.
Children and Young Peoples Services,Head of Education and Skills,Transport,230007,Contract Hire,10/02/2020,3700416-668,"1,000.00",HEPWORTHS TRAVEL.
Children and Young Peoples Services,Head of Education and Skills,Transport,230007,Contract Hire,10/02/2020,3700466-000041,"1,600.00",MARK HUSBAND T/A TEAK`S TAXIS.
Children and Young Peoples Services,Head of Education and Skills,Transport,230012,Contract Hire,10/02/2020,3700482-00120,914.09,MR DEREK HENDERSON.
Children and Young Peoples Services,Head of Education and Skills,Transport,230007,Contract Hire,10/02/2020,3700579-01/2020/008,"1,140.00",TARNS TAXIS LTD.
Children and Young Peoples Services,Head of Education and Skills,Transport,230007,Contract Hire,10/02/2020,3700412-HT451,"2,090.00",HARRY`S TAXI`S.
Children and Young Peoples Services,Head of Education and Skills,Transport,230009,Contract Hire,10/02/2020,3700443-2140,"1,740.00",KEN HINDS.
Children and Young Peoples Services,Head of Education and Skills,Transport,230003,Contract Hire,10/02/2020,3700435-29279,"4,085.00",JIM HUGHES COACHES LTD.
Children and Young Peoples Services,Head of Education and Skills,Transport,230003,Contract Hire,10/02/2020,3700416-669,"2,000.00",HEPWORTHS TRAVEL.
Children and Young Peoples Services,Head of Education and Skills,Transport,230003,Contract Hire,10/02/2020,3700584-5030/31/1,"2,640.80",TED WILFORD COACHES.
Children and Young Peoples Services,Head of Education and Skills,Transport,230008,Contract Hire,10/02/2020,3700295-12008,"2,049.72",24/7 TAXI SERVICES LTD.
Children and Young Peoples Services,Head of Education and Skills,Transport,230007,Contract Hire,10/02/2020,3700305-0553769,"2,043.26",ANTHONY HOBSON (TAXI).
Children and Young Peoples Services,Head of Education and Skills,Transport,230006,Contract Hire,10/02/2020,3700343-F797-5,880.00,CHRIS BELL T/A MEGAN`S TAXIS.
Children and Young Peoples Services,Head of Education and Skills,Transport,230009,Contract Hire,10/02/2020,3700400-1490,760.00,FMR SILVA PITA.
Children and Young Peoples Services,Head of Education and Skills,Transport,230008,Contract Hire,10/02/2020,3700432-1693,"2,461.80",JDS PRIVATE HIRE DURHAM.
Children and Young Peoples Services,Head of Education and Skills,Transport,230006,Contract Hire,10/02/2020,3700432-1705,"2,074.00",JDS PRIVATE HIRE DURHAM.
Children and Young Peoples Services,Head of Education and Skills,Transport,230006,Contract Hire,10/02/2020,3700451-4C1,"1,670.00",L & R PRIVATE HIRE.
Children and Young Peoples Services,Head of Education and Skills,Transport,230006,Contract Hire,10/02/2020,3700451-4C2,600.00,L & R PRIVATE HIRE.
Children and Young Peoples Services,Head of Education and Skills,Transport,230007,Contract Hire,10/02/2020,3700473-0266,992.60,MICKS TAXIS - MURTON.
Children and Young Peoples Services,Head of Education and Skills,Transport,230006,Contract Hire,10/02/2020,3700516-A039/JAN20,960.00,PAUL GREEN T/A GREEN TAXIS.
Children and Young Peoples Services,Head of Education and Skills,Transport,230008,Contract Hire,10/02/2020,3700518-DCC283,"1,680.43",PAUL`S TAXIS..
Children and Young Peoples Services,Head of Education and Skills,Transport,230008,Contract Hire,10/02/2020,3700535-005/1,"1,204.00",RAYMOND CHURNSIDE T/A S & L TAXI.
Children and Young Peoples Services,Head of Education and Skills,Transport,230008,Contract Hire,10/02/2020,3700579-01/2019/005,720.00,TARNS TAXIS LTD.
Children and Young Peoples Services,Head of Education and Skills,Transport,230007,Contract Hire,10/02/2020,3700459-4222,898.00,LINCAB TAXIS.
Children and Young Peoples Services,Head of Education and Skills,Supplies and Services,338094,Services,10/02/2020,3700609-2000242,665.84,USHAW COLLEGE.
Children and Young Peoples Services,Head of Education and Skills,Transport,230008,Contract Hire,10/02/2020,3700412-HT453,"1,600.00",HARRY`S TAXI`S.
Children and Young Peoples Services,Head of Education and Skills,Transport,230008,Contract Hire,10/02/2020,3700445-002/1,"1,920.00",KEVIN HALL T/A KDH TAXIS.
Children and Young Peoples Services,Head of Education and Skills,Transport,230008,Contract Hire,10/02/2020,3700455-KC0120,"3,825.36",LEE`S TAXIS..
Children and Young Peoples Services,Head of Education and Skills,Transport,230008,Contract Hire,10/02/2020,3700581-DCC/2020/001,"2,227.10",TAYLOR`S TAXIS.
Children and Young Peoples Services,Head of Education and Skills,Transport,230008,Contract Hire,10/02/2020,3700481-EL101-20,"1,948.00",MR CT WALKER T/A CW TAXIS.
Children and Young Peoples Services,Head of Education and Skills,Transport,230008,Contract Hire,10/02/2020,3700481-EL201-20,"2,700.80",MR CT WALKER T/A CW TAXIS.
Children and Young Peoples Services,Head of Education and Skills,Transport,230008,Contract Hire,10/02/2020,3700558-846A,"1,199.34",MR SCOTT MALCOLM MACKENZIE T/A SCOTTS TAXIS.
Children and Young Peoples Services,Head of Education and Skills,Transport,230008,Contract Hire,10/02/2020,3700523-0921,"2,833.16",PETER`S PRIVATE HIRE/PETER BEST.
Children and Young Peoples Services,Head of Education and Skills,Transport,230008,Contract Hire,10/02/2020,3700382-311202007,"2,584.00",EAST DURHAM TAXIS.
Children and Young Peoples Services,Head of Education and Skills,Transport,230008,Contract Hire,10/02/2020,3700400-1488,"1,629.06",FMR SILVA PITA.
Children and Young Peoples Services,Head of Education and Skills,Transport,230008,Contract Hire,10/02/2020,3700432-1701,"1,866.37",JDS PRIVATE HIRE DURHAM.
Children and Young Peoples Services,Head of Education and Skills,Transport,230008,Contract Hire,10/02/2020,3700617-1539024,"1,520.00",WENDYS` TAXIS.
Children and Young Peoples Services,Head of Education and Skills,Transport,230008,Contract Hire,10/02/2020,3700403-12101,"4,092.00",GATESHEAD CENTRAL TAXIS LTD.
Children and Young Peoples Services,Head of Education and Skills,Transport,230008,Contract Hire,10/02/2020,3700415-5JAN20,"2,670.00",HENRY FOREMAN T/A HENRY`S TAXIS.
Children and Young Peoples Services,Head of Education and Skills,Transport,230008,Contract Hire,10/02/2020,3700432-1707,"3,659.60",JDS PRIVATE HIRE DURHAM.
Children and Young Peoples Services,Head of Education and Skills,Transport,230008,Contract Hire,10/02/2020,3700432-1708,"2,769.64",JDS PRIVATE HIRE DURHAM.
Children and Young Peoples Services,Head of Education and Skills,Transport,230008,Contract Hire,10/02/2020,3700483-1DX,"2,400.00",MR G FREELAND T/A HUNWICK CARS.
Children and Young Peoples Services,Head of Education and Skills,Transport,230008,Contract Hire,10/02/2020,3700558-844A,"1,600.00",MR SCOTT MALCOLM MACKENZIE T/A SCOTTS TAXIS.
Children and Young Peoples Services,Head of Education and Skills,Transport,230008,Contract Hire,10/02/2020,3700558-845A,"1,539.00",MR SCOTT MALCOLM MACKENZIE T/A SCOTTS TAXIS.
Children and Young Peoples Services,Head of Education and Skills,Transport,230008,Contract Hire,10/02/2020,3700518-DCC285,"2,929.20",PAUL`S TAXIS..
Children and Young Peoples Services,Head of Education and Skills,Transport,230008,Contract Hire,10/02/2020,3700581-DCC/2020/005,"2,916.20",TAYLOR`S TAXIS.
Children and Young Peoples Services,Head of Education and Skills,Transport,230008,Contract Hire,10/02/2020,3700317-909,"1,605.31",BEELINE MINI BUSES.
Children and Young Peoples Services,Head of Education and Skills,Transport,230008,Contract Hire,10/02/2020,3700382-311202008,"3,496.00",EAST DURHAM TAXIS.
Children and Young Peoples Services,Head of Education and Skills,Transport,230008,Contract Hire,10/02/2020,3700518-DCC284,"1,273.76",PAUL`S TAXIS..
Children and Young Peoples Services,Head of Education and Skills,Transport,230008,Contract Hire,10/02/2020,3700416-667,"1,767.00",HEPWORTHS TRAVEL.
Children and Young Peoples Services,Head of Education and Skills,Transport,230008,Contract Hire,10/02/2020,3700558-851A,"2,645.50",MR SCOTT MALCOLM MACKENZIE T/A SCOTTS TAXIS.
Children and Young Peoples Services,Head of Education and Skills,Transport,230008,Contract Hire,10/02/2020,3700555-75407,"2,660.00",SHOTTON PRIVATE HIRE.
Children and Young Peoples Services,Head of Education and Skills,Transport,230008,Contract Hire,10/02/2020,3700596-929,"1,850.41",TONYS TAXIS (A BIRCH).
Children and Young Peoples Services,Head of Education and Skills,Transport,230008,Contract Hire,10/02/2020,3700412-HT450,"2,470.00",HARRY`S TAXI`S.
Children and Young Peoples Services,Head of Education and Skills,Transport,230008,Contract Hire,10/02/2020,3700468-KC1005,"1,740.88",MARK O`NEILL T/A KWIK CABS.
Children and Young Peoples Services,Head of Education and Skills,Transport,230008,Contract Hire,10/02/2020,3700558-852A,"1,725.00",MR SCOTT MALCOLM MACKENZIE T/A SCOTTS TAXIS.
Children and Young Peoples Services,Head of Education and Skills,Transport,230008,Contract Hire,10/02/2020,3700549-W014/05,"2,012.48",S & S TRAVEL LTD.
Children and Young Peoples Services,Head of Education and Skills,Transport,230008,Contract Hire,10/02/2020,3700555-75406,"2,280.00",SHOTTON PRIVATE HIRE.
Children and Young Peoples Services,Head of Education and Skills,Transport,230008,Contract Hire,10/02/2020,3700603-05/1,"2,260.24",TRIDENT TAXIS.
Children and Young Peoples Services,Head of Education and Skills,Transport,230008,Contract Hire,10/02/2020,3700317-908,"1,858.20",BEELINE MINI BUSES.
Children and Young Peoples Services,Head of Education and Skills,Transport,230006,Contract Hire,10/02/2020,3700382-311202009,"2,680.00",EAST DURHAM TAXIS.
Children and Young Peoples Services,Head of Education and Skills,Transport,230008,Contract Hire,10/02/2020,3700432-1697,"1,612.60",JDS PRIVATE HIRE DURHAM.
Children and Young Peoples Services,Head of Education and Skills,Transport,230008,Contract Hire,10/02/2020,3700432-1698,"1,778.40",JDS PRIVATE HIRE DURHAM.
Children and Young Peoples Services,Head of Education and Skills,Transport,230008,Contract Hire,10/02/2020,3700432-1699,"1,613.00",JDS PRIVATE HIRE DURHAM.
Children and Young Peoples Services,Head of Education and Skills,Transport,230008,Contract Hire,10/02/2020,3700432-1702,"1,440.00",JDS PRIVATE HIRE DURHAM.
Children and Young Peoples Services,Head of Education and Skills,Transport,230008,Contract Hire,10/02/2020,3700432-1703,"1,613.00",JDS PRIVATE HIRE DURHAM.
Children and Young Peoples Services,Head of Education and Skills,Transport,230008,Contract Hire,10/02/2020,3700432-1704,"1,360.00",JDS PRIVATE HIRE DURHAM.
Children and Young Peoples Services,Head of Education and Skills,Transport,230008,Contract Hire,10/02/2020,3700486-075,"1,768.20",MR NEIL LEONARD T/A LENNY`S TAXIS.
Children and Young Peoples Services,Head of Education and Skills,Transport,230008,Contract Hire,10/02/2020,3700486-076,"1,920.00",MR NEIL LEONARD T/A LENNY`S TAXIS.
Children and Young Peoples Services,Head of Education and Skills,Transport,230016,Contract Hire,10/02/2020,3700541-3268,700.00,RICHARD SHANKS T/A RICHIES TAXIS.
Children and Young Peoples Services,Head of Education and Skills,Transport,230008,Contract Hire,10/02/2020,3700308-DCC18JAN20,"2,470.00",ATLAS TAXIS BISHOP AUCKLAND.
Children and Young Peoples Services,Head of Education and Skills,Transport,230008,Contract Hire,10/02/2020,3700308-DCC19JAN20,"2,470.00",ATLAS TAXIS BISHOP AUCKLAND.
Children and Young Peoples Services,Head of Education and Skills,Transport,230008,Contract Hire,10/02/2020,3700308-DCC7JAN20,"2,500.78",ATLAS TAXIS BISHOP AUCKLAND.
Children and Young Peoples Services,Head of Education and Skills,Transport,230008,Contract Hire,10/02/2020,3700308-DCC8JAN20,"2,635.00",ATLAS TAXIS BISHOP AUCKLAND.
Children and Young Peoples Services,Head of Education and Skills,Transport,230008,Contract Hire,10/02/2020,3700365-1664,"1,720.64",DA TAXIS.
Children and Young Peoples Services,Head of Education and Skills,Transport,230008,Contract Hire,10/02/2020,3700365-1665,"1,458.82",DA TAXIS.
Children and Young Peoples Services,Head of Education and Skills,Transport,230016,Contract Hire,10/02/2020,3700366-390,"1,140.00",DA TRAVEL.
Children and Young Peoples Services,Head of Education and Skills,Transport,230008,Contract Hire,10/02/2020,3700406-005/1,"1,941.80",GMC TAXIS NORTH EAST.
Children and Young Peoples Services,Head of Education and Skills,Transport,230016,Contract Hire,10/02/2020,3700412-HT452,520.00,HARRY`S TAXI`S.
Children and Young Peoples Services,Head of Education and Skills,Transport,230008,Contract Hire,10/02/2020,3700438-0014,"2,505.72",JORA SINGH TAXIS.
Children and Young Peoples Services,Head of Education and Skills,Transport,230008,Contract Hire,10/02/2020,3700442-1053,"2,487.67",K & R TAXIS (STANLEY).
Children and Young Peoples Services,Head of Education and Skills,Transport,230008,Contract Hire,10/02/2020,3700459-4219,"2,330.16",LINCAB TAXIS.
Children and Young Peoples Services,Head of Education and Skills,Transport,230008,Contract Hire,10/02/2020,3700459-4224,"2,542.20",LINCAB TAXIS.
Children and Young Peoples Services,Head of Education and Skills,Transport,230008,Contract Hire,10/02/2020,3700465-INV01/2006,"1,798.66",MARK & JOHN CHISHOLM T/A (CHEVRON).
Children and Young Peoples Services,Head of Education and Skills,Transport,230008,Contract Hire,10/02/2020,3700465-INV01/2007,"2,280.00",MARK & JOHN CHISHOLM T/A (CHEVRON).
Children and Young Peoples Services,Head of Education and Skills,Transport,230008,Contract Hire,10/02/2020,3700468-KC1007,570.00,MARK O`NEILL T/A KWIK CABS.
Children and Young Peoples Services,Head of Education and Skills,Transport,230008,Contract Hire,10/02/2020,3700469-0030,"1,330.00",MARK WATSON T/A MARK`S TAXIS.
Children and Young Peoples Services,Head of Education and Skills,Transport,230008,Contract Hire,10/02/2020,3700481-OAK101-20,"1,857.44",MR CT WALKER T/A CW TAXIS.
Children and Young Peoples Services,Head of Education and Skills,Transport,230008,Contract Hire,10/02/2020,3700485-JK000222,"2,470.00",MR JOHN KNIGHTON T/A JK TAXIS.
Children and Young Peoples Services,Head of Education and Skills,Transport,230008,Contract Hire,10/02/2020,3700558-848A,"1,425.00",MR SCOTT MALCOLM MACKENZIE T/A SCOTTS TAXIS.
Children and Young Peoples Services,Head of Education and Skills,Transport,230006,Contract Hire,10/02/2020,3700558-849A,"1,511.83",MR SCOTT MALCOLM MACKENZIE T/A SCOTTS TAXIS.
Children and Young Peoples Services,Head of Education and Skills,Transport,230016,Contract Hire,10/02/2020,3700541-3267JAN,"1,577.00",RICHARD SHANKS T/A RICHIES TAXIS.
Children and Young Peoples Services,Head of Education and Skills,Transport,230008,Contract Hire,10/02/2020,3700549-S009/05,"2,701.80",S & S TRAVEL LTD.
Children and Young Peoples Services,Head of Education and Skills,Transport,230008,Contract Hire,10/02/2020,3700549-W010/05JAN,"2,341.56",S & S TRAVEL LTD.
Children and Young Peoples Services,Head of Education and Skills,Transport,230008,Contract Hire,10/02/2020,3700549-W032/05,"2,660.00",S & S TRAVEL LTD.
Children and Young Peoples Services,Head of Education and Skills,Transport,230008,Contract Hire,10/02/2020,3700549-W042/05,"2,090.00",S & S TRAVEL LTD.
Children and Young Peoples Services,Head of Education and Skills,Transport,230008,Contract Hire,10/02/2020,3700555-75403,"2,077.46",SHOTTON PRIVATE HIRE.
Children and Young Peoples Services,Head of Education and Skills,Transport,230008,Contract Hire,10/02/2020,3700555-75404,"2,835.58",SHOTTON PRIVATE HIRE.
Children and Young Peoples Services,Head of Education and Skills,Transport,230008,Contract Hire,10/02/2020,3700555-75405,"2,375.00",SHOTTON PRIVATE HIRE.
Children and Young Peoples Services,Head of Education and Skills,Transport,230008,Contract Hire,10/02/2020,3700365-1661,"1,520.00",DA TAXIS.
Children and Young Peoples Services,Head of Education and Skills,Transport,230008,Contract Hire,10/02/2020,3700459-4217,"2,335.48",LINCAB TAXIS.
Children and Young Peoples Services,Head of Education and Skills,Transport,230008,Contract Hire,10/02/2020,3700486-077,"1,985.00",MR NEIL LEONARD T/A LENNY`S TAXIS.
Children and Young Peoples Services,Head of Education and Skills,Transport,230008,Contract Hire,10/02/2020,3700546-005JAN,"1,900.00",RONS TAXI (CHESTER LE ST).
Children and Young Peoples Services,Head of Education and Skills,Transport,230016,Contract Hire,10/02/2020,3700549-S101/05,"1,265.00",S & S TRAVEL LTD.
Children and Young Peoples Services,Head of Education and Skills,Transport,230008,Contract Hire,10/02/2020,3700549-W056/05JAN,"2,090.00",S & S TRAVEL LTD.
Children and Young Peoples Services,Head of Education and Skills,Transport,230008,Contract Hire,10/02/2020,3700549-W067/05JAN,"2,090.00",S & S TRAVEL LTD.
Children and Young Peoples Services,Head of Education and Skills,Transport,230008,Contract Hire,10/02/2020,3700549-W076/05,"2,323.80",S & S TRAVEL LTD.
Children and Young Peoples Services,Head of Education and Skills,Transport,230008,Contract Hire,10/02/2020,3700403-12101-A001,"2,888.00",GATESHEAD CENTRAL TAXIS LTD.
Children and Young Peoples Services,Head of Education and Skills,Transport,230008,Contract Hire,10/02/2020,3700403-12101-A008,"3,496.00",GATESHEAD CENTRAL TAXIS LTD.
Children and Young Peoples Services,Head of Education and Skills,Transport,230008,Contract Hire,10/02/2020,3700403-12101-A015,"2,736.00",GATESHEAD CENTRAL TAXIS LTD.
Children and Young Peoples Services,Head of Education and Skills,Transport,230006,Contract Hire,10/02/2020,3700403-12101-A052,"1,680.00",GATESHEAD CENTRAL TAXIS LTD.
Children and Young Peoples Services,Head of Education and Skills,Transport,230008,Contract Hire,10/02/2020,3700403-12101-A056,"2,444.40",GATESHEAD CENTRAL TAXIS LTD.
Children and Young Peoples Services,Head of Education and Skills,Transport,230008,Contract Hire,10/02/2020,3700403-12101-A066,"2,976.00",GATESHEAD CENTRAL TAXIS LTD.
Children and Young Peoples Services,Head of Education and Skills,Transport,230008,Contract Hire,10/02/2020,3700552-145,"2,400.00",SAM MONTAGUE T/A 8 SEATER TRAVEL.
Children and Young Peoples Services,Head of Education and Skills,Transport,230008,Contract Hire,10/02/2020,3700403-12101-A045,"3,960.00",GATESHEAD CENTRAL TAXIS LTD.
Children and Young Peoples Services,Head of Education and Skills,Transport,230008,Contract Hire,10/02/2020,3700432-1694,"2,470.00",JDS PRIVATE HIRE DURHAM.
Children and Young Peoples Services,Head of Education and Skills,Transport,230006,Contract Hire,10/02/2020,3700486-079,"2,000.00",MR NEIL LEONARD T/A LENNY`S TAXIS.
Children and Young Peoples Services,Head of Education and Skills,Transport,230010,Contract Hire,10/02/2020,3700397-05FCTDJAN2020,"1,424.91",FIRST CHOICE TAXIS DURHAM.
Children and Young Peoples Services,Head of Education and Skills,Transport,230010,Contract Hire,10/02/2020,3700421-338,945.00,I CLYDESDALE T/A BURNOPFIELD TAXIS.
Children and Young Peoples Services,Head of Education and Skills,Transport,230010,Contract Hire,10/02/2020,3700459-4216,"2,457.13",LINCAB TAXIS.
Children and Young Peoples Services,Head of Education and Skills,Transport,230010,Contract Hire,10/02/2020,3700468-KW1000/1,760.00,MARK O`NEILL T/A KWIK CABS.
Children and Young Peoples Services,Head of Education and Skills,Transport,230010,Contract Hire,10/02/2020,3700579-01/2019/004/1,"1,530.00",TARNS TAXIS LTD.
Children and Young Peoples Services,Head of Education and Skills,Transport,230010,Contract Hire,10/02/2020,3700618-0120,"1,605.00",WEST AUCKLAND TOWN TRAVEL (WATT).
Children and Young Peoples Services,Head of Education and Skills,Transport,230008,Contract Hire,10/02/2020,3700412-HT448,"2,300.00",HARRY`S TAXI`S.
Children and Young Peoples Services,Head of Education and Skills,Transport,230006,Contract Hire,10/02/2020,3700295-12017,960.00,24/7 TAXI SERVICES LTD.
Children and Young Peoples Services,Head of Education and Skills,Transport,230006,Contract Hire,10/02/2020,3700297-592,817.60,A BARKER.
Children and Young Peoples Services,Head of Education and Skills,Transport,230006,Contract Hire,10/02/2020,3700302-F706-5,720.00,AJ`S TAXIS.
Children and Young Peoples Services,Head of Education and Skills,Transport,230006,Contract Hire,10/02/2020,3700340-5/1,"1,620.00",CHAPMAN TRAVEL.
Children and Young Peoples Services,Head of Education and Skills,Transport,230006,Contract Hire,10/02/2020,3700410-005JAN20,640.00,GUY`S TAXIS.
Children and Young Peoples Services,Head of Education and Skills,Transport,230006,Contract Hire,10/02/2020,3700417-17287,766.88,HODGSONS COACH OPERATORS LTD.
Children and Young Peoples Services,Head of Education and Skills,Transport,230006,Contract Hire,10/02/2020,3700419-22/1,"1,080.00",HORNDALE TAXIS LTD.
Children and Young Peoples Services,Head of Education and Skills,Transport,230006,Contract Hire,10/02/2020,3700439-F80105,828.00,JOVIAL PRIVATE HIRE.
Children and Young Peoples Services,Head of Education and Skills,Transport,230006,Contract Hire,10/02/2020,3700517-1852,"1,080.00",PAUL WATSON TRAVEL.
Children and Young Peoples Services,Head of Education and Skills,Transport,230006,Contract Hire,10/02/2020,3700524-34169,"1,020.00",PHOENIX TAXIS T/A PRATT`S TAXIS.
Children and Young Peoples Services,Head of Education and Skills,Transport,230006,Contract Hire,10/02/2020,3700524-34171,"1,628.00",PHOENIX TAXIS T/A PRATT`S TAXIS.
Children and Young Peoples Services,Head of Education and Skills,Transport,230006,Contract Hire,10/02/2020,3700524-34175,"1,536.00",PHOENIX TAXIS T/A PRATT`S TAXIS.
Children and Young Peoples Services,Head of Childrens Social Care,Supplies and Services,338043,Services,10/02/2020,3700448-CW/CJF/14418/1,692.27,KIRKUP LASCELLES & CREED.
Children and Young Peoples Services,Head of Childrens Social Care,Transport,230005,Contract Hire,10/02/2020,3700567-SI-323,665.50,STEVEN PRATT T/A PTL TAXIS DURHAM.
Children and Young Peoples Services,Head of Childrens Social Care,Supplies and Services,384199,Miscellaneous Expenses,10/02/2020,3700530-24319,797.90,PROGRESSIVE CARE FAMILIES.
Regeneration and Local Services,Culture Sport and Tourism,Supplies and Services,384167,Miscellaneous Expenses,11/02/2020,3701614-9012,"1,150.00",QUEST & NBS.
Regeneration and Local Services,Culture Sport and Tourism,Premises,145023,Cleaning and Domestic Supplies,11/02/2020,3701515-20/01/013,805.00,KRYSTAL CLEANING SERVICES LTD (KCS).
Regeneration and Local Services,Environmental Services,Transport,210057,Repair and Maintenance of Vehicles,11/02/2020,3701382-35177123,887.00,BELL TRUCK SALES LTD T/A BELL TRUCK & VAN.
Regeneration and Local Services,Environmental Services,Stock A926,926004,Stock,11/02/2020,3701573-99140,760.00,MTS BOBCAT.
Regeneration and Local Services,Environmental Services,Premises,108099,Service Repairs and Maintenance,11/02/2020,3701590-0000743789,"9,900.00",OPENVIEW SECURITY SOLUTIONS LTD.
Regeneration and Local Services,Culture Sport and Tourism,Supplies and Services,384167,Miscellaneous Expenses,11/02/2020,3701614-9006,"1,150.00",QUEST & NBS.
Regeneration and Local Services,Technical Services CM0300,Supplies and Services,304221,Equipment and Materials,11/02/2020,3701479-960674531,863.37,HCL SAFETY LTD.
Regeneration and Local Services,Technical Services CM0300,Third Party Payments,430100,Rendered by Private Contractors,11/02/2020,3701585-DI20332698,940.68,NORTHERN POWERGRID (NORTHEAST) LTD.
Regeneration and Local Services,Technical Services CM0300,Supplies and Services,304357,Equipment and Materials,11/02/2020,3701466-DCC190120,"18,677.23",GAP GROUP LTD.
Regeneration and Local Services,Corporate Property and Land,Supplies and Services,304221,Equipment and Materials,11/02/2020,3701672-122652,720.25,TOMMY WARDLE.
Regeneration and Local Services,Business Durham CL0850,Premises,108099,Service Repairs and Maintenance,11/02/2020,3701626-11323,808.00,SAFEGUARD SECURITY (NE) LTD.
Regeneration and Local Services,Transport and Contracted Services,Premises,120009,Energy Costs,11/02/2020,3701585-DI20334176,713.00,NORTHERN POWERGRID (NORTHEAST) LTD.
Regeneration and Local Services,Corporate Property and Land,Supplies and Services,338027,Services,11/02/2020,3701699-3435347,"2,570.00",WOMBLE BOND DICKINSON (UK) LLP.
Regeneration and Local Services,Corporate Property and Land,Supplies and Services,338066,Services,11/02/2020,3701402-DCC01-19,"4,506.39",CHRIS BRAIN ASSOCIATES.
Regeneration and Local Services,Environmental Services,Construction work A908,908105,Construction work,11/02/2020,3701590-0000743880,"13,871.74",OPENVIEW SECURITY SOLUTIONS LTD.
Adult and Health Services,Head of Adults,Transport,230005,Contract Hire,11/02/2020,3701465-101593,883.66,G & P JOHNSON LTD T/A NIGHTINGALE COACHES.
Adult and Health Services,Commissioning inc Supporting People,Third Party Payments,442002,Supporting People E442,11/02/2020,3701417-1969941,"19,868.48",CREATIVE SUPPORT LTD.
Adult and Health Services,Commissioning inc Supporting People,Third Party Payments,443001,Supporting People E443,11/02/2020,3701436-1970016,"1,475.92",DURHAM ACTION ON SINGLE HOUSING LTD.
Adult and Health Services,Commissioning inc Supporting People,Third Party Payments,441001,Supporting People E441,11/02/2020,3701481-1970008,"26,849.32",HOME GROUP LTD FORMERLY STONHAM HOUSING ASSOCIATION LTD.
Adult and Health Services,Commissioning inc Supporting People,Third Party Payments,442002,Supporting People E442,11/02/2020,3701481-1970011,"27,962.72",HOME GROUP LTD FORMERLY STONHAM HOUSING ASSOCIATION LTD.
Adult and Health Services,Commissioning inc Supporting People,Third Party Payments,442002,Supporting People E442,11/02/2020,3701542-1969943,"5,469.72",MENTAL HEALTH MATTERS.
Adult and Health Services,Commissioning inc Supporting People,Third Party Payments,442002,Supporting People E442,11/02/2020,3701542-555/07262,"15,053.00",MENTAL HEALTH MATTERS.
Adult and Health Services,Commissioning inc Supporting People,Third Party Payments,442002,Supporting People E442,11/02/2020,3701618-1969945,"11,794.80",RICHMOND FELLOWSHIP.
Adult and Health Services,Commissioning inc Supporting People,Third Party Payments,441001,Supporting People E441,11/02/2020,3701618-1969958,"9,423.88",RICHMOND FELLOWSHIP.
Adult and Health Services,Commissioning inc Supporting People,Third Party Payments,442002,Supporting People E442,11/02/2020,3701670-1969982,"5,088.84",THIRTEEN HOUSING GROUP LTD.
Adult and Health Services,Commissioning inc Supporting People,Third Party Payments,441001,Supporting People E441,11/02/2020,3701689-1969960,"2,367.20",WADDINGTON STREET CENTRE LTD.
Adult and Health Services,Commissioning inc Supporting People,Third Party Payments,442002,Supporting People E442,11/02/2020,3701689-1969964,874.20,WADDINGTON STREET CENTRE LTD.
Adult and Health Services,Commissioning inc Supporting People,Third Party Payments,479111,Purchase of Care,11/02/2020,3701375-1970000,"3,297.48",ANCHOR HANOVER GROUP.
Adult and Health Services,Commissioning inc Supporting People,Third Party Payments,442002,Supporting People E442,11/02/2020,3701384-1969961,"16,448.04",BID SERVICES.
Adult and Health Services,Commissioning inc Supporting People,Third Party Payments,479111,Purchase of Care,11/02/2020,3701481-1969968,900.48,HOME GROUP LTD FORMERLY STONHAM HOUSING ASSOCIATION LTD.
Adult and Health Services,Commissioning inc Supporting People,Third Party Payments,441001,Supporting People E441,11/02/2020,3701440-1969959,"5,483.40",EAST DURHAM COMMUNITY INITIATIVES LTD.
Adult and Health Services,Commissioning inc Supporting People,Third Party Payments,442002,Supporting People E442,11/02/2020,3701481-1970004,"22,862.56",HOME GROUP LTD FORMERLY STONHAM HOUSING ASSOCIATION LTD.
Adult and Health Services,Commissioning inc Supporting People,Third Party Payments,441001,Supporting People E441,11/02/2020,3701481-1970006,"54,465.72",HOME GROUP LTD FORMERLY STONHAM HOUSING ASSOCIATION LTD.
Adult and Health Services,Commissioning inc Supporting People,Third Party Payments,442002,Supporting People E442,11/02/2020,3701554-1970001,"2,620.48",MOVING ON HOUSING.
Adult and Health Services,Commissioning inc Supporting People,Third Party Payments,442002,Supporting People E442,11/02/2020,3701638-1969992,"6,331.08",SINGLE HOMELESS ACTION INITIATIVE IN DURHAM LTD (SHAID).
Adult and Health Services,Commissioning inc Supporting People,Third Party Payments,441001,Supporting People E441,11/02/2020,3701670-1969984,"11,136.08",THIRTEEN HOUSING GROUP LTD.
Adult and Health Services,Commissioning inc Supporting People,Third Party Payments,441001,Supporting People E441,11/02/2020,3701670-1969983,"7,776.68",THIRTEEN HOUSING GROUP LTD.
Adult and Health Services,Commissioning inc Supporting People,Third Party Payments,441001,Supporting People E441,11/02/2020,3701436-1969990,"20,819.76",DURHAM ACTION ON SINGLE HOUSING LTD.
Adult and Health Services,Commissioning inc Supporting People,Third Party Payments,443001,Supporting People E443,11/02/2020,3701436-1969994,"2,951.84",DURHAM ACTION ON SINGLE HOUSING LTD.
Adult and Health Services,Commissioning inc Supporting People,Third Party Payments,442002,Supporting People E442,11/02/2020,3701461-1969989,"23,343.56",FOUNDATION.
Adult and Health Services,Commissioning inc Supporting People,Third Party Payments,441001,Supporting People E441,11/02/2020,3701476-1969942,"18,082.80",HARBOUR SUPPORT SERVICES.
Adult and Health Services,Commissioning inc Supporting People,Third Party Payments,442002,Supporting People E442,11/02/2020,3701481-1969939,"91,080.12",HOME GROUP LTD FORMERLY STONHAM HOUSING ASSOCIATION LTD.
Adult and Health Services,Commissioning inc Supporting People,Third Party Payments,442002,Supporting People E442,11/02/2020,3701487-1969940,"33,554.16",HUMANKIND CHARITY.
Adult and Health Services,Commissioning inc Supporting People,Third Party Payments,441001,Supporting People E441,11/02/2020,3701662-1969962,"19,231.20",THE CYRENIANS LTD T/A CHANGING LIVES.
Adult and Health Services,Commissioning inc Supporting People,Third Party Payments,441001,Supporting People E441,11/02/2020,3701670-1970013,"11,797.88",THIRTEEN HOUSING GROUP LTD.
Adult and Health Services,Commissioning inc Supporting People,Third Party Payments,441001,Supporting People E441,11/02/2020,3701692-1969944,"7,157.00",WEAR VALLEY WOMENS AID LTD.
Adult and Health Services,Head of Adults,Transport,230005,Contract Hire,11/02/2020,3701368-E10/SMJAN,"1,869.31",AABAT TAXIS.
Adult and Health Services,Head of Adults,Transport,230005,Contract Hire,11/02/2020,3701368-E16/SV,806.25,AABAT TAXIS.
Adult and Health Services,Head of Adults,Transport,230005,Contract Hire,11/02/2020,3701379-DCC5JAN20,"1,464.00",ATLAS TAXIS BISHOP AUCKLAND.
Adult and Health Services,Head of Adults,Transport,230005,Contract Hire,11/02/2020,3701465-101592,910.14,G & P JOHNSON LTD T/A NIGHTINGALE COACHES.
Adult and Health Services,Head of Adults,Transport,230005,Contract Hire,11/02/2020,3701465-101592A,"1,232.00",G & P JOHNSON LTD T/A NIGHTINGALE COACHES.
Adult and Health Services,Head of Adults,Transport,230005,Contract Hire,11/02/2020,3701465-101594,551.72,G & P JOHNSON LTD T/A NIGHTINGALE COACHES.
Adult and Health Services,Head of Adults,Transport,230005,Contract Hire,11/02/2020,3701465-101595,956.80,G & P JOHNSON LTD T/A NIGHTINGALE COACHES.
Adult and Health Services,Head of Adults,Transport,230005,Contract Hire,11/02/2020,3701668-214,983.92,THE TAXI COMPANY (MURTON) LTD.
Adult and Health Services,Head of Adults,Transport,230005,Contract Hire,11/02/2020,3701489-IR2001012,798.00,I & R EXECUTIVE TRAVEL.
Adult and Health Services,Head of Adults,Transport,230005,Contract Hire,11/02/2020,3701654-B1023,"1,617.00",TALBOTS TRAVEL LTD.
Adult and Health Services,Head of Adults,Transport,230005,Contract Hire,11/02/2020,3701368-E20/SX,620.40,AABAT TAXIS.
Adult and Health Services,Head of Adults,Transport,230005,Contract Hire,11/02/2020,3701465-101568,"2,026.27",G & P JOHNSON LTD T/A NIGHTINGALE COACHES.
Adult and Health Services,Head of Adults,Transport,230005,Contract Hire,11/02/2020,3701465-101569,"1,910.92",G & P JOHNSON LTD T/A NIGHTINGALE COACHES.
Regeneration and Local Services,Culture Sport and Tourism,Supplies and Services,338047,Services,11/02/2020,3701449-60386396,524.27,ENTERTAINMENT ONE UK LTD.
Regeneration and Local Services,Culture Sport and Tourism,Supplies and Services,338047,Services,11/02/2020,3701449-60386790,"2,148.75",ENTERTAINMENT ONE UK LTD.
Regeneration and Local Services,Culture Sport and Tourism,Supplies and Services,338047,Services,11/02/2020,3701407-9695,"2,226.25",COMEDY STORE MANAGEMENT T/A THE COMEDY STORE LTD.
Regeneration and Local Services,Culture Sport and Tourism,Supplies and Services,338047,Services,11/02/2020,3701677-00097641,585.84,TRAFALGAR RELEASING LTD.
Regeneration and Local Services,Culture Sport and Tourism,Supplies and Services,384199,Miscellaneous Expenses,11/02/2020,3701614-9008,"1,150.00",QUEST & NBS.
Adult and Health Services,Public Health CC0450,Third Party Payments,460803,Contract Payments,11/02/2020,3701477-2510033371,"954,094.42",HARROGATE & DISTRICT NHS FOUNDATION TRUST.
Transformation and Partnerships,Transformation,Supplies and Services,312009,Newspapers books and periodicals E312,11/02/2020,3701552-RES-02-2020-023,"3,750.00",MODERN FIRST EDITIONS LTD.
Transformation and Partnerships,Partnerships & Community Engagement Div.,Supplies and Services,384086,Miscellaneous Expenses,11/02/2020,3701546-VOUCHERBELR09-19,725.00,MIDDLETON & TEESDALE PRIZE SILVER BAND.
Transformation and Partnerships,Partnerships & Community Engagement Div.,Supplies and Services,384086,Miscellaneous Expenses,11/02/2020,3701631-VOUCHERSTOD03-19,999.00,SHINCLIFFE JUNIORS FC.
Resources BK0010,Digital and Customer Services,Supplies and Services,342033,Computers and Communications,11/02/2020,3701428-7402586281,"1,039.36",DELL COMPUTER CORPORATION LTD.
Resources BK0010,Legal & Democratic Services,Supplies and Services,312009,Newspapers books and periodicals E312,11/02/2020,3701536-PG754100X,828.50,MARSTON BOOK SERVICES LTD.
Dedicated Schools Grant BG0015,DSG High Needs Block,Transport,230008,Contract Hire,11/02/2020,3701421-A127,"1,805.00",DAVID FOREMAN T/A DAVES TAXIS.
Dedicated Schools Grant BG0015,DSG High Needs Block,Supplies and Services,384302,Miscellaneous Expenses,11/02/2020,3701370-PASI136,"5,000.00",ADVANCE LEARNING PARTNERSHIP.
Children and Young Peoples Services,Head of Early Help Inclusion & Vulnerable Children.,Supplies and Services,338076,Services,11/02/2020,3701518-LTC0810,"16,232.93",LEISURE IN THE COMMUNITY LTD.*
Children and Young Peoples Services,Head of Education and Skills,Transfer Payments,510026,School Children,11/02/2020,3701398-JANUARY2020TOP-UP,703.39,CASTLE KINDERGARTEN LTD.
Children and Young Peoples Services,Head of Education and Skills,Transfer Payments,510025,School Children,11/02/2020,3701405-JANUARY2020TOP-UP2,609.60,CLEVES CROSS LEARNING TRUST.
Children and Young Peoples Services,Head of Education and Skills,Transfer Payments,510025,School Children,11/02/2020,3701415-JANUARY2020TOP-UP,"1,159.98",CRAGHEAD DEVELOPMENT TRUST.
Children and Young Peoples Services,Head of Education and Skills,Transfer Payments,510025,School Children,11/02/2020,3701425-JANUARY2020TOP-UP,550.11,DAYPARK LTD T/A YELLOW WELLIES.
Children and Young Peoples Services,Head of Education and Skills,Transfer Payments,510027,School Children,11/02/2020,3701439-JANUARY2020TOP-UP,879.24,EARLY LEARNERS PRIVATE DAY NURSERY.
Children and Young Peoples Services,Head of Education and Skills,Transfer Payments,510025,School Children,11/02/2020,3701442-JANUARY2020TOP-UP,565.05,EDEN GARDEN NURSERY.
Children and Young Peoples Services,Head of Education and Skills,Transfer Payments,510027,School Children,11/02/2020,3701447-JANUARY2020TOP-UP,"2,270.60",EMERALDS LITTLE GEMS DAYCARE LTD.
Children and Young Peoples Services,Head of Education and Skills,Transfer Payments,510025,School Children,11/02/2020,3701447-JANUARY2020TOP-UP1,"1,159.98",EMERALDS LITTLE GEMS DAYCARE LTD.
Children and Young Peoples Services,Head of Education and Skills,Transfer Payments,510025,School Children,11/02/2020,3701485-JANUARY2020TOP-UP,510.49,HOUSE OF EDEN LTD.
Children and Young Peoples Services,Head of Education and Skills,Transfer Payments,510027,School Children,11/02/2020,3701607-JANUARY2020TOP-UP,"1,396.28",PLAYDAY NURSERY.
Children and Young Peoples Services,Head of Education and Skills,Transfer Payments,510025,School Children,11/02/2020,3701607-JANUARY2020TOP-UP1,"1,055.09",PLAYDAY NURSERY.
Children and Young Peoples Services,Head of Education and Skills,Transfer Payments,510027,School Children,11/02/2020,3701643-JANUARY2020TOP-UP,532.58,ST OSWALD`S PRE SCHOOL LEARNING CENTRE.
Children and Young Peoples Services,Head of Education and Skills,Transfer Payments,510027,School Children,11/02/2020,3701644-JANUARY2020TOP-UP,737.81,ST OSWALD`S SUNSHINE CLUB.
Children and Young Peoples Services,Head of Education and Skills,Transport,230034,Contract Hire,11/02/2020,3701513-CTD020/20,990.00,KEVIN WALKER T/A CENTRAL TAXIS.
Children and Young Peoples Services,Head of Education and Skills,Transport,230034,Contract Hire,11/02/2020,3701557-215,"1,600.00",MR BRIAN JOHNSON T/A BRYS TAXIS.
Children and Young Peoples Services,Head of Education and Skills,Transport,230007,Contract Hire,11/02/2020,3701564-1780,"1,365.00",MR PETER YOUNG.
Children and Young Peoples Services,Head of Education and Skills,Transport,230012,Contract Hire,11/02/2020,3701368-E11/SNJAN,"1,237.66",AABAT TAXIS.
Children and Young Peoples Services,Head of Education and Skills,Transport,230007,Contract Hire,11/02/2020,3701650-SI-363,"1,000.00",STEVEN PRATT T/A PTL TAXIS DURHAM.
Children and Young Peoples Services,Head of Education and Skills,Transport,230007,Contract Hire,11/02/2020,3701690-74-3402,855.00,WALTONS TAXIS.
Children and Young Peoples Services,Head of Education and Skills,Transport,230007,Contract Hire,11/02/2020,3701566-ESH0120,980.00,MR STUART SCOTT T/A AIRPORT CARS DURHAM
Children and Young Peoples Services,Head of Education and Skills,Transport,230035,Contract Hire,11/02/2020,3701465-101561,"1,075.40",G & P JOHNSON LTD T/A NIGHTINGALE COACHES.
Children and Young Peoples Services,Head of Education and Skills,Transport,230007,Contract Hire,11/02/2020,3701593-8059,"2,239.72",OVERLANDER LTD.
Children and Young Peoples Services,Head of Education and Skills,Transport,230007,Contract Hire,11/02/2020,3701388-0256,722.00,BIRDS TAXIS LTD.
Children and Young Peoples Services,Head of Education and Skills,Transport,230034,Contract Hire,11/02/2020,3701543-0005-5274,800.00,MGD TAXIS.
Children and Young Peoples Services,Head of Education and Skills,Transport,230034,Contract Hire,11/02/2020,3701520-4220,"1,714.68",LINCAB TAXIS.
Children and Young Peoples Services,Head of Education and Skills,Transport,230009,Contract Hire,11/02/2020,3701368-E7/SH,"1,300.00",AABAT TAXIS.
Children and Young Peoples Services,Head of Education and Skills,Transport,230034,Contract Hire,11/02/2020,3701520-4221,"1,394.60",LINCAB TAXIS.
Dedicated Schools Grant BG0015,DSG High Needs Block,Central Support and Other Recharges,689988,Unclassified E690,11/02/2020,3701369-JANUARY2020TOP-UP,"1,770.82",ACRE RIGG ACADEMY.
Dedicated Schools Grant BG0015,DSG High Needs Block,Central Support and Other Recharges,689988,Unclassified E690,11/02/2020,3701404-JANUARY2020TOP-UP,"1,212.33",CLEVES CROSS LEARNING TRUST T/A ROSA STREET PRIMARY SCHOOL.
Dedicated Schools Grant BG0015,DSG High Needs Block,Central Support and Other Recharges,689995,Unclassified E690,11/02/2020,3701404-JANUARY2020TOP-UP1,835.05,CLEVES CROSS LEARNING TRUST T/A ROSA STREET PRIMARY SCHOOL.
Dedicated Schools Grant BG0015,DSG High Needs Block,Central Support and Other Recharges,689988,Unclassified E690,11/02/2020,3701405-JANUARY2020TOP-UP,"5,095.33",CLEVES CROSS LEARNING TRUST.
Dedicated Schools Grant BG0015,DSG High Needs Block,Central Support and Other Recharges,689995,Unclassified E690,11/02/2020,3701405-JANUARY2020TOP-UP1,"1,465.61",CLEVES CROSS LEARNING TRUST.
Dedicated Schools Grant BG0015,DSG High Needs Block,Central Support and Other Recharges,689989,Unclassified E690,11/02/2020,3701592-JANUARY2020TOP-UP,"3,175.37",OUSTON PRIMARY SCHOOL (PART OF JIGSAW LEARNING TRUST).
Dedicated Schools Grant BG0015,DSG High Needs Block,Central Support and Other Recharges,689988,Unclassified E690,11/02/2020,3701649-JANUARY2020TOP-UP,"4,988.48",STEPHENSON WAY ACADEMY & NURSERY SCHOOL.
Children and Young Peoples Services,Head of Education and Skills,Transport,230007,Contract Hire,11/02/2020,3701545-0265,"1,280.00",MICKS TAXIS - MURTON.
Children and Young Peoples Services,Head of Education and Skills,Transport,230007,Contract Hire,11/02/2020,3701562-192-40-65,"1,590.00",MR GS ANDERSON.
Children and Young Peoples Services,Head of Education and Skills,Transport,230007,Contract Hire,11/02/2020,3701465-101564,"2,106.00",G & P JOHNSON LTD T/A NIGHTINGALE COACHES.
Children and Young Peoples Services,Head of Education and Skills,Transport,230007,Contract Hire,11/02/2020,3701465-101565,980.00,G & P JOHNSON LTD T/A NIGHTINGALE COACHES.
Children and Young Peoples Services,Head of Education and Skills,Transport,230012,Contract Hire,11/02/2020,3701368-E14/SS,"1,216.00",AABAT TAXIS.
Children and Young Peoples Services,Head of Education and Skills,Transport,230012,Contract Hire,11/02/2020,3701368-E6/SF,931.00,AABAT TAXIS.
Children and Young Peoples Services,Head of Education and Skills,Transport,230012,Contract Hire,11/02/2020,3701641-EJ00043,"1,675.42",SPENNYMOOR TAXIS.
Children and Young Peoples Services,Head of Education and Skills,Transport,230012,Contract Hire,11/02/2020,3701368-E5/SE,"1,501.00",AABAT TAXIS.
Children and Young Peoples Services,Head of Education and Skills,Transport,230007,Contract Hire,11/02/2020,3701560-172,800.00,MR DAVID CULLEN T/A JED`S TAXIS.
Children and Young Peoples Services,Head of Education and Skills,Transport,230009,Contract Hire,11/02/2020,3701368-E13/SR,980.00,AABAT TAXIS.
Children and Young Peoples Services,Head of Education and Skills,Transport,230012,Contract Hire,11/02/2020,3701622-305,"1,247.54",ROBBIE`S PRIVATE HIRE.
Children and Young Peoples Services,Head of Education and Skills,Transport,230006,Contract Hire,11/02/2020,3701387-F765JAN,792.00,BIG MAMA`S TAXI.
Children and Young Peoples Services,Head of Education and Skills,Transport,230035,Contract Hire,11/02/2020,3701600-SC-506,"1,520.00",PAUL BURRELL T/A PAUL BURRELL TAXIS.
Children and Young Peoples Services,Head of Education and Skills,Transport,230007,Contract Hire,11/02/2020,3701368-E17/SU,"1,330.00",AABAT TAXIS.
Children and Young Peoples Services,Head of Education and Skills,Transport,230007,Contract Hire,11/02/2020,3701387-3413JAN20,"1,854.40",BIG MAMA`S TAXI.
Children and Young Peoples Services,Head of Education and Skills,Transport,230008,Contract Hire,11/02/2020,3701368-E18/SWJAN,"1,261.27",AABAT TAXIS.
Children and Young Peoples Services,Head of Education and Skills,Transport,230008,Contract Hire,11/02/2020,3701512-3JANUARY20,800.00,KENNAS CABS.
Children and Young Peoples Services,Head of Education and Skills,Transport,230008,Contract Hire,11/02/2020,3701517-E149-RB0120,507.40,LEE`S TAXIS..
Children and Young Peoples Services,Head of Education and Skills,Transport,230007,Contract Hire,11/02/2020,3701530-170,690.00,M BUTCHER T/A M & M`S TAXIS.
Children and Young Peoples Services,Head of Education and Skills,Transport,230006,Contract Hire,11/02/2020,3701545-0267,902.40,MICKS TAXIS - MURTON.
Children and Young Peoples Services,Head of Education and Skills,Transport,230007,Contract Hire,11/02/2020,3701564-1781,"1,330.00",MR PETER YOUNG.
Children and Young Peoples Services,Head of Education and Skills,Transport,230008,Contract Hire,11/02/2020,3701609-WH5,"1,980.00",PRESTYS HACKNEY & PRIVATE HIRE TAXIS.
Children and Young Peoples Services,Head of Education and Skills,Transport,230008,Contract Hire,11/02/2020,3701627-A070010718-JAN20,730.00,SAFELINE TRAVEL.
Children and Young Peoples Services,Head of Education and Skills,Transport,230006,Contract Hire,11/02/2020,3701632-024-A038,"1,612.53",SHOEY`S TAXIS.
Children and Young Peoples Services,Head of Education and Skills,Transport,230006,Contract Hire,11/02/2020,3701633-75398,910.00,SHOTTON PRIVATE HIRE.
Dedicated Schools Grant BG0015,DSG High Needs Block,Central Support and Other Recharges,689988,Unclassified E690,11/02/2020,3701438-JANUARY2020TOP-UP,"1,761.40",DURHAM MARTYRS MULTI ACADEMY TRUST T/A ST LEONARD`S CATHOLIC SCHOOL.
Dedicated Schools Grant BG0015,DSG High Needs Block,Central Support and Other Recharges,689988,Unclassified E690,11/02/2020,3701578-JANUARY2020TOP-UP,"8,194.45",NEW COLLEGE ACADEMIES TRUST - CONSETT ACADEMY.
Dedicated Schools Grant BG0015,DSG High Needs Block,Central Support and Other Recharges,689988,Unclassified E690,11/02/2020,3701642-JANUARY2020TOP-UP,"11,189.24",ST BEDES CATHOLIC ACADEMY (LANCHESTER).
Children and Young Peoples Services,Head of Education and Skills,Third Party Payments,440999,Other third party payments E440,11/02/2020,3701460-YEI31Q42019,"6,613.63",FOUNDATION OF LIGHT.
Children and Young Peoples Services,Head of Education and Skills,Transport,230008,Contract Hire,11/02/2020,3701421-A126,"1,912.50",DAVID FOREMAN T/A DAVES TAXIS.
Children and Young Peoples Services,Head of Education and Skills,Transport,230008,Contract Hire,11/02/2020,3701559-M127/003,"1,840.00",MR DANIEL HUTCHINSON T/A ALPHACABS.
Children and Young Peoples Services,Head of Education and Skills,Transport,230008,Contract Hire,11/02/2020,3701601-N07408,"1,807.80",PB PRIVATE HIRE.
Children and Young Peoples Services,Head of Education and Skills,Transport,230008,Contract Hire,11/02/2020,3701622-306,"1,323.60",ROBBIE`S PRIVATE HIRE.
Children and Young Peoples Services,Head of Education and Skills,Transport,230008,Contract Hire,11/02/2020,3701622-307,"1,603.51",ROBBIE`S PRIVATE HIRE.
Children and Young Peoples Services,Head of Education and Skills,Transport,230008,Contract Hire,11/02/2020,3701695-WESTLEA310120,"1,273.00",WESTLEA TAXIS.
Children and Young Peoples Services,Head of Education and Skills,Transport,230008,Contract Hire,11/02/2020,3701633-75402,"2,582.48",SHOTTON PRIVATE HIRE.
Children and Young Peoples Services,Head of Education and Skills,Transport,230008,Contract Hire,11/02/2020,3701379-DCC04JAN20,"3,055.00",ATLAS TAXIS BISHOP AUCKLAND.
Children and Young Peoples Services,Head of Education and Skills,Transport,230008,Contract Hire,11/02/2020,3701627-A070010718JAN,"1,596.00",SAFELINE TRAVEL.
Children and Young Peoples Services,Head of Education and Skills,Transport,230008,Contract Hire,11/02/2020,3701627-A0700N005-JAN,"2,001.20",SAFELINE TRAVEL.
Children and Young Peoples Services,Head of Education and Skills,Transport,230008,Contract Hire,11/02/2020,3701508-05JANUARY20,"2,352.96",KD TAXIS.
Children and Young Peoples Services,Head of Education and Skills,Transport,230008,Contract Hire,11/02/2020,3701633-75397,675.00,SHOTTON PRIVATE HIRE.
Children and Young Peoples Services,Head of Education and Skills,Transport,230008,Contract Hire,11/02/2020,3701421-A125,"1,914.82",DAVID FOREMAN T/A DAVES TAXIS.
Children and Young Peoples Services,Head of Education and Skills,Transport,230008,Contract Hire,11/02/2020,3701562-191-39-64,"1,461.48",MR GS ANDERSON.
Children and Young Peoples Services,Head of Education and Skills,Transport,230034,Contract Hire,11/02/2020,3701600-SC-507,"1,520.00",PAUL BURRELL T/A PAUL BURRELL TAXIS.
Children and Young Peoples Services,Head of Education and Skills,Transport,230008,Contract Hire,11/02/2020,3701622-303,"1,026.00",ROBBIE`S PRIVATE HIRE.
Children and Young Peoples Services,Head of Education and Skills,Transport,230008,Contract Hire,11/02/2020,3701622-304,645.43,ROBBIE`S PRIVATE HIRE.
Children and Young Peoples Services,Head of Education and Skills,Transport,230008,Contract Hire,11/02/2020,3701654-B1021-M044,"2,002.60",TALBOTS TRAVEL LTD.
Children and Young Peoples Services,Head of Education and Skills,Transport,230008,Contract Hire,11/02/2020,3701368-E15/ST,"2,841.47",AABAT TAXIS.
Children and Young Peoples Services,Head of Education and Skills,Transport,230008,Contract Hire,11/02/2020,3701641-LTDD00046,"1,520.00",SPENNYMOOR TAXIS.
Children and Young Peoples Services,Head of Education and Skills,Transport,230008,Contract Hire,11/02/2020,3701673-TS35/05,"1,520.00",TOP STAR TRAVEL.
Children and Young Peoples Services,Head of Education and Skills,Transport,230008,Contract Hire,11/02/2020,3701465-101566,"2,662.80",G & P JOHNSON LTD T/A NIGHTINGALE COACHES.
Children and Young Peoples Services,Head of Education and Skills,Transport,230008,Contract Hire,11/02/2020,3701527-69-M032,"2,494.00",LORRAINES TAXIS.
Children and Young Peoples Services,Head of Education and Skills,Transport,230008,Contract Hire,11/02/2020,3701601-M01208,"1,600.00",PB PRIVATE HIRE.
Children and Young Peoples Services,Head of Education and Skills,Transport,230008,Contract Hire,11/02/2020,3701633-75408,"1,840.00",SHOTTON PRIVATE HIRE.
Children and Young Peoples Services,Head of Education and Skills,Transport,230008,Contract Hire,11/02/2020,3701388-0266,"1,482.00",BIRDS TAXIS LTD.
Children and Young Peoples Services,Head of Education and Skills,Transport,230008,Contract Hire,11/02/2020,3701426-0120-001,"1,520.00",DCM TAXIS.
Children and Young Peoples Services,Head of Education and Skills,Transport,230008,Contract Hire,11/02/2020,3701496-003AC,"2,660.00",JACKIES TAXIS.
Children and Young Peoples Services,Head of Education and Skills,Transport,230008,Contract Hire,11/02/2020,3701497-M013JAN20,"1,330.00",JAY WILSON T/A BLACKS PRIVATE HIRE.
Children and Young Peoples Services,Head of Education and Skills,Transport,230008,Contract Hire,11/02/2020,3701530-168,"1,178.00",M BUTCHER T/A M & M`S TAXIS.
Children and Young Peoples Services,Head of Education and Skills,Transport,230006,Contract Hire,11/02/2020,3701563-OC/01/20,"1,140.00",MR J AGAR T/A PARK TAXIS.
Children and Young Peoples Services,Head of Education and Skills,Transport,230008,Contract Hire,11/02/2020,3701623-1807,"3,135.00",RON`S TAXIS (FISHBURN).
Children and Young Peoples Services,Head of Education and Skills,Transport,230006,Contract Hire,11/02/2020,3701641-00044,"1,900.00",SPENNYMOOR TAXIS.
Children and Young Peoples Services,Head of Education and Skills,Transport,230008,Contract Hire,11/02/2020,3701641-00045,"1,805.00",SPENNYMOOR TAXIS.
Children and Young Peoples Services,Head of Education and Skills,Transport,230008,Contract Hire,11/02/2020,3701673-TS-101/05,"1,710.00",TOP STAR TRAVEL.
Children and Young Peoples Services,Head of Education and Skills,Transport,230008,Contract Hire,11/02/2020,3701673-TS-21/38,"1,209.73",TOP STAR TRAVEL.
Children and Young Peoples Services,Head of Education and Skills,Transport,230016,Contract Hire,11/02/2020,3701368-E3/SCJAN,"2,090.00",AABAT TAXIS.
Children and Young Peoples Services,Head of Education and Skills,Transport,230008,Contract Hire,11/02/2020,3701368-E4/SDJAN,"2,261.00",AABAT TAXIS.
Children and Young Peoples Services,Head of Education and Skills,Transport,230008,Contract Hire,11/02/2020,3701368-E9/SLJAN,"1,149.12",AABAT TAXIS.
Children and Young Peoples Services,Head of Education and Skills,Transport,230008,Contract Hire,11/02/2020,3701378-747,"2,432.00",AT TAXIS LTD.
Children and Young Peoples Services,Head of Education and Skills,Transport,230008,Contract Hire,11/02/2020,3701378-748,760.00,AT TAXIS LTD.
Children and Young Peoples Services,Head of Education and Skills,Transport,230008,Contract Hire,11/02/2020,3701379-DCC11JAN20,"1,120.00",ATLAS TAXIS BISHOP AUCKLAND.
Children and Young Peoples Services,Head of Education and Skills,Transport,230008,Contract Hire,11/02/2020,3701379-DCC12JAN20,"1,995.00",ATLAS TAXIS BISHOP AUCKLAND.
Children and Young Peoples Services,Head of Education and Skills,Transport,230008,Contract Hire,11/02/2020,3701379-DCC13JAN20,"2,280.00",ATLAS TAXIS BISHOP AUCKLAND.
Children and Young Peoples Services,Head of Education and Skills,Transport,230008,Contract Hire,11/02/2020,3701510-S020JAN20,"2,027.52",KEITH GIBSON T/A KEITH`S TAXIS.
Children and Young Peoples Services,Head of Education and Skills,Transport,230008,Contract Hire,11/02/2020,3701535-05-W094,"1,520.00",MARK SUMMERS T/A MARK`S TAXI.
Children and Young Peoples Services,Head of Education and Skills,Transport,230008,Contract Hire,11/02/2020,3701593-8058,"1,620.70",OVERLANDER LTD.
Children and Young Peoples Services,Head of Education and Skills,Transport,230008,Contract Hire,11/02/2020,3701654-B1024,"1,900.00",TALBOTS TRAVEL LTD.
Children and Young Peoples Services,Head of Education and Skills,Transport,230008,Contract Hire,11/02/2020,3701654-B1025,"1,900.00",TALBOTS TRAVEL LTD.
Dedicated Schools Grant BG0015,DSG High Needs Block,Third Party Payments,440080,Other third party payments E440,11/02/2020,3701394-2524,"17,943.00",BRECKENBROUGH SCHOOL.
Dedicated Schools Grant BG0015,DSG High Needs Block,Third Party Payments,440080,Other third party payments E440,11/02/2020,3701394-2525,"20,537.00",BRECKENBROUGH SCHOOL.
Dedicated Schools Grant BG0015,DSG High Needs Block,Third Party Payments,425005,Rendered by Voluntary Organisations,11/02/2020,3701394-2526,"20,354.00",BRECKENBROUGH SCHOOL.
Dedicated Schools Grant BG0015,DSG High Needs Block,Third Party Payments,440080,Other third party payments E440,11/02/2020,3701394-2527,"16,000.00",BRECKENBROUGH SCHOOL.
Dedicated Schools Grant BG0015,DSG High Needs Block,Third Party Payments,425005,Rendered by Voluntary Organisations,11/02/2020,3701480-DU01/548/1219,"12,310.41",HILLSIDE SCHOOL (ABERDOUR) LTD.
Dedicated Schools Grant BG0015,DSG High Needs Block,Third Party Payments,425005,Rendered by Voluntary Organisations,11/02/2020,3701582-0000051660,"20,327.55",NORTH EAST AUTISM SOCIETY.
Dedicated Schools Grant BG0015,DSG High Needs Block,Third Party Payments,425005,Rendered by Voluntary Organisations,11/02/2020,3701597-BJ/JP/BF-JM,"35,023.80",PARKSIDE HOUSE SCHOOL.
Dedicated Schools Grant BG0015,DSG High Needs Block,Third Party Payments,425005,Rendered by Voluntary Organisations,11/02/2020,3701665-A630002159,"1,837.50",THE PRIORY GROUP.
Dedicated Schools Grant BG0015,DSG High Needs Block,Third Party Payments,425005,Rendered by Voluntary Organisations,11/02/2020,3701665-A630002258,"1,662.50",THE PRIORY GROUP.
Children and Young Peoples Services,Head of Education and Skills,Transport,230008,Contract Hire,11/02/2020,3701368-E1/SAJAN,"2,900.00",AABAT TAXIS.
Children and Young Peoples Services,Head of Education and Skills,Transport,230008,Contract Hire,11/02/2020,3701422-0065,"4,998.33",DAVID WALKER TAXIS.
Children and Young Peoples Services,Head of Education and Skills,Transport,230010,Contract Hire,11/02/2020,3701503-1054,"4,256.00",K & R TAXIS (STANLEY).
Children and Young Peoples Services,Head of Education and Skills,Transport,230006,Contract Hire,11/02/2020,3701474-61,920.00,HAMLET TAXIS.
Children and Young Peoples Services,Head of Education and Skills,Transport,230006,Contract Hire,11/02/2020,3701555-953,"1,382.88",MR AD HOWARD T/A TOFT HILL TAXIS.
Children and Young Peoples Services,Head of Education and Skills,Transport,230006,Contract Hire,11/02/2020,3701560-173,504.00,MR DAVID CULLEN T/A JED`S TAXIS.
Children and Young Peoples Services,Head of Education and Skills,Transport,230006,Contract Hire,11/02/2020,3701604-34172,"1,598.00",PHOENIX TAXIS T/A PRATT`S TAXIS.
Children and Young Peoples Services,Head of Education and Skills,Transport,230006,Contract Hire,11/02/2020,3701604-34173,"1,269.10",PHOENIX TAXIS T/A PRATT`S TAXIS.
Children and Young Peoples Services,Head of Education and Skills,Transport,230006,Contract Hire,11/02/2020,3701604-34176,788.27,PHOENIX TAXIS T/A PRATT`S TAXIS.
Children and Young Peoples Services,Head of Education and Skills,Transport,230006,Contract Hire,11/02/2020,3701623-1809,"1,364.88",RON`S TAXIS (FISHBURN).
Children and Young Peoples Services,Head of Education and Skills,Transport,230006,Contract Hire,11/02/2020,3701633-75400,663.14,SHOTTON PRIVATE HIRE.
Children and Young Peoples Services,Head of Education and Skills,Transport,230006,Contract Hire,11/02/2020,3701647-4-F766,"1,350.00",STEELYS TAXIS.
Children and Young Peoples Services,Head of Education and Skills,Transport,230006,Contract Hire,11/02/2020,3701655-005-F754,"1,600.00",TARIQ KHAN T/A SMART CABS.
Children and Young Peoples Services,Head of Childrens Social Care,Third Party Payments,425023,Rendered by Voluntary Organisations,11/02/2020,3701480-DU01/550/1219,"12,310.41",HILLSIDE SCHOOL (ABERDOUR) LTD.
Children and Young Peoples Services,Head of Childrens Social Care,Third Party Payments,425023,Rendered by Voluntary Organisations,11/02/2020,3701697-1258,"70,609.00",WITHERSLACK GROUP LTD.
Children and Young Peoples Services,Head of Childrens Social Care,Third Party Payments,425023,Rendered by Voluntary Organisations,11/02/2020,3701697-1274,"87,770.33",WITHERSLACK GROUP LTD.
Children and Young Peoples Services,Head of Childrens Social Care,Third Party Payments,425023,Rendered by Voluntary Organisations,11/02/2020,3701697-1278,"81,553.33",WITHERSLACK GROUP LTD.
Children and Young Peoples Services,Head of Childrens Social Care,Supplies and Services,384534,Miscellaneous Expenses,11/02/2020,3701580-CAS-02-2020-019,570.00,NEW SEAHAM CHRIST CHURCH PCC.
Regeneration and Local Services,Environmental Services,Supplies and Services,304221,Equipment and Materials,12/02/2020,3701967-49983,"1,088.85",WILLOWCRETE MANUFACTURING COMPANY LTD (MFG).
Regeneration and Local Services,Environmental Services,Third Party Payments,460305,Contract Payments,12/02/2020,3701953-0000009341,"5,919.84",TRISCAN SYSTEMS LTD.
Regeneration and Local Services,Technical Services CM0300,Third Party Payments,430127,Rendered by Private Contractors,12/02/2020,3701826-5305814,"1,422.50",JA GILSON (AGRICULTURAL CONTRACTORS) LTD.
Regeneration and Local Services,Environmental Services,Transport,215005,Running Costs of Vehicles,12/02/2020,3701887-536993,"14,646.00",OIL NRG LTD.
Regeneration and Local Services,Environmental Services,Transport,215022,Running Costs of Vehicles,12/02/2020,3701887-536996,"1,540.83",OIL NRG LTD.
Regeneration and Local Services,Environmental Services,Construction work A908,908113,Capital - Landscaping,12/02/2020,3701967-49980,"3,520.20",WILLOWCRETE MANUFACTURING COMPANY LTD (MFG).
Regeneration and Local Services,Technical Services CM0300,Construction work A908,908105,Construction work,12/02/2020,3701786-86448,500.00,ENVIRONMENT AGENCY.
Regeneration and Local Services,Technical Services CM0300,Cap Exp on Grants & Other Financial Assistance (REFCUS),918004,Contributions to other bodies 918004,12/02/2020,3701885-RED-02-2020-064,"15,857.45",NORTH EAST COMBINED AUTHORITY (NECA).
Regeneration and Local Services,Environmental Services,Third Party Payments,430100,Rendered by Private Contractors,12/02/2020,3701944-0355,985.00,THE SKILL MILL LTD.
Regeneration and Local Services,Technical Services CM0300,Stock A926,926900,Stock in hand-Inventory system,12/02/2020,3701919-193765,"3,408.48",SNAPFAST.
Regeneration and Local Services,Technical Services CM0300,Third Party Payments,430100,Rendered by Private Contractors,12/02/2020,3701895-163549,"2,561.00",PREMIER TRAFFIC MANAGEMENT LTD.
Regeneration and Local Services,Technical Services CM0300,Supplies and Services,304221,Equipment and Materials,12/02/2020,3701710-29394693,"1,198.04",AGGREGATE INDUSTRIES UK LTD.
Regeneration and Local Services,Technical Services CM0300,Supplies and Services,304358,Equipment and Materials,12/02/2020,3701833-30330,"1,184.00",JOHN R BUTTERFIELD LTD.
Regeneration and Local Services,Technical Services CM0300,Supplies and Services,304358,Equipment and Materials,12/02/2020,3701833-30331,"1,356.00",JOHN R BUTTERFIELD LTD.
Regeneration and Local Services,Technical Services CM0300,Supplies and Services,304358,Equipment and Materials,12/02/2020,3701833-30332,"1,361.00",JOHN R BUTTERFIELD LTD.
Regeneration and Local Services,Technical Services CM0300,Supplies and Services,304358,Equipment and Materials,12/02/2020,3701833-30333,897.00,JOHN R BUTTERFIELD LTD.
Regeneration and Local Services,Technical Services CM0300,Supplies and Services,304358,Equipment and Materials,12/02/2020,3701833-30334,897.00,JOHN R BUTTERFIELD LTD.
Regeneration and Local Services,Technical Services CM0300,Supplies and Services,304358,Equipment and Materials,12/02/2020,3701833-30349,"1,004.00",JOHN R BUTTERFIELD LTD.
Regeneration and Local Services,Technical Services CM0300,Supplies and Services,304358,Equipment and Materials,12/02/2020,3701833-30350,"1,201.00",JOHN R BUTTERFIELD LTD.
Regeneration and Local Services,Technical Services CM0300,Supplies and Services,304358,Equipment and Materials,12/02/2020,3701833-30363,"1,184.00",JOHN R BUTTERFIELD LTD.
Regeneration and Local Services,Technical Services CM0300,Supplies and Services,304358,Equipment and Materials,12/02/2020,3701833-30364,996.00,JOHN R BUTTERFIELD LTD.
Regeneration and Local Services,Technical Services CM0300,Supplies and Services,304358,Equipment and Materials,12/02/2020,3701833-30366,897.00,JOHN R BUTTERFIELD LTD.
Regeneration and Local Services,Technical Services CM0300,Supplies and Services,304358,Equipment and Materials,12/02/2020,3701833-30367,897.00,JOHN R BUTTERFIELD LTD.
Regeneration and Local Services,Technical Services CM0300,Supplies and Services,304358,Equipment and Materials,12/02/2020,3701833-30368,888.00,JOHN R BUTTERFIELD LTD.
Regeneration and Local Services,Technical Services CM0300,Supplies and Services,304358,Equipment and Materials,12/02/2020,3701833-30371,"1,055.00",JOHN R BUTTERFIELD LTD.
Regeneration and Local Services,Technical Services CM0300,Supplies and Services,304358,Equipment and Materials,12/02/2020,3701839-3094,975.00,KEVIN SNOWDON GROUNDWORKS LTD.
Regeneration and Local Services,Technical Services CM0300,Supplies and Services,304358,Equipment and Materials,12/02/2020,3701839-3114,"1,311.50",KEVIN SNOWDON GROUNDWORKS LTD.
Regeneration and Local Services,Technical Services CM0300,Supplies and Services,304358,Equipment and Materials,12/02/2020,3701839-3115,980.50,KEVIN SNOWDON GROUNDWORKS LTD.
Regeneration and Local Services,Technical Services CM0300,Supplies and Services,304358,Equipment and Materials,12/02/2020,3701839-3116,691.00,KEVIN SNOWDON GROUNDWORKS LTD.
Regeneration and Local Services,Technical Services CM0300,Supplies and Services,304358,Equipment and Materials,12/02/2020,3701839-3123,636.00,KEVIN SNOWDON GROUNDWORKS LTD.
Regeneration and Local Services,Technical Services CM0300,Supplies and Services,304358,Equipment and Materials,12/02/2020,3701839-3124,866.00,KEVIN SNOWDON GROUNDWORKS LTD.
Regeneration and Local Services,Technical Services CM0300,Supplies and Services,304358,Equipment and Materials,12/02/2020,3701839-3125,"1,189.00",KEVIN SNOWDON GROUNDWORKS LTD.
Regeneration and Local Services,Technical Services CM0300,Supplies and Services,304358,Equipment and Materials,12/02/2020,3701849-13X,630.00,M & E & MR WALTON.
Regeneration and Local Services,Technical Services CM0300,Third Party Payments,430100,Rendered by Private Contractors,12/02/2020,3701860-311,"1,170.00",MICHAEL KELLY.
Regeneration and Local Services,Technical Services CM0300,Supplies and Services,304358,Equipment and Materials,12/02/2020,3701877-NC/111/BW,"2,502.50",NEDCO CONTRACTS (NE) LTD.
Regeneration and Local Services,Technical Services CM0300,Supplies and Services,304358,Equipment and Materials,12/02/2020,3701877-NC/112/BW,"2,337.50",NEDCO CONTRACTS (NE) LTD.
Regeneration and Local Services,Technical Services CM0300,Third Party Payments,430100,Rendered by Private Contractors,12/02/2020,3701895-163548,"117,586.63",PREMIER TRAFFIC MANAGEMENT LTD.
Regeneration and Local Services,Technical Services CM0300,Supplies and Services,304358,Equipment and Materials,12/02/2020,3701901-3684,"1,980.00",REUBEN SMITH (PLANT HIRE) LTD.
Regeneration and Local Services,Technical Services CM0300,Supplies and Services,304358,Equipment and Materials,12/02/2020,3701962-47483,"1,945.25",W MARLEY AGRICULTURAL CONTRACTORS LTD.
Regeneration and Local Services,Technical Services CM0300,Supplies and Services,304358,Equipment and Materials,12/02/2020,3701962-47649,577.50,W MARLEY AGRICULTURAL CONTRACTORS LTD.
Regeneration and Local Services,Corporate Property and Land,Supplies and Services,304221,Equipment and Materials,12/02/2020,3701712-168044,"1,252.00",ALBANY OFFICE EQUIPMENT (WHOLESALE) LTD.
Regeneration and Local Services,Corporate Property and Land,Supplies and Services,304221,Equipment and Materials,12/02/2020,3701859-NE194677,600.80,MCNAUGHTON BLAIR LTD T/A LLOYD WORRALL (NEWCASTLE UPON TYNE) LTD.
Regeneration and Local Services,Corporate Property and Land,Supplies and Services,304221,Equipment and Materials,12/02/2020,3701777-059-257900,504.50,EDMUNDSON ELECTRICAL LTD.
Regeneration and Local Services,Corporate Property and Land,Third Party Payments,430100,Rendered by Private Contractors,12/02/2020,3701750-5998,"2,592.00",CITY FABRICATIONS LTD.
Regeneration and Local Services,Corporate Property and Land,Supplies and Services,304221,Equipment and Materials,12/02/2020,3701809-SIN675881,651.00,HANDICARE ACCESSIBILITY LTD.
Regeneration and Local Services,Corporate Property and Land,Supplies and Services,304221,Equipment and Materials,12/02/2020,3701889-188178,695.00,PFEIFER DRAKO LTD.
Regeneration and Local Services,Corporate Property and Land,Third Party Payments,430100,Rendered by Private Contractors,12/02/2020,3701889-188179,"1,612.00",PFEIFER DRAKO LTD.
Regeneration and Local Services,Business Durham CL0850,Premises,135005,Water Services,12/02/2020,3701965-314160740016359296,"1,593.79",WAVE (AWBN).
Regeneration and Local Services,Business Durham CL0850,Premises,135005,Water Services,12/02/2020,3701965-306808140016359925,702.66,WAVE (AWBN).
Regeneration and Local Services,Business Durham CL0850,Supplies and Services,338066,Services,12/02/2020,3701936-00000001,800.00,TAXIGOAT TECHNOLOGIES LTD.
Regeneration and Local Services,Environmental Services,Supplies and Services,384199,Miscellaneous Expenses,12/02/2020,3701766-SHORESIDE,"1,500.00",CREATIVE POP.
Regeneration and Local Services,Environmental Services,Supplies and Services,338066,Services,12/02/2020,3701801-BURSARYFEB20,692.64,GEMMA MASON (GEOLOGY TRAINEE).
Regeneration and Local Services,Environmental Services,Supplies and Services,338066,Services,12/02/2020,3701897-1104,"2,930.00",PUBLIC ARTS T/A BEAM.
Regeneration and Local Services,Development and Housing,Premises,106080,Centrally Controlled Rep and Maint,12/02/2020,3701964-12078,"6,991.08",WATERMAN ENVIRONMENTAL SERVICES.
Regeneration and Local Services,Transport and Contracted Services,Third Party Payments,430106,Rendered by Private Contractors,12/02/2020,3701815-17276,"3,661.26",HODGSONS COACH OPERATORS LTD.
Regeneration and Local Services,Corporate Property and Land,Supplies and Services,338066,Services,12/02/2020,3701767-GB3002-CI-19-12872,"1,000.00",CUSHMAN & WAKEFIELD DEBENHAM TIE LEUNG LTD.
Regeneration and Local Services,Corporate Property and Land,Supplies and Services,338066,Services,12/02/2020,3701909-NEW12897,"1,582.50",SANDERSON WEATHERALL LLP.
Regeneration and Local Services,Development and Housing,Cap Exp on Grants & Other Financial Assistance (REFCUS),918004,Contributions to other bodies 918004,12/02/2020,3701716-RED-02-2020-065,"7,026.37",ANDREW ASHCROFT T/A ASHCROFT JEWELLERY.
Regeneration and Local Services,Culture Sport and Tourism,Supplies and Services,384199,Miscellaneous Expenses,12/02/2020,3701923-INV-S009121,"4,260.92",SPEKTRIX LTD.
Adult and Health Services,Public Health CC0450,Third Party Payments,460802,Contract Payments,12/02/2020,3701773-HEALTHCHECKS/015,"54,008.00",DERWENTSIDE HEALTHCARE LTD.
Adult and Health Services,Public Health CC0450,Third Party Payments,460802,Contract Payments,12/02/2020,3701773-HEALTHCHECKS/016,"64,070.00",DERWENTSIDE HEALTHCARE LTD.
Adult and Health Services,Public Health CC0450,Third Party Payments,460803,Contract Payments,12/02/2020,3701922-D0024374,764.17,SOUTH TEES HOSPITALS NHS FOUNDATION TRUST.
Adult and Health Services,Public Health CC0450,Third Party Payments,460803,Contract Payments,12/02/2020,3701922-D0025426,826.72,SOUTH TEES HOSPITALS NHS FOUNDATION TRUST.
Adult and Health Services,Public Health CC0450,Third Party Payments,460803,Contract Payments,12/02/2020,3701922-D0025427,826.72,SOUTH TEES HOSPITALS NHS FOUNDATION TRUST.
Adult and Health Services,Public Health CC0450,Third Party Payments,460803,Contract Payments,12/02/2020,3701922-D0026192,764.17,SOUTH TEES HOSPITALS NHS FOUNDATION TRUST.
Adult and Health Services,Public Health CC0450,Third Party Payments,460803,Contract Payments,12/02/2020,3701922-D0026193,811.42,SOUTH TEES HOSPITALS NHS FOUNDATION TRUST.
Adult and Health Services,Public Health CC0450,Third Party Payments,460803,Contract Payments,12/02/2020,3701922-D0026741,764.17,SOUTH TEES HOSPITALS NHS FOUNDATION TRUST.
Adult and Health Services,Public Health CC0450,Third Party Payments,460803,Contract Payments,12/02/2020,3701922-D0028049,764.17,SOUTH TEES HOSPITALS NHS FOUNDATION TRUST.
Transformation and Partnerships,Partnerships & Community Engagement Div.,Supplies and Services,384073,Miscellaneous Expenses,12/02/2020,3701928-55178,500.00,STANLEY TRAVEL (NORTH EAST) LTD.
Resources BK0010,Legal & Democratic Services,Supplies and Services,304516,Equipment and Materials,12/02/2020,3701916-SINV-134512.,599.00,SIGHT & SOUND TECHNOLOGY LTD.
Dedicated Schools Grant BG0015,DSG High Needs Block,Supplies and Services,384302,Miscellaneous Expenses,12/02/2020,3701776-FBSI120,"10,000.00",EDEN LEARNING TRUST T/A FERRYHILL BUSINESS & ENTERPRISE COLLEGE.
Children and Young Peoples Services,Head of Education and Skills,Transport,230009,Contract Hire,12/02/2020,3701952-11-JAN20,520.00,TREVOR GARDNER T/A TCG TAXIS.
Children and Young Peoples Services,Head of Education and Skills,Transport,230007,Contract Hire,12/02/2020,3701963-75-JAN20,"1,585.00",WALTONS TAXIS.
Children and Young Peoples Services,Head of Education and Skills,Transport,230034,Contract Hire,12/02/2020,3701805-GT10-JAN20,"1,716.00",GORDON`S TAXIS.
Children and Young Peoples Services,Head of Education and Skills,Transport,230008,Contract Hire,12/02/2020,313451-N010/27,"1,410.94",C STEWART.
Children and Young Peoples Services,Head of Education and Skills,Transport,230008,Contract Hire,12/02/2020,3701935-1627-JAN20,"1,964.60",TALBOTS TAXIS.
Children and Young Peoples Services,Head of Childrens Social Care,Third Party Payments,425021,Rendered by Voluntary Organisations,12/02/2020,3701812-CAS-02-2020-048,"24,259.28",HENNESSY GROUP.
Children and Young Peoples Services,Head of Childrens Social Care,Third Party Payments,425041,Rendered by Voluntary Organisations,12/02/2020,3701912-1809,"31,620.00",SCOTTISH ADOPTION.
Children and Young Peoples Services,Head of Childrens Social Care,Transport,230005,Contract Hire,12/02/2020,3701929-SI-366,760.00,STEVEN PRATT T/A PTL TAXIS DURHAM.
Children and Young Peoples Services,Head of Childrens Social Care,Transport,230005,Contract Hire,12/02/2020,3701929-SI-369,560.00,STEVEN PRATT T/A PTL TAXIS DURHAM.
Children and Young Peoples Services,Head of Childrens Social Care,Transport,230005,Contract Hire,12/02/2020,3701929-SI-370,566.00,STEVEN PRATT T/A PTL TAXIS DURHAM.
Children and Young Peoples Services,Head of Childrens Social Care,Transport,230005,Contract Hire,12/02/2020,3701929-SI-372,515.00,STEVEN PRATT T/A PTL TAXIS DURHAM.
Children and Young Peoples Services,Head of Childrens Social Care,Transport,230005,Contract Hire,12/02/2020,3701929-SI-380,785.00,STEVEN PRATT T/A PTL TAXIS DURHAM.
Children and Young Peoples Services,Head of Childrens Social Care,Transport,230005,Contract Hire,12/02/2020,3701752-CLUB2005I,520.00,CLUBMAN CABS.
Children and Young Peoples Services,Head of Childrens Social Care,Transport,230005,Contract Hire,12/02/2020,3701752-CLUB2005B,635.00,CLUBMAN CABS.
Children and Young Peoples Services,Head of Childrens Social Care,Transport,230005,Contract Hire,12/02/2020,3701929-SI-379,685.50,STEVEN PRATT T/A PTL TAXIS DURHAM.
Children and Young Peoples Services,Head of Childrens Social Care,Transport,230005,Contract Hire,12/02/2020,3701929-SI-374,759.50,STEVEN PRATT T/A PTL TAXIS DURHAM.
Children and Young Peoples Services,Head of Childrens Social Care,Transport,230005,Contract Hire,12/02/2020,3701752-CLUB2005H,583.00,CLUBMAN CABS.
Children and Young Peoples Services,Head of Childrens Social Care,Transport,230005,Contract Hire,12/02/2020,3701929-SI-382,640.00,STEVEN PRATT T/A PTL TAXIS DURHAM.
Children and Young Peoples Services,Head of Childrens Social Care,Transport,230005,Contract Hire,12/02/2020,3701948-547JAN20,840.00,TONYS TAXIS (A BIRCH).
Children and Young Peoples Services,Head of Childrens Social Care,Transport,230005,Contract Hire,12/02/2020,3701948-548JAN20,840.00,TONYS TAXIS (A BIRCH).
Children and Young Peoples Services,Head of Childrens Social Care,Employees,080025,Agency Staff,12/02/2020,3701802-2435977,"104,616.17",GEOMETRIC RESULTS INTERNATIONAL.
Non-Service Specific,Non Service Specific-Financing,Long Term Debtors,924001,Car loans,12/02/2020,3701803-72479,765.00,GO GATESHEAD LTD.
Regeneration and Local Services,Environmental Services,Supplies and Services,304221,Equipment and Materials,13/02/2020,3702203-20201000004287,"2,947.72",SCARAB SWEEPERS LTD.
Regeneration and Local Services,Environmental Services,Supplies and Services,304357,Equipment and Materials,13/02/2020,3702090-DCC031119QUERY,979.00,GAP GROUP LTD.
Regeneration and Local Services,Environmental Services,Transport,210057,Repair and Maintenance of Vehicles,13/02/2020,3702000-35177330,583.20,BELL TRUCK SALES LTD T/A BELL TRUCK & VAN.
Regeneration and Local Services,Environmental Services,Transport,210057,Repair and Maintenance of Vehicles,13/02/2020,3702053-96385085,820.78,DENNIS EAGLE LTD T/A TERBERG MATEC (UK) LTD.
Regeneration and Local Services,Environmental Services,Transport,230005,Contract Hire,13/02/2020,3702252-20860,975.00,TRASH UK LTD.
Regeneration and Local Services,Environmental Services,Transport,230005,Contract Hire,13/02/2020,3702075-8157458,552.60,ENTERPRISE FLEX-E-RENT T/A BURNT TREE GROUP LTD.
Regeneration and Local Services,Environmental Services,Transport,230005,Contract Hire,13/02/2020,3702075-8157492,504.60,ENTERPRISE FLEX-E-RENT T/A BURNT TREE GROUP LTD.
Regeneration and Local Services,Environmental Services,Transport,230005,Contract Hire,13/02/2020,3702075-8157493,550.50,ENTERPRISE FLEX-E-RENT T/A BURNT TREE GROUP LTD.
Regeneration and Local Services,Environmental Services,Transport,215005,Running Costs of Vehicles,13/02/2020,3702167-537405,"13,670.58",OIL NRG LTD.
